{"text_format":"1","workbook":"xlsx","n_sheets":6,"sheets":["Seuils","Publipostage","Listes","Tab_N","Tab_IFT","Tab_MAEC"],"not_rendered":{"charts":0,"images":0,"macros":1,"external_links":0,"defined_names":5,"comments":0,"pivot_tables":0},"unopened":[],"bounds":{"document_bytes":16777216,"sheet_cells":100000,"rows_first":2000,"rows_last":500,"rows_between":2000,"halvings":0,"cell_chars":16384,"cell_head_chars":4096},"cells_cut":0,"cells_raw":0,"read":"whole","date_system":"1900"}

{"sheet":"Seuils","index":0,"n_rows":69,"n_cols":20,"rows_kept":69,"cut":false,"hidden":false,"merged":[[8,12,8,19],[8,3,9,3],[40,14,40,15],[40,16,40,17],[40,18,40,19],[40,12,40,13],[24,12,25,19],[40,2,40,3],[40,4,40,5],[40,6,40,7],[40,8,40,9],[24,4,25,11],[50,10,56,10],[69,2,69,3],[48,1,48,9],[50,1,51,1],[50,2,50,3],[50,4,50,5],[50,6,50,7],[50,8,50,9],[49,2,49,5],[49,6,49,9],[48,11,48,19],[49,12,49,15],[49,16,49,19],[50,11,51,11],[50,12,50,13],[50,14,50,15],[50,16,50,17],[50,18,50,19],[1,1,2,2],[3,1,4,6],[62,2,62,3],[62,4,62,5],[61,2,61,3],[8,1,9,1],[8,2,9,2],[8,4,8,11],[38,1,38,9],[39,2,39,5],[39,6,39,9],[40,1,41,1],[38,11,38,19],[39,12,39,15],[39,16,39,19],[40,11,41,11]]}
[]
[null,"MAEC"]
[]
[null,"Fichier de calcul des seuils d'IFT et d'azote minéral"]
[]
[null,"Echelle géographique","MAEC","PAEC (4 caractères max)","Surfaces herbacées imposées par le cahier des charges (%)"]
[null,"Alsace","PHY1","XXXX",0]
[]
[null,"Liste cultures","Surfaces du PAEC (ha)","Pression régionale en N minéral ","IFT Herbicides",null,null,null,null,null,null,null,"IFT Hors-Herbicides"]
[null,null,null,null,"P10","P20","P30","P40","P50","P60","P70","Comentaires","P10","P20","P30","P40","P50","P60","P70","Comentaires"]
[null,"Blé tendre",0,{"$f":"_xlfn.IFNA(INDEX(Tab_N!C:C,MATCH($B$7&$B11,Tab_N!$A:$A&Tab_N!$B:$B,0),1), INDEX(Tab_N!C:C,MATCH(\"France\"&$B11,Tab_N!$A:$A&Tab_N!$B:$B,0),1))","v":167.9},{"$f":"_xlfn.IFNA(_xlfn.IFNA(INDEX(Tab_IFT!D:D,MATCH($B$7&\"Herbicides\"&$B11,Tab_IFT!$B:$B&Tab_IFT!$A:$A&Tab_IFT!$C:$C,0),1), INDEX(Tab_IFT!D:D,MATCH(\"France métropolitaine\"&\"Herbicides\"&$B11,Tab_IFT!$B:$B&Tab_IFT!$A:$A&Tab_IFT!$C:$C,0),1)), \"NC\")","v":0},{"$f":"_xlfn.IFNA(_xlfn.IFNA(INDEX(Tab_IFT!E:E,MATCH($B$7&\"Herbicides\"&$B11,Tab_IFT!$B:$B&Tab_IFT!$A:$A&Tab_IFT!$C:$C,0),1), INDEX(Tab_IFT!E:E,MATCH(\"France métropolitaine\"&\"Herbicides\"&$B11,Tab_IFT!$B:$B&Tab_IFT!$A:$A&Tab_IFT!$C:$C,0),1)), \"NC\")","v":0.62},{"$f":"_xlfn.IFNA(_xlfn.IFNA(INDEX(Tab_IFT!F:F,MATCH($B$7&\"Herbicides\"&$B11,Tab_IFT!$B:$B&Tab_IFT!$A:$A&Tab_IFT!$C:$C,0),1), INDEX(Tab_IFT!F:F,MATCH(\"France métropolitaine\"&\"Herbicides\"&$B11,Tab_IFT!$B:$B&Tab_IFT!$A:$A&Tab_IFT!$C:$C,0),1)), \"NC\")","v":0.82},{"$f":"_xlfn.IFNA(_xlfn.IFNA(INDEX(Tab_IFT!G:G,MATCH($B$7&\"Herbicides\"&$B11,Tab_IFT!$B:$B&Tab_IFT!$A:$A&Tab_IFT!$C:$C,0),1), INDEX(Tab_IFT!G:G,MATCH(\"France métropolitaine\"&\"Herbicides\"&$B11,Tab_IFT!$B:$B&Tab_IFT!$A:$A&Tab_IFT!$C:$C,0),1)), \"NC\")","v":0.9},{"$f":"_xlfn.IFNA(_xlfn.IFNA(INDEX(Tab_IFT!H:H,MATCH($B$7&\"Herbicides\"&$B11,Tab_IFT!$B:$B&Tab_IFT!$A:$A&Tab_IFT!$C:$C,0),1), INDEX(Tab_IFT!H:H,MATCH(\"France métropolitaine\"&\"Herbicides\"&$B11,Tab_IFT!$B:$B&Tab_IFT!$A:$A&Tab_IFT!$C:$C,0),1)), \"NC\")","v":1},{"$f":"_xlfn.IFNA(_xlfn.IFNA(INDEX(Tab_IFT!I:I,MATCH($B$7&\"Herbicides\"&$B11,Tab_IFT!$B:$B&Tab_IFT!$A:$A&Tab_IFT!$C:$C,0),1), INDEX(Tab_IFT!I:I,MATCH(\"France métropolitaine\"&\"Herbicides\"&$B11,Tab_IFT!$B:$B&Tab_IFT!$A:$A&Tab_IFT!$C:$C,0),1)), \"NC\")","v":1.1000000000000001},{"$f":"_xlfn.IFNA(_xlfn.IFNA(INDEX(Tab_IFT!J:J,MATCH($B$7&\"Herbicides\"&$B11,Tab_IFT!$B:$B&Tab_IFT!$A:$A&Tab_IFT!$C:$C,0),1), INDEX(Tab_IFT!J:J,MATCH(\"France métropolitaine\"&\"Herbicides\"&$B11,Tab_IFT!$B:$B&Tab_IFT!$A:$A&Tab_IFT!$C:$C,0),1)), \"NC\")","v":1.29},{"$f":"IF(AND((K11=INDEX(Tab_IFT!J:J,MATCH(\"France métropolitaine\"&\"Herbicides\"&$B11,Tab_IFT!$B:$B&Tab_IFT!$A:$A&Tab_IFT!$C:$C,0),1)),(J11=INDEX(Tab_IFT!I:I,MATCH(\"France métropolitaine\"&\"Herbicides\"&$B11,Tab_IFT!$B:$B&Tab_IFT!$A:$A&Tab_IFT!$C:$C,0),1))), \" → Valeurs nationales utilisées\",\"\")","v":""},{"$f":"_xlfn.IFNA(_xlfn.IFNA(INDEX(Tab_IFT!D:D,MATCH($B$7&\"Hors herbicides (nouvelle méthode traitement de semences)\"&$B11,Tab_IFT!$B:$B&Tab_IFT!$A:$A&Tab_IFT!$C:$C,0),1), INDEX(Tab_IFT!D:D,MATCH(\"France métropolitaine\"&\"Hors herbicides (nouvelle méthode traitement de semences)\"&$B11,Tab_IFT!$B:$B&Tab_IFT!$A:$A&Tab_IFT!$C:$C,0),1)), \"NC\")","v":1.2},{"$f":"_xlfn.IFNA(_xlfn.IFNA(INDEX(Tab_IFT!E:E,MATCH($B$7&\"Hors herbicides (nouvelle méthode traitement de semences)\"&$B11,Tab_IFT!$B:$B&Tab_IFT!$A:$A&Tab_IFT!$C:$C,0),1), INDEX(Tab_IFT!E:E,MATCH(\"France métropolitaine\"&\"Hors herbicides (nouvelle méthode traitement de semences)\"&$B11,Tab_IFT!$B:$B&Tab_IFT!$A:$A&Tab_IFT!$C:$C,0),1)), \"NC\")","v":1.69},{"$f":"_xlfn.IFNA(_xlfn.IFNA(INDEX(Tab_IFT!F:F,MATCH($B$7&\"Hors herbicides (nouvelle méthode traitement de semences)\"&$B11,Tab_IFT!$B:$B&Tab_IFT!$A:$A&Tab_IFT!$C:$C,0),1), INDEX(Tab_IFT!F:F,MATCH(\"France métropolitaine\"&\"Hors herbicides (nouvelle méthode traitement de semences)\"&$B11,Tab_IFT!$B:$B&Tab_IFT!$A:$A&Tab_IFT!$C:$C,0),1)), \"NC\")","v":1.87},{"$f":"_xlfn.IFNA(_xlfn.IFNA(INDEX(Tab_IFT!G:G,MATCH($B$7&\"Hors herbicides (nouvelle méthode traitement de semences)\"&$B11,Tab_IFT!$B:$B&Tab_IFT!$A:$A&Tab_IFT!$C:$C,0),1), INDEX(Tab_IFT!G:G,MATCH(\"France métropolitaine\"&\"Hors herbicides (nouvelle méthode traitement de semences)\"&$B11,Tab_IFT!$B:$B&Tab_IFT!$A:$A&Tab_IFT!$C:$C,0),1)), \"NC\")","v":2.0099999999999998},{"$f":"_xlfn.IFNA(_xlfn.IFNA(INDEX(Tab_IFT!H:H,MATCH($B$7&\"Hors herbicides (nouvelle méthode traitement de semences)\"&$B11,Tab_IFT!$B:$B&Tab_IFT!$A:$A&Tab_IFT!$C:$C,0),1), INDEX(Tab_IFT!H:H,MATCH(\"France métropolitaine\"&\"Hors herbicides (nouvelle méthode traitement de semences)\"&$B11,Tab_IFT!$B:$B&Tab_IFT!$A:$A&Tab_IFT!$C:$C,0),1)), \"NC\")","v":2.2400000000000002},{"$f":"_xlfn.IFNA(_xlfn.IFNA(INDEX(Tab_IFT!I:I,MATCH($B$7&\"Hors herbicides (nouvelle méthode traitement de semences)\"&$B11,Tab_IFT!$B:$B&Tab_IFT!$A:$A&Tab_IFT!$C:$C,0),1), INDEX(Tab_IFT!I:I,MATCH(\"France métropolitaine\"&\"Hors herbicides (nouvelle méthode traitement de semences)\"&$B11,Tab_IFT!$B:$B&Tab_IFT!$A:$A&Tab_IFT!$C:$C,0),1)), \"NC\")","v":2.5499999999999998},{"$f":"_xlfn.IFNA(_xlfn.IFNA(INDEX(Tab_IFT!J:J,MATCH($B$7&\"Hors herbicides (nouvelle méthode traitement de semences)\"&$B11,Tab_IFT!$B:$B&Tab_IFT!$A:$A&Tab_IFT!$C:$C,0),1), INDEX(Tab_IFT!J:J,MATCH(\"France métropolitaine\"&\"Hors herbicides (nouvelle méthode traitement de semences)\"&$B11,Tab_IFT!$B:$B&Tab_IFT!$A:$A&Tab_IFT!$C:$C,0),1)), \"NC\")","v":2.8},{"$f":"IF(AND((R11=INDEX(Tab_IFT!I:I,MATCH(\"France métropolitaine\"&\"Hors herbicides (nouvelle méthode traitement de semences)\"&$B11,Tab_IFT!$B:$B&Tab_IFT!$A:$A&Tab_IFT!$C:$C,0),1)),(S11=INDEX(Tab_IFT!J:J,MATCH(\"France métropolitaine\"&\"Hors herbicides (nouvelle méthode traitement de semences)\"&$B11,Tab_IFT!$B:$B&Tab_IFT!$A:$A&Tab_IFT!$C:$C,0),1))), \" → Valeurs nationales utilisées\",\"\")","v":""}]
[null,"Blé dur",0,{"$f":"_xlfn.IFNA(INDEX(Tab_N!C:C,MATCH($B$7&$B12,Tab_N!$A:$A&Tab_N!$B:$B,0),1), INDEX(Tab_N!C:C,MATCH(\"France\"&$B12,Tab_N!$A:$A&Tab_N!$B:$B,0),1))","v":188.1},{"$f":"_xlfn.IFNA(_xlfn.IFNA(INDEX(Tab_IFT!D:D,MATCH($B$7&\"Herbicides\"&$B12,Tab_IFT!$B:$B&Tab_IFT!$A:$A&Tab_IFT!$C:$C,0),1), INDEX(Tab_IFT!D:D,MATCH(\"France métropolitaine\"&\"Herbicides\"&$B12,Tab_IFT!$B:$B&Tab_IFT!$A:$A&Tab_IFT!$C:$C,0),1)), \"NC\")","v":0.31},{"$f":"_xlfn.IFNA(_xlfn.IFNA(INDEX(Tab_IFT!E:E,MATCH($B$7&\"Herbicides\"&$B12,Tab_IFT!$B:$B&Tab_IFT!$A:$A&Tab_IFT!$C:$C,0),1), INDEX(Tab_IFT!E:E,MATCH(\"France métropolitaine\"&\"Herbicides\"&$B12,Tab_IFT!$B:$B&Tab_IFT!$A:$A&Tab_IFT!$C:$C,0),1)), \"NC\")","v":0.82},{"$f":"_xlfn.IFNA(_xlfn.IFNA(INDEX(Tab_IFT!F:F,MATCH($B$7&\"Herbicides\"&$B12,Tab_IFT!$B:$B&Tab_IFT!$A:$A&Tab_IFT!$C:$C,0),1), INDEX(Tab_IFT!F:F,MATCH(\"France métropolitaine\"&\"Herbicides\"&$B12,Tab_IFT!$B:$B&Tab_IFT!$A:$A&Tab_IFT!$C:$C,0),1)), \"NC\")","v":1},{"$f":"_xlfn.IFNA(_xlfn.IFNA(INDEX(Tab_IFT!G:G,MATCH($B$7&\"Herbicides\"&$B12,Tab_IFT!$B:$B&Tab_IFT!$A:$A&Tab_IFT!$C:$C,0),1), INDEX(Tab_IFT!G:G,MATCH(\"France métropolitaine\"&\"Herbicides\"&$B12,Tab_IFT!$B:$B&Tab_IFT!$A:$A&Tab_IFT!$C:$C,0),1)), \"NC\")","v":1.17},{"$f":"_xlfn.IFNA(_xlfn.IFNA(INDEX(Tab_IFT!H:H,MATCH($B$7&\"Herbicides\"&$B12,Tab_IFT!$B:$B&Tab_IFT!$A:$A&Tab_IFT!$C:$C,0),1), INDEX(Tab_IFT!H:H,MATCH(\"France métropolitaine\"&\"Herbicides\"&$B12,Tab_IFT!$B:$B&Tab_IFT!$A:$A&Tab_IFT!$C:$C,0),1)), \"NC\")","v":1.42},{"$f":"_xlfn.IFNA(_xlfn.IFNA(INDEX(Tab_IFT!I:I,MATCH($B$7&\"Herbicides\"&$B12,Tab_IFT!$B:$B&Tab_IFT!$A:$A&Tab_IFT!$C:$C,0),1), INDEX(Tab_IFT!I:I,MATCH(\"France métropolitaine\"&\"Herbicides\"&$B12,Tab_IFT!$B:$B&Tab_IFT!$A:$A&Tab_IFT!$C:$C,0),1)), \"NC\")","v":1.62},{"$f":"_xlfn.IFNA(_xlfn.IFNA(INDEX(Tab_IFT!J:J,MATCH($B$7&\"Herbicides\"&$B12,Tab_IFT!$B:$B&Tab_IFT!$A:$A&Tab_IFT!$C:$C,0),1), INDEX(Tab_IFT!J:J,MATCH(\"France métropolitaine\"&\"Herbicides\"&$B12,Tab_IFT!$B:$B&Tab_IFT!$A:$A&Tab_IFT!$C:$C,0),1)), \"NC\")","v":1.81},{"$f":"IF(AND((K12=INDEX(Tab_IFT!J:J,MATCH(\"France métropolitaine\"&\"Herbicides\"&$B12,Tab_IFT!$B:$B&Tab_IFT!$A:$A&Tab_IFT!$C:$C,0),1)),(J12=INDEX(Tab_IFT!I:I,MATCH(\"France métropolitaine\"&\"Herbicides\"&$B12,Tab_IFT!$B:$B&Tab_IFT!$A:$A&Tab_IFT!$C:$C,0),1))), \" → Valeurs nationales utilisées\",\"\")","v":" → Valeurs nationales utilisées"},{"$f":"_xlfn.IFNA(_xlfn.IFNA(INDEX(Tab_IFT!D:D,MATCH($B$7&\"Hors herbicides (nouvelle méthode traitement de semences)\"&$B12,Tab_IFT!$B:$B&Tab_IFT!$A:$A&Tab_IFT!$C:$C,0),1), INDEX(Tab_IFT!D:D,MATCH(\"France métropolitaine\"&\"Hors herbicides (nouvelle méthode traitement de semences)\"&$B12,Tab_IFT!$B:$B&Tab_IFT!$A:$A&Tab_IFT!$C:$C,0),1)), \"NC\")","v":1.05},{"$f":"_xlfn.IFNA(_xlfn.IFNA(INDEX(Tab_IFT!E:E,MATCH($B$7&\"Hors herbicides (nouvelle méthode traitement de semences)\"&$B12,Tab_IFT!$B:$B&Tab_IFT!$A:$A&Tab_IFT!$C:$C,0),1), INDEX(Tab_IFT!E:E,MATCH(\"France métropolitaine\"&\"Hors herbicides (nouvelle méthode traitement de semences)\"&$B12,Tab_IFT!$B:$B&Tab_IFT!$A:$A&Tab_IFT!$C:$C,0),1)), \"NC\")","v":1.68},{"$f":"_xlfn.IFNA(_xlfn.IFNA(INDEX(Tab_IFT!F:F,MATCH($B$7&\"Hors herbicides (nouvelle méthode traitement de semences)\"&$B12,Tab_IFT!$B:$B&Tab_IFT!$A:$A&Tab_IFT!$C:$C,0),1), INDEX(Tab_IFT!F:F,MATCH(\"France métropolitaine\"&\"Hors herbicides (nouvelle méthode traitement de semences)\"&$B12,Tab_IFT!$B:$B&Tab_IFT!$A:$A&Tab_IFT!$C:$C,0),1)), \"NC\")","v":2.0699999999999998},{"$f":"_xlfn.IFNA(_xlfn.IFNA(INDEX(Tab_IFT!G:G,MATCH($B$7&\"Hors herbicides (nouvelle méthode traitement de semences)\"&$B12,Tab_IFT!$B:$B&Tab_IFT!$A:$A&Tab_IFT!$C:$C,0),1), INDEX(Tab_IFT!G:G,MATCH(\"France métropolitaine\"&\"Hors herbicides (nouvelle méthode traitement de semences)\"&$B12,Tab_IFT!$B:$B&Tab_IFT!$A:$A&Tab_IFT!$C:$C,0),1)), \"NC\")","v":2.4300000000000002},{"$f":"_xlfn.IFNA(_xlfn.IFNA(INDEX(Tab_IFT!H:H,MATCH($B$7&\"Hors herbicides (nouvelle méthode traitement de semences)\"&$B12,Tab_IFT!$B:$B&Tab_IFT!$A:$A&Tab_IFT!$C:$C,0),1), INDEX(Tab_IFT!H:H,MATCH(\"France métropolitaine\"&\"Hors herbicides (nouvelle méthode traitement de semences)\"&$B12,Tab_IFT!$B:$B&Tab_IFT!$A:$A&Tab_IFT!$C:$C,0),1)), \"NC\")","v":2.73},{"$f":"_xlfn.IFNA(_xlfn.IFNA(INDEX(Tab_IFT!I:I,MATCH($B$7&\"Hors herbicides (nouvelle méthode traitement de semences)\"&$B12,Tab_IFT!$B:$B&Tab_IFT!$A:$A&Tab_IFT!$C:$C,0),1), INDEX(Tab_IFT!I:I,MATCH(\"France métropolitaine\"&\"Hors herbicides (nouvelle méthode traitement de semences)\"&$B12,Tab_IFT!$B:$B&Tab_IFT!$A:$A&Tab_IFT!$C:$C,0),1)), \"NC\")","v":3},{"$f":"_xlfn.IFNA(_xlfn.IFNA(INDEX(Tab_IFT!J:J,MATCH($B$7&\"Hors herbicides (nouvelle méthode traitement de semences)\"&$B12,Tab_IFT!$B:$B&Tab_IFT!$A:$A&Tab_IFT!$C:$C,0),1), INDEX(Tab_IFT!J:J,MATCH(\"France métropolitaine\"&\"Hors herbicides (nouvelle méthode traitement de semences)\"&$B12,Tab_IFT!$B:$B&Tab_IFT!$A:$A&Tab_IFT!$C:$C,0),1)), \"NC\")","v":3.34},{"$f":"IF(AND((R12=INDEX(Tab_IFT!I:I,MATCH(\"France métropolitaine\"&\"Hors herbicides (nouvelle méthode traitement de semences)\"&$B12,Tab_IFT!$B:$B&Tab_IFT!$A:$A&Tab_IFT!$C:$C,0),1)),(S12=INDEX(Tab_IFT!J:J,MATCH(\"France métropolitaine\"&\"Hors herbicides (nouvelle méthode traitement de semences)\"&$B12,Tab_IFT!$B:$B&Tab_IFT!$A:$A&Tab_IFT!$C:$C,0),1))), \" → Valeurs nationales utilisées\",\"\")","v":" → Valeurs nationales utilisées"}]
[null,"Orge",0,{"$f":"_xlfn.IFNA(INDEX(Tab_N!C:C,MATCH($B$7&$B13,Tab_N!$A:$A&Tab_N!$B:$B,0),1), INDEX(Tab_N!C:C,MATCH(\"France\"&$B13,Tab_N!$A:$A&Tab_N!$B:$B,0),1))","v":120.1},{"$f":"_xlfn.IFNA(_xlfn.IFNA(INDEX(Tab_IFT!D:D,MATCH($B$7&\"Herbicides\"&$B13,Tab_IFT!$B:$B&Tab_IFT!$A:$A&Tab_IFT!$C:$C,0),1), INDEX(Tab_IFT!D:D,MATCH(\"France métropolitaine\"&\"Herbicides\"&$B13,Tab_IFT!$B:$B&Tab_IFT!$A:$A&Tab_IFT!$C:$C,0),1)), \"NC\")","v":0.65},{"$f":"_xlfn.IFNA(_xlfn.IFNA(INDEX(Tab_IFT!E:E,MATCH($B$7&\"Herbicides\"&$B13,Tab_IFT!$B:$B&Tab_IFT!$A:$A&Tab_IFT!$C:$C,0),1), INDEX(Tab_IFT!E:E,MATCH(\"France métropolitaine\"&\"Herbicides\"&$B13,Tab_IFT!$B:$B&Tab_IFT!$A:$A&Tab_IFT!$C:$C,0),1)), \"NC\")","v":0.88},{"$f":"_xlfn.IFNA(_xlfn.IFNA(INDEX(Tab_IFT!F:F,MATCH($B$7&\"Herbicides\"&$B13,Tab_IFT!$B:$B&Tab_IFT!$A:$A&Tab_IFT!$C:$C,0),1), INDEX(Tab_IFT!F:F,MATCH(\"France métropolitaine\"&\"Herbicides\"&$B13,Tab_IFT!$B:$B&Tab_IFT!$A:$A&Tab_IFT!$C:$C,0),1)), \"NC\")","v":1.0900000000000001},{"$f":"_xlfn.IFNA(_xlfn.IFNA(INDEX(Tab_IFT!G:G,MATCH($B$7&\"Herbicides\"&$B13,Tab_IFT!$B:$B&Tab_IFT!$A:$A&Tab_IFT!$C:$C,0),1), INDEX(Tab_IFT!G:G,MATCH(\"France métropolitaine\"&\"Herbicides\"&$B13,Tab_IFT!$B:$B&Tab_IFT!$A:$A&Tab_IFT!$C:$C,0),1)), \"NC\")","v":1.37},{"$f":"_xlfn.IFNA(_xlfn.IFNA(INDEX(Tab_IFT!H:H,MATCH($B$7&\"Herbicides\"&$B13,Tab_IFT!$B:$B&Tab_IFT!$A:$A&Tab_IFT!$C:$C,0),1), INDEX(Tab_IFT!H:H,MATCH(\"France métropolitaine\"&\"Herbicides\"&$B13,Tab_IFT!$B:$B&Tab_IFT!$A:$A&Tab_IFT!$C:$C,0),1)), \"NC\")","v":1.57},{"$f":"_xlfn.IFNA(_xlfn.IFNA(INDEX(Tab_IFT!I:I,MATCH($B$7&\"Herbicides\"&$B13,Tab_IFT!$B:$B&Tab_IFT!$A:$A&Tab_IFT!$C:$C,0),1), INDEX(Tab_IFT!I:I,MATCH(\"France métropolitaine\"&\"Herbicides\"&$B13,Tab_IFT!$B:$B&Tab_IFT!$A:$A&Tab_IFT!$C:$C,0),1)), \"NC\")","v":1.75},{"$f":"_xlfn.IFNA(_xlfn.IFNA(INDEX(Tab_IFT!J:J,MATCH($B$7&\"Herbicides\"&$B13,Tab_IFT!$B:$B&Tab_IFT!$A:$A&Tab_IFT!$C:$C,0),1), INDEX(Tab_IFT!J:J,MATCH(\"France métropolitaine\"&\"Herbicides\"&$B13,Tab_IFT!$B:$B&Tab_IFT!$A:$A&Tab_IFT!$C:$C,0),1)), \"NC\")","v":1.97},{"$f":"IF(AND((K13=INDEX(Tab_IFT!J:J,MATCH(\"France métropolitaine\"&\"Herbicides\"&$B13,Tab_IFT!$B:$B&Tab_IFT!$A:$A&Tab_IFT!$C:$C,0),1)),(J13=INDEX(Tab_IFT!I:I,MATCH(\"France métropolitaine\"&\"Herbicides\"&$B13,Tab_IFT!$B:$B&Tab_IFT!$A:$A&Tab_IFT!$C:$C,0),1))), \" → Valeurs nationales utilisées\",\"\")","v":" → Valeurs nationales utilisées"},{"$f":"_xlfn.IFNA(_xlfn.IFNA(INDEX(Tab_IFT!D:D,MATCH($B$7&\"Hors herbicides (nouvelle méthode traitement de semences)\"&$B13,Tab_IFT!$B:$B&Tab_IFT!$A:$A&Tab_IFT!$C:$C,0),1), INDEX(Tab_IFT!D:D,MATCH(\"France métropolitaine\"&\"Hors herbicides (nouvelle méthode traitement de semences)\"&$B13,Tab_IFT!$B:$B&Tab_IFT!$A:$A&Tab_IFT!$C:$C,0),1)), \"NC\")","v":1.17},{"$f":"_xlfn.IFNA(_xlfn.IFNA(INDEX(Tab_IFT!E:E,MATCH($B$7&\"Hors herbicides (nouvelle méthode traitement de semences)\"&$B13,Tab_IFT!$B:$B&Tab_IFT!$A:$A&Tab_IFT!$C:$C,0),1), INDEX(Tab_IFT!E:E,MATCH(\"France métropolitaine\"&\"Hors herbicides (nouvelle méthode traitement de semences)\"&$B13,Tab_IFT!$B:$B&Tab_IFT!$A:$A&Tab_IFT!$C:$C,0),1)), \"NC\")","v":1.67},{"$f":"_xlfn.IFNA(_xlfn.IFNA(INDEX(Tab_IFT!F:F,MATCH($B$7&\"Hors herbicides (nouvelle méthode traitement de semences)\"&$B13,Tab_IFT!$B:$B&Tab_IFT!$A:$A&Tab_IFT!$C:$C,0),1), INDEX(Tab_IFT!F:F,MATCH(\"France métropolitaine\"&\"Hors herbicides (nouvelle méthode traitement de semences)\"&$B13,Tab_IFT!$B:$B&Tab_IFT!$A:$A&Tab_IFT!$C:$C,0),1)), \"NC\")","v":1.97},{"$f":"_xlfn.IFNA(_xlfn.IFNA(INDEX(Tab_IFT!G:G,MATCH($B$7&\"Hors herbicides (nouvelle méthode traitement de semences)\"&$B13,Tab_IFT!$B:$B&Tab_IFT!$A:$A&Tab_IFT!$C:$C,0),1), INDEX(Tab_IFT!G:G,MATCH(\"France métropolitaine\"&\"Hors herbicides (nouvelle méthode traitement de semences)\"&$B13,Tab_IFT!$B:$B&Tab_IFT!$A:$A&Tab_IFT!$C:$C,0),1)), \"NC\")","v":2.31},{"$f":"_xlfn.IFNA(_xlfn.IFNA(INDEX(Tab_IFT!H:H,MATCH($B$7&\"Hors herbicides (nouvelle méthode traitement de semences)\"&$B13,Tab_IFT!$B:$B&Tab_IFT!$A:$A&Tab_IFT!$C:$C,0),1), INDEX(Tab_IFT!H:H,MATCH(\"France métropolitaine\"&\"Hors herbicides (nouvelle méthode traitement de semences)\"&$B13,Tab_IFT!$B:$B&Tab_IFT!$A:$A&Tab_IFT!$C:$C,0),1)), \"NC\")","v":2.62},{"$f":"_xlfn.IFNA(_xlfn.IFNA(INDEX(Tab_IFT!I:I,MATCH($B$7&\"Hors herbicides (nouvelle méthode traitement de semences)\"&$B13,Tab_IFT!$B:$B&Tab_IFT!$A:$A&Tab_IFT!$C:$C,0),1), INDEX(Tab_IFT!I:I,MATCH(\"France métropolitaine\"&\"Hors herbicides (nouvelle méthode traitement de semences)\"&$B13,Tab_IFT!$B:$B&Tab_IFT!$A:$A&Tab_IFT!$C:$C,0),1)), \"NC\")","v":2.92},{"$f":"_xlfn.IFNA(_xlfn.IFNA(INDEX(Tab_IFT!J:J,MATCH($B$7&\"Hors herbicides (nouvelle méthode traitement de semences)\"&$B13,Tab_IFT!$B:$B&Tab_IFT!$A:$A&Tab_IFT!$C:$C,0),1), INDEX(Tab_IFT!J:J,MATCH(\"France métropolitaine\"&\"Hors herbicides (nouvelle méthode traitement de semences)\"&$B13,Tab_IFT!$B:$B&Tab_IFT!$A:$A&Tab_IFT!$C:$C,0),1)), \"NC\")","v":3.27},{"$f":"IF(AND((R13=INDEX(Tab_IFT!I:I,MATCH(\"France métropolitaine\"&\"Hors herbicides (nouvelle méthode traitement de semences)\"&$B13,Tab_IFT!$B:$B&Tab_IFT!$A:$A&Tab_IFT!$C:$C,0),1)),(S13=INDEX(Tab_IFT!J:J,MATCH(\"France métropolitaine\"&\"Hors herbicides (nouvelle méthode traitement de semences)\"&$B13,Tab_IFT!$B:$B&Tab_IFT!$A:$A&Tab_IFT!$C:$C,0),1))), \" → Valeurs nationales utilisées\",\"\")","v":" → Valeurs nationales utilisées"}]
[null,"Triticale",0,{"$f":"_xlfn.IFNA(INDEX(Tab_N!C:C,MATCH($B$7&$B14,Tab_N!$A:$A&Tab_N!$B:$B,0),1), INDEX(Tab_N!C:C,MATCH(\"France\"&$B14,Tab_N!$A:$A&Tab_N!$B:$B,0),1))","v":90.7},{"$f":"_xlfn.IFNA(_xlfn.IFNA(INDEX(Tab_IFT!D:D,MATCH($B$7&\"Herbicides\"&$B14,Tab_IFT!$B:$B&Tab_IFT!$A:$A&Tab_IFT!$C:$C,0),1), INDEX(Tab_IFT!D:D,MATCH(\"France métropolitaine\"&\"Herbicides\"&$B14,Tab_IFT!$B:$B&Tab_IFT!$A:$A&Tab_IFT!$C:$C,0),1)), \"NC\")","v":0},{"$f":"_xlfn.IFNA(_xlfn.IFNA(INDEX(Tab_IFT!E:E,MATCH($B$7&\"Herbicides\"&$B14,Tab_IFT!$B:$B&Tab_IFT!$A:$A&Tab_IFT!$C:$C,0),1), INDEX(Tab_IFT!E:E,MATCH(\"France métropolitaine\"&\"Herbicides\"&$B14,Tab_IFT!$B:$B&Tab_IFT!$A:$A&Tab_IFT!$C:$C,0),1)), \"NC\")","v":0.41},{"$f":"_xlfn.IFNA(_xlfn.IFNA(INDEX(Tab_IFT!F:F,MATCH($B$7&\"Herbicides\"&$B14,Tab_IFT!$B:$B&Tab_IFT!$A:$A&Tab_IFT!$C:$C,0),1), INDEX(Tab_IFT!F:F,MATCH(\"France métropolitaine\"&\"Herbicides\"&$B14,Tab_IFT!$B:$B&Tab_IFT!$A:$A&Tab_IFT!$C:$C,0),1)), \"NC\")","v":0.81},{"$f":"_xlfn.IFNA(_xlfn.IFNA(INDEX(Tab_IFT!G:G,MATCH($B$7&\"Herbicides\"&$B14,Tab_IFT!$B:$B&Tab_IFT!$A:$A&Tab_IFT!$C:$C,0),1), INDEX(Tab_IFT!G:G,MATCH(\"France métropolitaine\"&\"Herbicides\"&$B14,Tab_IFT!$B:$B&Tab_IFT!$A:$A&Tab_IFT!$C:$C,0),1)), \"NC\")","v":0.97},{"$f":"_xlfn.IFNA(_xlfn.IFNA(INDEX(Tab_IFT!H:H,MATCH($B$7&\"Herbicides\"&$B14,Tab_IFT!$B:$B&Tab_IFT!$A:$A&Tab_IFT!$C:$C,0),1), INDEX(Tab_IFT!H:H,MATCH(\"France métropolitaine\"&\"Herbicides\"&$B14,Tab_IFT!$B:$B&Tab_IFT!$A:$A&Tab_IFT!$C:$C,0),1)), \"NC\")","v":1.1200000000000001},{"$f":"_xlfn.IFNA(_xlfn.IFNA(INDEX(Tab_IFT!I:I,MATCH($B$7&\"Herbicides\"&$B14,Tab_IFT!$B:$B&Tab_IFT!$A:$A&Tab_IFT!$C:$C,0),1), INDEX(Tab_IFT!I:I,MATCH(\"France métropolitaine\"&\"Herbicides\"&$B14,Tab_IFT!$B:$B&Tab_IFT!$A:$A&Tab_IFT!$C:$C,0),1)), \"NC\")","v":1.39},{"$f":"_xlfn.IFNA(_xlfn.IFNA(INDEX(Tab_IFT!J:J,MATCH($B$7&\"Herbicides\"&$B14,Tab_IFT!$B:$B&Tab_IFT!$A:$A&Tab_IFT!$C:$C,0),1), INDEX(Tab_IFT!J:J,MATCH(\"France métropolitaine\"&\"Herbicides\"&$B14,Tab_IFT!$B:$B&Tab_IFT!$A:$A&Tab_IFT!$C:$C,0),1)), \"NC\")","v":1.63},{"$f":"IF(AND((K14=INDEX(Tab_IFT!J:J,MATCH(\"France métropolitaine\"&\"Herbicides\"&$B14,Tab_IFT!$B:$B&Tab_IFT!$A:$A&Tab_IFT!$C:$C,0),1)),(J14=INDEX(Tab_IFT!I:I,MATCH(\"France métropolitaine\"&\"Herbicides\"&$B14,Tab_IFT!$B:$B&Tab_IFT!$A:$A&Tab_IFT!$C:$C,0),1))), \" → Valeurs nationales utilisées\",\"\")","v":" → Valeurs nationales utilisées"},{"$f":"_xlfn.IFNA(_xlfn.IFNA(INDEX(Tab_IFT!D:D,MATCH($B$7&\"Hors herbicides (nouvelle méthode traitement de semences)\"&$B14,Tab_IFT!$B:$B&Tab_IFT!$A:$A&Tab_IFT!$C:$C,0),1), INDEX(Tab_IFT!D:D,MATCH(\"France métropolitaine\"&\"Hors herbicides (nouvelle méthode traitement de semences)\"&$B14,Tab_IFT!$B:$B&Tab_IFT!$A:$A&Tab_IFT!$C:$C,0),1)), \"NC\")","v":0},{"$f":"_xlfn.IFNA(_xlfn.IFNA(INDEX(Tab_IFT!E:E,MATCH($B$7&\"Hors herbicides (nouvelle méthode traitement de semences)\"&$B14,Tab_IFT!$B:$B&Tab_IFT!$A:$A&Tab_IFT!$C:$C,0),1), INDEX(Tab_IFT!E:E,MATCH(\"France métropolitaine\"&\"Hors herbicides (nouvelle méthode traitement de semences)\"&$B14,Tab_IFT!$B:$B&Tab_IFT!$A:$A&Tab_IFT!$C:$C,0),1)), \"NC\")","v":0.8},{"$f":"_xlfn.IFNA(_xlfn.IFNA(INDEX(Tab_IFT!F:F,MATCH($B$7&\"Hors herbicides (nouvelle méthode traitement de semences)\"&$B14,Tab_IFT!$B:$B&Tab_IFT!$A:$A&Tab_IFT!$C:$C,0),1), INDEX(Tab_IFT!F:F,MATCH(\"France métropolitaine\"&\"Hors herbicides (nouvelle méthode traitement de semences)\"&$B14,Tab_IFT!$B:$B&Tab_IFT!$A:$A&Tab_IFT!$C:$C,0),1)), \"NC\")","v":1},{"$f":"_xlfn.IFNA(_xlfn.IFNA(INDEX(Tab_IFT!G:G,MATCH($B$7&\"Hors herbicides (nouvelle méthode traitement de semences)\"&$B14,Tab_IFT!$B:$B&Tab_IFT!$A:$A&Tab_IFT!$C:$C,0),1), INDEX(Tab_IFT!G:G,MATCH(\"France métropolitaine\"&\"Hors herbicides (nouvelle méthode traitement de semences)\"&$B14,Tab_IFT!$B:$B&Tab_IFT!$A:$A&Tab_IFT!$C:$C,0),1)), \"NC\")","v":1},{"$f":"_xlfn.IFNA(_xlfn.IFNA(INDEX(Tab_IFT!H:H,MATCH($B$7&\"Hors herbicides (nouvelle méthode traitement de semences)\"&$B14,Tab_IFT!$B:$B&Tab_IFT!$A:$A&Tab_IFT!$C:$C,0),1), INDEX(Tab_IFT!H:H,MATCH(\"France métropolitaine\"&\"Hors herbicides (nouvelle méthode traitement de semences)\"&$B14,Tab_IFT!$B:$B&Tab_IFT!$A:$A&Tab_IFT!$C:$C,0),1)), \"NC\")","v":1.47},{"$f":"_xlfn.IFNA(_xlfn.IFNA(INDEX(Tab_IFT!I:I,MATCH($B$7&\"Hors herbicides (nouvelle méthode traitement de semences)\"&$B14,Tab_IFT!$B:$B&Tab_IFT!$A:$A&Tab_IFT!$C:$C,0),1), INDEX(Tab_IFT!I:I,MATCH(\"France métropolitaine\"&\"Hors herbicides (nouvelle méthode traitement de semences)\"&$B14,Tab_IFT!$B:$B&Tab_IFT!$A:$A&Tab_IFT!$C:$C,0),1)), \"NC\")","v":1.67},{"$f":"_xlfn.IFNA(_xlfn.IFNA(INDEX(Tab_IFT!J:J,MATCH($B$7&\"Hors herbicides (nouvelle méthode traitement de semences)\"&$B14,Tab_IFT!$B:$B&Tab_IFT!$A:$A&Tab_IFT!$C:$C,0),1), INDEX(Tab_IFT!J:J,MATCH(\"France métropolitaine\"&\"Hors herbicides (nouvelle méthode traitement de semences)\"&$B14,Tab_IFT!$B:$B&Tab_IFT!$A:$A&Tab_IFT!$C:$C,0),1)), \"NC\")","v":1.92},{"$f":"IF(AND((R14=INDEX(Tab_IFT!I:I,MATCH(\"France métropolitaine\"&\"Hors herbicides (nouvelle méthode traitement de semences)\"&$B14,Tab_IFT!$B:$B&Tab_IFT!$A:$A&Tab_IFT!$C:$C,0),1)),(S14=INDEX(Tab_IFT!J:J,MATCH(\"France métropolitaine\"&\"Hors herbicides (nouvelle méthode traitement de semences)\"&$B14,Tab_IFT!$B:$B&Tab_IFT!$A:$A&Tab_IFT!$C:$C,0),1))), \" → Valeurs nationales utilisées\",\"\")","v":" → Valeurs nationales utilisées"}]
[null,"Colza",0,{"$f":"_xlfn.IFNA(INDEX(Tab_N!C:C,MATCH($B$7&$B15,Tab_N!$A:$A&Tab_N!$B:$B,0),1), INDEX(Tab_N!C:C,MATCH(\"France\"&$B15,Tab_N!$A:$A&Tab_N!$B:$B,0),1))","v":157.69999999999999},{"$f":"_xlfn.IFNA(_xlfn.IFNA(INDEX(Tab_IFT!D:D,MATCH($B$7&\"Herbicides\"&$B15,Tab_IFT!$B:$B&Tab_IFT!$A:$A&Tab_IFT!$C:$C,0),1), INDEX(Tab_IFT!D:D,MATCH(\"France métropolitaine\"&\"Herbicides\"&$B15,Tab_IFT!$B:$B&Tab_IFT!$A:$A&Tab_IFT!$C:$C,0),1)), \"NC\")","v":0.92},{"$f":"_xlfn.IFNA(_xlfn.IFNA(INDEX(Tab_IFT!E:E,MATCH($B$7&\"Herbicides\"&$B15,Tab_IFT!$B:$B&Tab_IFT!$A:$A&Tab_IFT!$C:$C,0),1), INDEX(Tab_IFT!E:E,MATCH(\"France métropolitaine\"&\"Herbicides\"&$B15,Tab_IFT!$B:$B&Tab_IFT!$A:$A&Tab_IFT!$C:$C,0),1)), \"NC\")","v":1.18},{"$f":"_xlfn.IFNA(_xlfn.IFNA(INDEX(Tab_IFT!F:F,MATCH($B$7&\"Herbicides\"&$B15,Tab_IFT!$B:$B&Tab_IFT!$A:$A&Tab_IFT!$C:$C,0),1), INDEX(Tab_IFT!F:F,MATCH(\"France métropolitaine\"&\"Herbicides\"&$B15,Tab_IFT!$B:$B&Tab_IFT!$A:$A&Tab_IFT!$C:$C,0),1)), \"NC\")","v":1.42},{"$f":"_xlfn.IFNA(_xlfn.IFNA(INDEX(Tab_IFT!G:G,MATCH($B$7&\"Herbicides\"&$B15,Tab_IFT!$B:$B&Tab_IFT!$A:$A&Tab_IFT!$C:$C,0),1), INDEX(Tab_IFT!G:G,MATCH(\"France métropolitaine\"&\"Herbicides\"&$B15,Tab_IFT!$B:$B&Tab_IFT!$A:$A&Tab_IFT!$C:$C,0),1)), \"NC\")","v":1.66},{"$f":"_xlfn.IFNA(_xlfn.IFNA(INDEX(Tab_IFT!H:H,MATCH($B$7&\"Herbicides\"&$B15,Tab_IFT!$B:$B&Tab_IFT!$A:$A&Tab_IFT!$C:$C,0),1), INDEX(Tab_IFT!H:H,MATCH(\"France métropolitaine\"&\"Herbicides\"&$B15,Tab_IFT!$B:$B&Tab_IFT!$A:$A&Tab_IFT!$C:$C,0),1)), \"NC\")","v":1.84},{"$f":"_xlfn.IFNA(_xlfn.IFNA(INDEX(Tab_IFT!I:I,MATCH($B$7&\"Herbicides\"&$B15,Tab_IFT!$B:$B&Tab_IFT!$A:$A&Tab_IFT!$C:$C,0),1), INDEX(Tab_IFT!I:I,MATCH(\"France métropolitaine\"&\"Herbicides\"&$B15,Tab_IFT!$B:$B&Tab_IFT!$A:$A&Tab_IFT!$C:$C,0),1)), \"NC\")","v":2.04},{"$f":"_xlfn.IFNA(_xlfn.IFNA(INDEX(Tab_IFT!J:J,MATCH($B$7&\"Herbicides\"&$B15,Tab_IFT!$B:$B&Tab_IFT!$A:$A&Tab_IFT!$C:$C,0),1), INDEX(Tab_IFT!J:J,MATCH(\"France métropolitaine\"&\"Herbicides\"&$B15,Tab_IFT!$B:$B&Tab_IFT!$A:$A&Tab_IFT!$C:$C,0),1)), \"NC\")","v":2.29},{"$f":"IF(AND((K15=INDEX(Tab_IFT!J:J,MATCH(\"France métropolitaine\"&\"Herbicides\"&$B15,Tab_IFT!$B:$B&Tab_IFT!$A:$A&Tab_IFT!$C:$C,0),1)),(J15=INDEX(Tab_IFT!I:I,MATCH(\"France métropolitaine\"&\"Herbicides\"&$B15,Tab_IFT!$B:$B&Tab_IFT!$A:$A&Tab_IFT!$C:$C,0),1))), \" → Valeurs nationales utilisées\",\"\")","v":" → Valeurs nationales utilisées"},{"$f":"_xlfn.IFNA(_xlfn.IFNA(INDEX(Tab_IFT!D:D,MATCH($B$7&\"Hors herbicides (nouvelle méthode traitement de semences)\"&$B15,Tab_IFT!$B:$B&Tab_IFT!$A:$A&Tab_IFT!$C:$C,0),1), INDEX(Tab_IFT!D:D,MATCH(\"France métropolitaine\"&\"Hors herbicides (nouvelle méthode traitement de semences)\"&$B15,Tab_IFT!$B:$B&Tab_IFT!$A:$A&Tab_IFT!$C:$C,0),1)), \"NC\")","v":2.2599999999999998},{"$f":"_xlfn.IFNA(_xlfn.IFNA(INDEX(Tab_IFT!E:E,MATCH($B$7&\"Hors herbicides (nouvelle méthode traitement de semences)\"&$B15,Tab_IFT!$B:$B&Tab_IFT!$A:$A&Tab_IFT!$C:$C,0),1), INDEX(Tab_IFT!E:E,MATCH(\"France métropolitaine\"&\"Hors herbicides (nouvelle méthode traitement de semences)\"&$B15,Tab_IFT!$B:$B&Tab_IFT!$A:$A&Tab_IFT!$C:$C,0),1)), \"NC\")","v":2.92},{"$f":"_xlfn.IFNA(_xlfn.IFNA(INDEX(Tab_IFT!F:F,MATCH($B$7&\"Hors herbicides (nouvelle méthode traitement de semences)\"&$B15,Tab_IFT!$B:$B&Tab_IFT!$A:$A&Tab_IFT!$C:$C,0),1), INDEX(Tab_IFT!F:F,MATCH(\"France métropolitaine\"&\"Hors herbicides (nouvelle méthode traitement de semences)\"&$B15,Tab_IFT!$B:$B&Tab_IFT!$A:$A&Tab_IFT!$C:$C,0),1)), \"NC\")","v":3.46},{"$f":"_xlfn.IFNA(_xlfn.IFNA(INDEX(Tab_IFT!G:G,MATCH($B$7&\"Hors herbicides (nouvelle méthode traitement de semences)\"&$B15,Tab_IFT!$B:$B&Tab_IFT!$A:$A&Tab_IFT!$C:$C,0),1), INDEX(Tab_IFT!G:G,MATCH(\"France métropolitaine\"&\"Hors herbicides (nouvelle méthode traitement de semences)\"&$B15,Tab_IFT!$B:$B&Tab_IFT!$A:$A&Tab_IFT!$C:$C,0),1)), \"NC\")","v":3.88},{"$f":"_xlfn.IFNA(_xlfn.IFNA(INDEX(Tab_IFT!H:H,MATCH($B$7&\"Hors herbicides (nouvelle méthode traitement de semences)\"&$B15,Tab_IFT!$B:$B&Tab_IFT!$A:$A&Tab_IFT!$C:$C,0),1), INDEX(Tab_IFT!H:H,MATCH(\"France métropolitaine\"&\"Hors herbicides (nouvelle méthode traitement de semences)\"&$B15,Tab_IFT!$B:$B&Tab_IFT!$A:$A&Tab_IFT!$C:$C,0),1)), \"NC\")","v":4.3600000000000003},{"$f":"_xlfn.IFNA(_xlfn.IFNA(INDEX(Tab_IFT!I:I,MATCH($B$7&\"Hors herbicides (nouvelle méthode traitement de semences)\"&$B15,Tab_IFT!$B:$B&Tab_IFT!$A:$A&Tab_IFT!$C:$C,0),1), INDEX(Tab_IFT!I:I,MATCH(\"France métropolitaine\"&\"Hors herbicides (nouvelle méthode traitement de semences)\"&$B15,Tab_IFT!$B:$B&Tab_IFT!$A:$A&Tab_IFT!$C:$C,0),1)), \"NC\")","v":4.8},{"$f":"_xlfn.IFNA(_xlfn.IFNA(INDEX(Tab_IFT!J:J,MATCH($B$7&\"Hors herbicides (nouvelle méthode traitement de semences)\"&$B15,Tab_IFT!$B:$B&Tab_IFT!$A:$A&Tab_IFT!$C:$C,0),1), INDEX(Tab_IFT!J:J,MATCH(\"France métropolitaine\"&\"Hors herbicides (nouvelle méthode traitement de semences)\"&$B15,Tab_IFT!$B:$B&Tab_IFT!$A:$A&Tab_IFT!$C:$C,0),1)), \"NC\")","v":5.31},{"$f":"IF(AND((R15=INDEX(Tab_IFT!I:I,MATCH(\"France métropolitaine\"&\"Hors herbicides (nouvelle méthode traitement de semences)\"&$B15,Tab_IFT!$B:$B&Tab_IFT!$A:$A&Tab_IFT!$C:$C,0),1)),(S15=INDEX(Tab_IFT!J:J,MATCH(\"France métropolitaine\"&\"Hors herbicides (nouvelle méthode traitement de semences)\"&$B15,Tab_IFT!$B:$B&Tab_IFT!$A:$A&Tab_IFT!$C:$C,0),1))), \" → Valeurs nationales utilisées\",\"\")","v":" → Valeurs nationales utilisées"}]
[null,"Tournesol",0,{"$f":"_xlfn.IFNA(INDEX(Tab_N!C:C,MATCH($B$7&$B16,Tab_N!$A:$A&Tab_N!$B:$B,0),1), INDEX(Tab_N!C:C,MATCH(\"France\"&$B16,Tab_N!$A:$A&Tab_N!$B:$B,0),1))","v":44.4},{"$f":"_xlfn.IFNA(_xlfn.IFNA(INDEX(Tab_IFT!D:D,MATCH($B$7&\"Herbicides\"&$B16,Tab_IFT!$B:$B&Tab_IFT!$A:$A&Tab_IFT!$C:$C,0),1), INDEX(Tab_IFT!D:D,MATCH(\"France métropolitaine\"&\"Herbicides\"&$B16,Tab_IFT!$B:$B&Tab_IFT!$A:$A&Tab_IFT!$C:$C,0),1)), \"NC\")","v":0.39},{"$f":"_xlfn.IFNA(_xlfn.IFNA(INDEX(Tab_IFT!E:E,MATCH($B$7&\"Herbicides\"&$B16,Tab_IFT!$B:$B&Tab_IFT!$A:$A&Tab_IFT!$C:$C,0),1), INDEX(Tab_IFT!E:E,MATCH(\"France métropolitaine\"&\"Herbicides\"&$B16,Tab_IFT!$B:$B&Tab_IFT!$A:$A&Tab_IFT!$C:$C,0),1)), \"NC\")","v":0.85},{"$f":"_xlfn.IFNA(_xlfn.IFNA(INDEX(Tab_IFT!F:F,MATCH($B$7&\"Herbicides\"&$B16,Tab_IFT!$B:$B&Tab_IFT!$A:$A&Tab_IFT!$C:$C,0),1), INDEX(Tab_IFT!F:F,MATCH(\"France métropolitaine\"&\"Herbicides\"&$B16,Tab_IFT!$B:$B&Tab_IFT!$A:$A&Tab_IFT!$C:$C,0),1)), \"NC\")","v":1.07},{"$f":"_xlfn.IFNA(_xlfn.IFNA(INDEX(Tab_IFT!G:G,MATCH($B$7&\"Herbicides\"&$B16,Tab_IFT!$B:$B&Tab_IFT!$A:$A&Tab_IFT!$C:$C,0),1), INDEX(Tab_IFT!G:G,MATCH(\"France métropolitaine\"&\"Herbicides\"&$B16,Tab_IFT!$B:$B&Tab_IFT!$A:$A&Tab_IFT!$C:$C,0),1)), \"NC\")","v":1.25},{"$f":"_xlfn.IFNA(_xlfn.IFNA(INDEX(Tab_IFT!H:H,MATCH($B$7&\"Herbicides\"&$B16,Tab_IFT!$B:$B&Tab_IFT!$A:$A&Tab_IFT!$C:$C,0),1), INDEX(Tab_IFT!H:H,MATCH(\"France métropolitaine\"&\"Herbicides\"&$B16,Tab_IFT!$B:$B&Tab_IFT!$A:$A&Tab_IFT!$C:$C,0),1)), \"NC\")","v":1.4},{"$f":"_xlfn.IFNA(_xlfn.IFNA(INDEX(Tab_IFT!I:I,MATCH($B$7&\"Herbicides\"&$B16,Tab_IFT!$B:$B&Tab_IFT!$A:$A&Tab_IFT!$C:$C,0),1), INDEX(Tab_IFT!I:I,MATCH(\"France métropolitaine\"&\"Herbicides\"&$B16,Tab_IFT!$B:$B&Tab_IFT!$A:$A&Tab_IFT!$C:$C,0),1)), \"NC\")","v":1.52},{"$f":"_xlfn.IFNA(_xlfn.IFNA(INDEX(Tab_IFT!J:J,MATCH($B$7&\"Herbicides\"&$B16,Tab_IFT!$B:$B&Tab_IFT!$A:$A&Tab_IFT!$C:$C,0),1), INDEX(Tab_IFT!J:J,MATCH(\"France métropolitaine\"&\"Herbicides\"&$B16,Tab_IFT!$B:$B&Tab_IFT!$A:$A&Tab_IFT!$C:$C,0),1)), \"NC\")","v":1.64},{"$f":"IF(AND((K16=INDEX(Tab_IFT!J:J,MATCH(\"France métropolitaine\"&\"Herbicides\"&$B16,Tab_IFT!$B:$B&Tab_IFT!$A:$A&Tab_IFT!$C:$C,0),1)),(J16=INDEX(Tab_IFT!I:I,MATCH(\"France métropolitaine\"&\"Herbicides\"&$B16,Tab_IFT!$B:$B&Tab_IFT!$A:$A&Tab_IFT!$C:$C,0),1))), \" → Valeurs nationales utilisées\",\"\")","v":" → Valeurs nationales utilisées"},{"$f":"_xlfn.IFNA(_xlfn.IFNA(INDEX(Tab_IFT!D:D,MATCH($B$7&\"Hors herbicides (nouvelle méthode traitement de semences)\"&$B16,Tab_IFT!$B:$B&Tab_IFT!$A:$A&Tab_IFT!$C:$C,0),1), INDEX(Tab_IFT!D:D,MATCH(\"France métropolitaine\"&\"Hors herbicides (nouvelle méthode traitement de semences)\"&$B16,Tab_IFT!$B:$B&Tab_IFT!$A:$A&Tab_IFT!$C:$C,0),1)), \"NC\")","v":0.4},{"$f":"_xlfn.IFNA(_xlfn.IFNA(INDEX(Tab_IFT!E:E,MATCH($B$7&\"Hors herbicides (nouvelle méthode traitement de semences)\"&$B16,Tab_IFT!$B:$B&Tab_IFT!$A:$A&Tab_IFT!$C:$C,0),1), INDEX(Tab_IFT!E:E,MATCH(\"France métropolitaine\"&\"Hors herbicides (nouvelle méthode traitement de semences)\"&$B16,Tab_IFT!$B:$B&Tab_IFT!$A:$A&Tab_IFT!$C:$C,0),1)), \"NC\")","v":1},{"$f":"_xlfn.IFNA(_xlfn.IFNA(INDEX(Tab_IFT!F:F,MATCH($B$7&\"Hors herbicides (nouvelle méthode traitement de semences)\"&$B16,Tab_IFT!$B:$B&Tab_IFT!$A:$A&Tab_IFT!$C:$C,0),1), INDEX(Tab_IFT!F:F,MATCH(\"France métropolitaine\"&\"Hors herbicides (nouvelle méthode traitement de semences)\"&$B16,Tab_IFT!$B:$B&Tab_IFT!$A:$A&Tab_IFT!$C:$C,0),1)), \"NC\")","v":1},{"$f":"_xlfn.IFNA(_xlfn.IFNA(INDEX(Tab_IFT!G:G,MATCH($B$7&\"Hors herbicides (nouvelle méthode traitement de semences)\"&$B16,Tab_IFT!$B:$B&Tab_IFT!$A:$A&Tab_IFT!$C:$C,0),1), INDEX(Tab_IFT!G:G,MATCH(\"France métropolitaine\"&\"Hors herbicides (nouvelle méthode traitement de semences)\"&$B16,Tab_IFT!$B:$B&Tab_IFT!$A:$A&Tab_IFT!$C:$C,0),1)), \"NC\")","v":1},{"$f":"_xlfn.IFNA(_xlfn.IFNA(INDEX(Tab_IFT!H:H,MATCH($B$7&\"Hors herbicides (nouvelle méthode traitement de semences)\"&$B16,Tab_IFT!$B:$B&Tab_IFT!$A:$A&Tab_IFT!$C:$C,0),1), INDEX(Tab_IFT!H:H,MATCH(\"France métropolitaine\"&\"Hors herbicides (nouvelle méthode traitement de semences)\"&$B16,Tab_IFT!$B:$B&Tab_IFT!$A:$A&Tab_IFT!$C:$C,0),1)), \"NC\")","v":1},{"$f":"_xlfn.IFNA(_xlfn.IFNA(INDEX(Tab_IFT!I:I,MATCH($B$7&\"Hors herbicides (nouvelle méthode traitement de semences)\"&$B16,Tab_IFT!$B:$B&Tab_IFT!$A:$A&Tab_IFT!$C:$C,0),1), INDEX(Tab_IFT!I:I,MATCH(\"France métropolitaine\"&\"Hors herbicides (nouvelle méthode traitement de semences)\"&$B16,Tab_IFT!$B:$B&Tab_IFT!$A:$A&Tab_IFT!$C:$C,0),1)), \"NC\")","v":1.06},{"$f":"_xlfn.IFNA(_xlfn.IFNA(INDEX(Tab_IFT!J:J,MATCH($B$7&\"Hors herbicides (nouvelle méthode traitement de semences)\"&$B16,Tab_IFT!$B:$B&Tab_IFT!$A:$A&Tab_IFT!$C:$C,0),1), INDEX(Tab_IFT!J:J,MATCH(\"France métropolitaine\"&\"Hors herbicides (nouvelle méthode traitement de semences)\"&$B16,Tab_IFT!$B:$B&Tab_IFT!$A:$A&Tab_IFT!$C:$C,0),1)), \"NC\")","v":1.68},{"$f":"IF(AND((R16=INDEX(Tab_IFT!I:I,MATCH(\"France métropolitaine\"&\"Hors herbicides (nouvelle méthode traitement de semences)\"&$B16,Tab_IFT!$B:$B&Tab_IFT!$A:$A&Tab_IFT!$C:$C,0),1)),(S16=INDEX(Tab_IFT!J:J,MATCH(\"France métropolitaine\"&\"Hors herbicides (nouvelle méthode traitement de semences)\"&$B16,Tab_IFT!$B:$B&Tab_IFT!$A:$A&Tab_IFT!$C:$C,0),1))), \" → Valeurs nationales utilisées\",\"\")","v":" → Valeurs nationales utilisées"}]
[null,"Pois protéagineux",0,{"$f":"_xlfn.IFNA(INDEX(Tab_N!C:C,MATCH($B$7&$B17,Tab_N!$A:$A&Tab_N!$B:$B,0),1), INDEX(Tab_N!C:C,MATCH(\"France\"&$B17,Tab_N!$A:$A&Tab_N!$B:$B,0),1))","v":1.2},{"$f":"_xlfn.IFNA(_xlfn.IFNA(INDEX(Tab_IFT!D:D,MATCH($B$7&\"Herbicides\"&$B17,Tab_IFT!$B:$B&Tab_IFT!$A:$A&Tab_IFT!$C:$C,0),1), INDEX(Tab_IFT!D:D,MATCH(\"France métropolitaine\"&\"Herbicides\"&$B17,Tab_IFT!$B:$B&Tab_IFT!$A:$A&Tab_IFT!$C:$C,0),1)), \"NC\")","v":0.42},{"$f":"_xlfn.IFNA(_xlfn.IFNA(INDEX(Tab_IFT!E:E,MATCH($B$7&\"Herbicides\"&$B17,Tab_IFT!$B:$B&Tab_IFT!$A:$A&Tab_IFT!$C:$C,0),1), INDEX(Tab_IFT!E:E,MATCH(\"France métropolitaine\"&\"Herbicides\"&$B17,Tab_IFT!$B:$B&Tab_IFT!$A:$A&Tab_IFT!$C:$C,0),1)), \"NC\")","v":0.74},{"$f":"_xlfn.IFNA(_xlfn.IFNA(INDEX(Tab_IFT!F:F,MATCH($B$7&\"Herbicides\"&$B17,Tab_IFT!$B:$B&Tab_IFT!$A:$A&Tab_IFT!$C:$C,0),1), INDEX(Tab_IFT!F:F,MATCH(\"France métropolitaine\"&\"Herbicides\"&$B17,Tab_IFT!$B:$B&Tab_IFT!$A:$A&Tab_IFT!$C:$C,0),1)), \"NC\")","v":0.9},{"$f":"_xlfn.IFNA(_xlfn.IFNA(INDEX(Tab_IFT!G:G,MATCH($B$7&\"Herbicides\"&$B17,Tab_IFT!$B:$B&Tab_IFT!$A:$A&Tab_IFT!$C:$C,0),1), INDEX(Tab_IFT!G:G,MATCH(\"France métropolitaine\"&\"Herbicides\"&$B17,Tab_IFT!$B:$B&Tab_IFT!$A:$A&Tab_IFT!$C:$C,0),1)), \"NC\")","v":1.06},{"$f":"_xlfn.IFNA(_xlfn.IFNA(INDEX(Tab_IFT!H:H,MATCH($B$7&\"Herbicides\"&$B17,Tab_IFT!$B:$B&Tab_IFT!$A:$A&Tab_IFT!$C:$C,0),1), INDEX(Tab_IFT!H:H,MATCH(\"France métropolitaine\"&\"Herbicides\"&$B17,Tab_IFT!$B:$B&Tab_IFT!$A:$A&Tab_IFT!$C:$C,0),1)), \"NC\")","v":1.25},{"$f":"_xlfn.IFNA(_xlfn.IFNA(INDEX(Tab_IFT!I:I,MATCH($B$7&\"Herbicides\"&$B17,Tab_IFT!$B:$B&Tab_IFT!$A:$A&Tab_IFT!$C:$C,0),1), INDEX(Tab_IFT!I:I,MATCH(\"France métropolitaine\"&\"Herbicides\"&$B17,Tab_IFT!$B:$B&Tab_IFT!$A:$A&Tab_IFT!$C:$C,0),1)), \"NC\")","v":1.41},{"$f":"_xlfn.IFNA(_xlfn.IFNA(INDEX(Tab_IFT!J:J,MATCH($B$7&\"Herbicides\"&$B17,Tab_IFT!$B:$B&Tab_IFT!$A:$A&Tab_IFT!$C:$C,0),1), INDEX(Tab_IFT!J:J,MATCH(\"France métropolitaine\"&\"Herbicides\"&$B17,Tab_IFT!$B:$B&Tab_IFT!$A:$A&Tab_IFT!$C:$C,0),1)), \"NC\")","v":1.63},{"$f":"IF(AND((K17=INDEX(Tab_IFT!J:J,MATCH(\"France métropolitaine\"&\"Herbicides\"&$B17,Tab_IFT!$B:$B&Tab_IFT!$A:$A&Tab_IFT!$C:$C,0),1)),(J17=INDEX(Tab_IFT!I:I,MATCH(\"France métropolitaine\"&\"Herbicides\"&$B17,Tab_IFT!$B:$B&Tab_IFT!$A:$A&Tab_IFT!$C:$C,0),1))), \" → Valeurs nationales utilisées\",\"\")","v":" → Valeurs nationales utilisées"},{"$f":"_xlfn.IFNA(_xlfn.IFNA(INDEX(Tab_IFT!D:D,MATCH($B$7&\"Hors herbicides (nouvelle méthode traitement de semences)\"&$B17,Tab_IFT!$B:$B&Tab_IFT!$A:$A&Tab_IFT!$C:$C,0),1), INDEX(Tab_IFT!D:D,MATCH(\"France métropolitaine\"&\"Hors herbicides (nouvelle méthode traitement de semences)\"&$B17,Tab_IFT!$B:$B&Tab_IFT!$A:$A&Tab_IFT!$C:$C,0),1)), \"NC\")","v":0.91},{"$f":"_xlfn.IFNA(_xlfn.IFNA(INDEX(Tab_IFT!E:E,MATCH($B$7&\"Hors herbicides (nouvelle méthode traitement de semences)\"&$B17,Tab_IFT!$B:$B&Tab_IFT!$A:$A&Tab_IFT!$C:$C,0),1), INDEX(Tab_IFT!E:E,MATCH(\"France métropolitaine\"&\"Hors herbicides (nouvelle méthode traitement de semences)\"&$B17,Tab_IFT!$B:$B&Tab_IFT!$A:$A&Tab_IFT!$C:$C,0),1)), \"NC\")","v":1.78},{"$f":"_xlfn.IFNA(_xlfn.IFNA(INDEX(Tab_IFT!F:F,MATCH($B$7&\"Hors herbicides (nouvelle méthode traitement de semences)\"&$B17,Tab_IFT!$B:$B&Tab_IFT!$A:$A&Tab_IFT!$C:$C,0),1), INDEX(Tab_IFT!F:F,MATCH(\"France métropolitaine\"&\"Hors herbicides (nouvelle méthode traitement de semences)\"&$B17,Tab_IFT!$B:$B&Tab_IFT!$A:$A&Tab_IFT!$C:$C,0),1)), \"NC\")","v":2.2999999999999998},{"$f":"_xlfn.IFNA(_xlfn.IFNA(INDEX(Tab_IFT!G:G,MATCH($B$7&\"Hors herbicides (nouvelle méthode traitement de semences)\"&$B17,Tab_IFT!$B:$B&Tab_IFT!$A:$A&Tab_IFT!$C:$C,0),1), INDEX(Tab_IFT!G:G,MATCH(\"France métropolitaine\"&\"Hors herbicides (nouvelle méthode traitement de semences)\"&$B17,Tab_IFT!$B:$B&Tab_IFT!$A:$A&Tab_IFT!$C:$C,0),1)), \"NC\")","v":2.78},{"$f":"_xlfn.IFNA(_xlfn.IFNA(INDEX(Tab_IFT!H:H,MATCH($B$7&\"Hors herbicides (nouvelle méthode traitement de semences)\"&$B17,Tab_IFT!$B:$B&Tab_IFT!$A:$A&Tab_IFT!$C:$C,0),1), INDEX(Tab_IFT!H:H,MATCH(\"France métropolitaine\"&\"Hors herbicides (nouvelle méthode traitement de semences)\"&$B17,Tab_IFT!$B:$B&Tab_IFT!$A:$A&Tab_IFT!$C:$C,0),1)), \"NC\")","v":3.22},{"$f":"_xlfn.IFNA(_xlfn.IFNA(INDEX(Tab_IFT!I:I,MATCH($B$7&\"Hors herbicides (nouvelle méthode traitement de semences)\"&$B17,Tab_IFT!$B:$B&Tab_IFT!$A:$A&Tab_IFT!$C:$C,0),1), INDEX(Tab_IFT!I:I,MATCH(\"France métropolitaine\"&\"Hors herbicides (nouvelle méthode traitement de semences)\"&$B17,Tab_IFT!$B:$B&Tab_IFT!$A:$A&Tab_IFT!$C:$C,0),1)), \"NC\")","v":3.65},{"$f":"_xlfn.IFNA(_xlfn.IFNA(INDEX(Tab_IFT!J:J,MATCH($B$7&\"Hors herbicides (nouvelle méthode traitement de semences)\"&$B17,Tab_IFT!$B:$B&Tab_IFT!$A:$A&Tab_IFT!$C:$C,0),1), INDEX(Tab_IFT!J:J,MATCH(\"France métropolitaine\"&\"Hors herbicides (nouvelle méthode traitement de semences)\"&$B17,Tab_IFT!$B:$B&Tab_IFT!$A:$A&Tab_IFT!$C:$C,0),1)), \"NC\")","v":4.03},{"$f":"IF(AND((R17=INDEX(Tab_IFT!I:I,MATCH(\"France métropolitaine\"&\"Hors herbicides (nouvelle méthode traitement de semences)\"&$B17,Tab_IFT!$B:$B&Tab_IFT!$A:$A&Tab_IFT!$C:$C,0),1)),(S17=INDEX(Tab_IFT!J:J,MATCH(\"France métropolitaine\"&\"Hors herbicides (nouvelle méthode traitement de semences)\"&$B17,Tab_IFT!$B:$B&Tab_IFT!$A:$A&Tab_IFT!$C:$C,0),1))), \" → Valeurs nationales utilisées\",\"\")","v":" → Valeurs nationales utilisées"}]
[null,"Maïs fourrage",0,{"$f":"_xlfn.IFNA(INDEX(Tab_N!C:C,MATCH($B$7&$B18,Tab_N!$A:$A&Tab_N!$B:$B,0),1), INDEX(Tab_N!C:C,MATCH(\"France\"&$B18,Tab_N!$A:$A&Tab_N!$B:$B,0),1))","v":62.4},{"$f":"_xlfn.IFNA(_xlfn.IFNA(INDEX(Tab_IFT!D:D,MATCH($B$7&\"Herbicides\"&$B18,Tab_IFT!$B:$B&Tab_IFT!$A:$A&Tab_IFT!$C:$C,0),1), INDEX(Tab_IFT!D:D,MATCH(\"France métropolitaine\"&\"Herbicides\"&$B18,Tab_IFT!$B:$B&Tab_IFT!$A:$A&Tab_IFT!$C:$C,0),1)), \"NC\")","v":0.71},{"$f":"_xlfn.IFNA(_xlfn.IFNA(INDEX(Tab_IFT!E:E,MATCH($B$7&\"Herbicides\"&$B18,Tab_IFT!$B:$B&Tab_IFT!$A:$A&Tab_IFT!$C:$C,0),1), INDEX(Tab_IFT!E:E,MATCH(\"France métropolitaine\"&\"Herbicides\"&$B18,Tab_IFT!$B:$B&Tab_IFT!$A:$A&Tab_IFT!$C:$C,0),1)), \"NC\")","v":0.91},{"$f":"_xlfn.IFNA(_xlfn.IFNA(INDEX(Tab_IFT!F:F,MATCH($B$7&\"Herbicides\"&$B18,Tab_IFT!$B:$B&Tab_IFT!$A:$A&Tab_IFT!$C:$C,0),1), INDEX(Tab_IFT!F:F,MATCH(\"France métropolitaine\"&\"Herbicides\"&$B18,Tab_IFT!$B:$B&Tab_IFT!$A:$A&Tab_IFT!$C:$C,0),1)), \"NC\")","v":1.03},{"$f":"_xlfn.IFNA(_xlfn.IFNA(INDEX(Tab_IFT!G:G,MATCH($B$7&\"Herbicides\"&$B18,Tab_IFT!$B:$B&Tab_IFT!$A:$A&Tab_IFT!$C:$C,0),1), INDEX(Tab_IFT!G:G,MATCH(\"France métropolitaine\"&\"Herbicides\"&$B18,Tab_IFT!$B:$B&Tab_IFT!$A:$A&Tab_IFT!$C:$C,0),1)), \"NC\")","v":1.2},{"$f":"_xlfn.IFNA(_xlfn.IFNA(INDEX(Tab_IFT!H:H,MATCH($B$7&\"Herbicides\"&$B18,Tab_IFT!$B:$B&Tab_IFT!$A:$A&Tab_IFT!$C:$C,0),1), INDEX(Tab_IFT!H:H,MATCH(\"France métropolitaine\"&\"Herbicides\"&$B18,Tab_IFT!$B:$B&Tab_IFT!$A:$A&Tab_IFT!$C:$C,0),1)), \"NC\")","v":1.37},{"$f":"_xlfn.IFNA(_xlfn.IFNA(INDEX(Tab_IFT!I:I,MATCH($B$7&\"Herbicides\"&$B18,Tab_IFT!$B:$B&Tab_IFT!$A:$A&Tab_IFT!$C:$C,0),1), INDEX(Tab_IFT!I:I,MATCH(\"France métropolitaine\"&\"Herbicides\"&$B18,Tab_IFT!$B:$B&Tab_IFT!$A:$A&Tab_IFT!$C:$C,0),1)), \"NC\")","v":1.52},{"$f":"_xlfn.IFNA(_xlfn.IFNA(INDEX(Tab_IFT!J:J,MATCH($B$7&\"Herbicides\"&$B18,Tab_IFT!$B:$B&Tab_IFT!$A:$A&Tab_IFT!$C:$C,0),1), INDEX(Tab_IFT!J:J,MATCH(\"France métropolitaine\"&\"Herbicides\"&$B18,Tab_IFT!$B:$B&Tab_IFT!$A:$A&Tab_IFT!$C:$C,0),1)), \"NC\")","v":1.71},{"$f":"IF(AND((K18=INDEX(Tab_IFT!J:J,MATCH(\"France métropolitaine\"&\"Herbicides\"&$B18,Tab_IFT!$B:$B&Tab_IFT!$A:$A&Tab_IFT!$C:$C,0),1)),(J18=INDEX(Tab_IFT!I:I,MATCH(\"France métropolitaine\"&\"Herbicides\"&$B18,Tab_IFT!$B:$B&Tab_IFT!$A:$A&Tab_IFT!$C:$C,0),1))), \" → Valeurs nationales utilisées\",\"\")","v":" → Valeurs nationales utilisées"},{"$f":"_xlfn.IFNA(_xlfn.IFNA(INDEX(Tab_IFT!D:D,MATCH($B$7&\"Hors herbicides (nouvelle méthode traitement de semences)\"&$B18,Tab_IFT!$B:$B&Tab_IFT!$A:$A&Tab_IFT!$C:$C,0),1), INDEX(Tab_IFT!D:D,MATCH(\"France métropolitaine\"&\"Hors herbicides (nouvelle méthode traitement de semences)\"&$B18,Tab_IFT!$B:$B&Tab_IFT!$A:$A&Tab_IFT!$C:$C,0),1)), \"NC\")","v":0.67},{"$f":"_xlfn.IFNA(_xlfn.IFNA(INDEX(Tab_IFT!E:E,MATCH($B$7&\"Hors herbicides (nouvelle méthode traitement de semences)\"&$B18,Tab_IFT!$B:$B&Tab_IFT!$A:$A&Tab_IFT!$C:$C,0),1), INDEX(Tab_IFT!E:E,MATCH(\"France métropolitaine\"&\"Hors herbicides (nouvelle méthode traitement de semences)\"&$B18,Tab_IFT!$B:$B&Tab_IFT!$A:$A&Tab_IFT!$C:$C,0),1)), \"NC\")","v":1},{"$f":"_xlfn.IFNA(_xlfn.IFNA(INDEX(Tab_IFT!F:F,MATCH($B$7&\"Hors herbicides (nouvelle méthode traitement de semences)\"&$B18,Tab_IFT!$B:$B&Tab_IFT!$A:$A&Tab_IFT!$C:$C,0),1), INDEX(Tab_IFT!F:F,MATCH(\"France métropolitaine\"&\"Hors herbicides (nouvelle méthode traitement de semences)\"&$B18,Tab_IFT!$B:$B&Tab_IFT!$A:$A&Tab_IFT!$C:$C,0),1)), \"NC\")","v":1},{"$f":"_xlfn.IFNA(_xlfn.IFNA(INDEX(Tab_IFT!G:G,MATCH($B$7&\"Hors herbicides (nouvelle méthode traitement de semences)\"&$B18,Tab_IFT!$B:$B&Tab_IFT!$A:$A&Tab_IFT!$C:$C,0),1), INDEX(Tab_IFT!G:G,MATCH(\"France métropolitaine\"&\"Hors herbicides (nouvelle méthode traitement de semences)\"&$B18,Tab_IFT!$B:$B&Tab_IFT!$A:$A&Tab_IFT!$C:$C,0),1)), \"NC\")","v":1},{"$f":"_xlfn.IFNA(_xlfn.IFNA(INDEX(Tab_IFT!H:H,MATCH($B$7&\"Hors herbicides (nouvelle méthode traitement de semences)\"&$B18,Tab_IFT!$B:$B&Tab_IFT!$A:$A&Tab_IFT!$C:$C,0),1), INDEX(Tab_IFT!H:H,MATCH(\"France métropolitaine\"&\"Hors herbicides (nouvelle méthode traitement de semences)\"&$B18,Tab_IFT!$B:$B&Tab_IFT!$A:$A&Tab_IFT!$C:$C,0),1)), \"NC\")","v":1},{"$f":"_xlfn.IFNA(_xlfn.IFNA(INDEX(Tab_IFT!I:I,MATCH($B$7&\"Hors herbicides (nouvelle méthode traitement de semences)\"&$B18,Tab_IFT!$B:$B&Tab_IFT!$A:$A&Tab_IFT!$C:$C,0),1), INDEX(Tab_IFT!I:I,MATCH(\"France métropolitaine\"&\"Hors herbicides (nouvelle méthode traitement de semences)\"&$B18,Tab_IFT!$B:$B&Tab_IFT!$A:$A&Tab_IFT!$C:$C,0),1)), \"NC\")","v":1},{"$f":"_xlfn.IFNA(_xlfn.IFNA(INDEX(Tab_IFT!J:J,MATCH($B$7&\"Hors herbicides (nouvelle méthode traitement de semences)\"&$B18,Tab_IFT!$B:$B&Tab_IFT!$A:$A&Tab_IFT!$C:$C,0),1), INDEX(Tab_IFT!J:J,MATCH(\"France métropolitaine\"&\"Hors herbicides (nouvelle méthode traitement de semences)\"&$B18,Tab_IFT!$B:$B&Tab_IFT!$A:$A&Tab_IFT!$C:$C,0),1)), \"NC\")","v":1},{"$f":"IF(AND((R18=INDEX(Tab_IFT!I:I,MATCH(\"France métropolitaine\"&\"Hors herbicides (nouvelle méthode traitement de semences)\"&$B18,Tab_IFT!$B:$B&Tab_IFT!$A:$A&Tab_IFT!$C:$C,0),1)),(S18=INDEX(Tab_IFT!J:J,MATCH(\"France métropolitaine\"&\"Hors herbicides (nouvelle méthode traitement de semences)\"&$B18,Tab_IFT!$B:$B&Tab_IFT!$A:$A&Tab_IFT!$C:$C,0),1))), \" → Valeurs nationales utilisées\",\"\")","v":" → Valeurs nationales utilisées"}]
[null,"Maïs grain",0,{"$f":"_xlfn.IFNA(INDEX(Tab_N!C:C,MATCH($B$7&$B19,Tab_N!$A:$A&Tab_N!$B:$B,0),1), INDEX(Tab_N!C:C,MATCH(\"France\"&$B19,Tab_N!$A:$A&Tab_N!$B:$B,0),1))","v":178.9},{"$f":"_xlfn.IFNA(_xlfn.IFNA(INDEX(Tab_IFT!D:D,MATCH($B$7&\"Herbicides\"&$B19,Tab_IFT!$B:$B&Tab_IFT!$A:$A&Tab_IFT!$C:$C,0),1), INDEX(Tab_IFT!D:D,MATCH(\"France métropolitaine\"&\"Herbicides\"&$B19,Tab_IFT!$B:$B&Tab_IFT!$A:$A&Tab_IFT!$C:$C,0),1)), \"NC\")","v":0.99},{"$f":"_xlfn.IFNA(_xlfn.IFNA(INDEX(Tab_IFT!E:E,MATCH($B$7&\"Herbicides\"&$B19,Tab_IFT!$B:$B&Tab_IFT!$A:$A&Tab_IFT!$C:$C,0),1), INDEX(Tab_IFT!E:E,MATCH(\"France métropolitaine\"&\"Herbicides\"&$B19,Tab_IFT!$B:$B&Tab_IFT!$A:$A&Tab_IFT!$C:$C,0),1)), \"NC\")","v":1.1200000000000001},{"$f":"_xlfn.IFNA(_xlfn.IFNA(INDEX(Tab_IFT!F:F,MATCH($B$7&\"Herbicides\"&$B19,Tab_IFT!$B:$B&Tab_IFT!$A:$A&Tab_IFT!$C:$C,0),1), INDEX(Tab_IFT!F:F,MATCH(\"France métropolitaine\"&\"Herbicides\"&$B19,Tab_IFT!$B:$B&Tab_IFT!$A:$A&Tab_IFT!$C:$C,0),1)), \"NC\")","v":1.25},{"$f":"_xlfn.IFNA(_xlfn.IFNA(INDEX(Tab_IFT!G:G,MATCH($B$7&\"Herbicides\"&$B19,Tab_IFT!$B:$B&Tab_IFT!$A:$A&Tab_IFT!$C:$C,0),1), INDEX(Tab_IFT!G:G,MATCH(\"France métropolitaine\"&\"Herbicides\"&$B19,Tab_IFT!$B:$B&Tab_IFT!$A:$A&Tab_IFT!$C:$C,0),1)), \"NC\")","v":1.36},{"$f":"_xlfn.IFNA(_xlfn.IFNA(INDEX(Tab_IFT!H:H,MATCH($B$7&\"Herbicides\"&$B19,Tab_IFT!$B:$B&Tab_IFT!$A:$A&Tab_IFT!$C:$C,0),1), INDEX(Tab_IFT!H:H,MATCH(\"France métropolitaine\"&\"Herbicides\"&$B19,Tab_IFT!$B:$B&Tab_IFT!$A:$A&Tab_IFT!$C:$C,0),1)), \"NC\")","v":1.5},{"$f":"_xlfn.IFNA(_xlfn.IFNA(INDEX(Tab_IFT!I:I,MATCH($B$7&\"Herbicides\"&$B19,Tab_IFT!$B:$B&Tab_IFT!$A:$A&Tab_IFT!$C:$C,0),1), INDEX(Tab_IFT!I:I,MATCH(\"France métropolitaine\"&\"Herbicides\"&$B19,Tab_IFT!$B:$B&Tab_IFT!$A:$A&Tab_IFT!$C:$C,0),1)), \"NC\")","v":1.63},{"$f":"_xlfn.IFNA(_xlfn.IFNA(INDEX(Tab_IFT!J:J,MATCH($B$7&\"Herbicides\"&$B19,Tab_IFT!$B:$B&Tab_IFT!$A:$A&Tab_IFT!$C:$C,0),1), INDEX(Tab_IFT!J:J,MATCH(\"France métropolitaine\"&\"Herbicides\"&$B19,Tab_IFT!$B:$B&Tab_IFT!$A:$A&Tab_IFT!$C:$C,0),1)), \"NC\")","v":1.73},{"$f":"IF(AND((K19=INDEX(Tab_IFT!J:J,MATCH(\"France métropolitaine\"&\"Herbicides\"&$B19,Tab_IFT!$B:$B&Tab_IFT!$A:$A&Tab_IFT!$C:$C,0),1)),(J19=INDEX(Tab_IFT!I:I,MATCH(\"France métropolitaine\"&\"Herbicides\"&$B19,Tab_IFT!$B:$B&Tab_IFT!$A:$A&Tab_IFT!$C:$C,0),1))), \" → Valeurs nationales utilisées\",\"\")","v":""},{"$f":"_xlfn.IFNA(_xlfn.IFNA(INDEX(Tab_IFT!D:D,MATCH($B$7&\"Hors herbicides (nouvelle méthode traitement de semences)\"&$B19,Tab_IFT!$B:$B&Tab_IFT!$A:$A&Tab_IFT!$C:$C,0),1), INDEX(Tab_IFT!D:D,MATCH(\"France métropolitaine\"&\"Hors herbicides (nouvelle méthode traitement de semences)\"&$B19,Tab_IFT!$B:$B&Tab_IFT!$A:$A&Tab_IFT!$C:$C,0),1)), \"NC\")","v":0.94},{"$f":"_xlfn.IFNA(_xlfn.IFNA(INDEX(Tab_IFT!E:E,MATCH($B$7&\"Hors herbicides (nouvelle méthode traitement de semences)\"&$B19,Tab_IFT!$B:$B&Tab_IFT!$A:$A&Tab_IFT!$C:$C,0),1), INDEX(Tab_IFT!E:E,MATCH(\"France métropolitaine\"&\"Hors herbicides (nouvelle méthode traitement de semences)\"&$B19,Tab_IFT!$B:$B&Tab_IFT!$A:$A&Tab_IFT!$C:$C,0),1)), \"NC\")","v":1},{"$f":"_xlfn.IFNA(_xlfn.IFNA(INDEX(Tab_IFT!F:F,MATCH($B$7&\"Hors herbicides (nouvelle méthode traitement de semences)\"&$B19,Tab_IFT!$B:$B&Tab_IFT!$A:$A&Tab_IFT!$C:$C,0),1), INDEX(Tab_IFT!F:F,MATCH(\"France métropolitaine\"&\"Hors herbicides (nouvelle méthode traitement de semences)\"&$B19,Tab_IFT!$B:$B&Tab_IFT!$A:$A&Tab_IFT!$C:$C,0),1)), \"NC\")","v":1},{"$f":"_xlfn.IFNA(_xlfn.IFNA(INDEX(Tab_IFT!G:G,MATCH($B$7&\"Hors herbicides (nouvelle méthode traitement de semences)\"&$B19,Tab_IFT!$B:$B&Tab_IFT!$A:$A&Tab_IFT!$C:$C,0),1), INDEX(Tab_IFT!G:G,MATCH(\"France métropolitaine\"&\"Hors herbicides (nouvelle méthode traitement de semences)\"&$B19,Tab_IFT!$B:$B&Tab_IFT!$A:$A&Tab_IFT!$C:$C,0),1)), \"NC\")","v":1.21},{"$f":"_xlfn.IFNA(_xlfn.IFNA(INDEX(Tab_IFT!H:H,MATCH($B$7&\"Hors herbicides (nouvelle méthode traitement de semences)\"&$B19,Tab_IFT!$B:$B&Tab_IFT!$A:$A&Tab_IFT!$C:$C,0),1), INDEX(Tab_IFT!H:H,MATCH(\"France métropolitaine\"&\"Hors herbicides (nouvelle méthode traitement de semences)\"&$B19,Tab_IFT!$B:$B&Tab_IFT!$A:$A&Tab_IFT!$C:$C,0),1)), \"NC\")","v":1.3},{"$f":"_xlfn.IFNA(_xlfn.IFNA(INDEX(Tab_IFT!I:I,MATCH($B$7&\"Hors herbicides (nouvelle méthode traitement de semences)\"&$B19,Tab_IFT!$B:$B&Tab_IFT!$A:$A&Tab_IFT!$C:$C,0),1), INDEX(Tab_IFT!I:I,MATCH(\"France métropolitaine\"&\"Hors herbicides (nouvelle méthode traitement de semences)\"&$B19,Tab_IFT!$B:$B&Tab_IFT!$A:$A&Tab_IFT!$C:$C,0),1)), \"NC\")","v":1.33},{"$f":"_xlfn.IFNA(_xlfn.IFNA(INDEX(Tab_IFT!J:J,MATCH($B$7&\"Hors herbicides (nouvelle méthode traitement de semences)\"&$B19,Tab_IFT!$B:$B&Tab_IFT!$A:$A&Tab_IFT!$C:$C,0),1), INDEX(Tab_IFT!J:J,MATCH(\"France métropolitaine\"&\"Hors herbicides (nouvelle méthode traitement de semences)\"&$B19,Tab_IFT!$B:$B&Tab_IFT!$A:$A&Tab_IFT!$C:$C,0),1)), \"NC\")","v":1.65},{"$f":"IF(AND((R19=INDEX(Tab_IFT!I:I,MATCH(\"France métropolitaine\"&\"Hors herbicides (nouvelle méthode traitement de semences)\"&$B19,Tab_IFT!$B:$B&Tab_IFT!$A:$A&Tab_IFT!$C:$C,0),1)),(S19=INDEX(Tab_IFT!J:J,MATCH(\"France métropolitaine\"&\"Hors herbicides (nouvelle méthode traitement de semences)\"&$B19,Tab_IFT!$B:$B&Tab_IFT!$A:$A&Tab_IFT!$C:$C,0),1))), \" → Valeurs nationales utilisées\",\"\")","v":""}]
[null,"Betterave sucrière",0,{"$f":"_xlfn.IFNA(INDEX(Tab_N!C:C,MATCH($B$7&$B20,Tab_N!$A:$A&Tab_N!$B:$B,0),1), INDEX(Tab_N!C:C,MATCH(\"France\"&$B20,Tab_N!$A:$A&Tab_N!$B:$B,0),1))","v":82.3},{"$f":"_xlfn.IFNA(_xlfn.IFNA(INDEX(Tab_IFT!D:D,MATCH($B$7&\"Herbicides\"&$B20,Tab_IFT!$B:$B&Tab_IFT!$A:$A&Tab_IFT!$C:$C,0),1), INDEX(Tab_IFT!D:D,MATCH(\"France métropolitaine\"&\"Herbicides\"&$B20,Tab_IFT!$B:$B&Tab_IFT!$A:$A&Tab_IFT!$C:$C,0),1)), \"NC\")","v":1.64},{"$f":"_xlfn.IFNA(_xlfn.IFNA(INDEX(Tab_IFT!E:E,MATCH($B$7&\"Herbicides\"&$B20,Tab_IFT!$B:$B&Tab_IFT!$A:$A&Tab_IFT!$C:$C,0),1), INDEX(Tab_IFT!E:E,MATCH(\"France métropolitaine\"&\"Herbicides\"&$B20,Tab_IFT!$B:$B&Tab_IFT!$A:$A&Tab_IFT!$C:$C,0),1)), \"NC\")","v":2.09},{"$f":"_xlfn.IFNA(_xlfn.IFNA(INDEX(Tab_IFT!F:F,MATCH($B$7&\"Herbicides\"&$B20,Tab_IFT!$B:$B&Tab_IFT!$A:$A&Tab_IFT!$C:$C,0),1), INDEX(Tab_IFT!F:F,MATCH(\"France métropolitaine\"&\"Herbicides\"&$B20,Tab_IFT!$B:$B&Tab_IFT!$A:$A&Tab_IFT!$C:$C,0),1)), \"NC\")","v":2.35},{"$f":"_xlfn.IFNA(_xlfn.IFNA(INDEX(Tab_IFT!G:G,MATCH($B$7&\"Herbicides\"&$B20,Tab_IFT!$B:$B&Tab_IFT!$A:$A&Tab_IFT!$C:$C,0),1), INDEX(Tab_IFT!G:G,MATCH(\"France métropolitaine\"&\"Herbicides\"&$B20,Tab_IFT!$B:$B&Tab_IFT!$A:$A&Tab_IFT!$C:$C,0),1)), \"NC\")","v":2.59},{"$f":"_xlfn.IFNA(_xlfn.IFNA(INDEX(Tab_IFT!H:H,MATCH($B$7&\"Herbicides\"&$B20,Tab_IFT!$B:$B&Tab_IFT!$A:$A&Tab_IFT!$C:$C,0),1), INDEX(Tab_IFT!H:H,MATCH(\"France métropolitaine\"&\"Herbicides\"&$B20,Tab_IFT!$B:$B&Tab_IFT!$A:$A&Tab_IFT!$C:$C,0),1)), \"NC\")","v":2.81},{"$f":"_xlfn.IFNA(_xlfn.IFNA(INDEX(Tab_IFT!I:I,MATCH($B$7&\"Herbicides\"&$B20,Tab_IFT!$B:$B&Tab_IFT!$A:$A&Tab_IFT!$C:$C,0),1), INDEX(Tab_IFT!I:I,MATCH(\"France métropolitaine\"&\"Herbicides\"&$B20,Tab_IFT!$B:$B&Tab_IFT!$A:$A&Tab_IFT!$C:$C,0),1)), \"NC\")","v":3.07},{"$f":"_xlfn.IFNA(_xlfn.IFNA(INDEX(Tab_IFT!J:J,MATCH($B$7&\"Herbicides\"&$B20,Tab_IFT!$B:$B&Tab_IFT!$A:$A&Tab_IFT!$C:$C,0),1), INDEX(Tab_IFT!J:J,MATCH(\"France métropolitaine\"&\"Herbicides\"&$B20,Tab_IFT!$B:$B&Tab_IFT!$A:$A&Tab_IFT!$C:$C,0),1)), \"NC\")","v":3.38},{"$f":"IF(AND((K20=INDEX(Tab_IFT!J:J,MATCH(\"France métropolitaine\"&\"Herbicides\"&$B20,Tab_IFT!$B:$B&Tab_IFT!$A:$A&Tab_IFT!$C:$C,0),1)),(J20=INDEX(Tab_IFT!I:I,MATCH(\"France métropolitaine\"&\"Herbicides\"&$B20,Tab_IFT!$B:$B&Tab_IFT!$A:$A&Tab_IFT!$C:$C,0),1))), \" → Valeurs nationales utilisées\",\"\")","v":" → Valeurs nationales utilisées"},{"$f":"_xlfn.IFNA(_xlfn.IFNA(INDEX(Tab_IFT!D:D,MATCH($B$7&\"Hors herbicides (nouvelle méthode traitement de semences)\"&$B20,Tab_IFT!$B:$B&Tab_IFT!$A:$A&Tab_IFT!$C:$C,0),1), INDEX(Tab_IFT!D:D,MATCH(\"France métropolitaine\"&\"Hors herbicides (nouvelle méthode traitement de semences)\"&$B20,Tab_IFT!$B:$B&Tab_IFT!$A:$A&Tab_IFT!$C:$C,0),1)), \"NC\")","v":1.79},{"$f":"_xlfn.IFNA(_xlfn.IFNA(INDEX(Tab_IFT!E:E,MATCH($B$7&\"Hors herbicides (nouvelle méthode traitement de semences)\"&$B20,Tab_IFT!$B:$B&Tab_IFT!$A:$A&Tab_IFT!$C:$C,0),1), INDEX(Tab_IFT!E:E,MATCH(\"France métropolitaine\"&\"Hors herbicides (nouvelle méthode traitement de semences)\"&$B20,Tab_IFT!$B:$B&Tab_IFT!$A:$A&Tab_IFT!$C:$C,0),1)), \"NC\")","v":2},{"$f":"_xlfn.IFNA(_xlfn.IFNA(INDEX(Tab_IFT!F:F,MATCH($B$7&\"Hors herbicides (nouvelle méthode traitement de semences)\"&$B20,Tab_IFT!$B:$B&Tab_IFT!$A:$A&Tab_IFT!$C:$C,0),1), INDEX(Tab_IFT!F:F,MATCH(\"France métropolitaine\"&\"Hors herbicides (nouvelle méthode traitement de semences)\"&$B20,Tab_IFT!$B:$B&Tab_IFT!$A:$A&Tab_IFT!$C:$C,0),1)), \"NC\")","v":2.1800000000000002},{"$f":"_xlfn.IFNA(_xlfn.IFNA(INDEX(Tab_IFT!G:G,MATCH($B$7&\"Hors herbicides (nouvelle méthode traitement de semences)\"&$B20,Tab_IFT!$B:$B&Tab_IFT!$A:$A&Tab_IFT!$C:$C,0),1), INDEX(Tab_IFT!G:G,MATCH(\"France métropolitaine\"&\"Hors herbicides (nouvelle méthode traitement de semences)\"&$B20,Tab_IFT!$B:$B&Tab_IFT!$A:$A&Tab_IFT!$C:$C,0),1)), \"NC\")","v":2.4300000000000002},{"$f":"_xlfn.IFNA(_xlfn.IFNA(INDEX(Tab_IFT!H:H,MATCH($B$7&\"Hors herbicides (nouvelle méthode traitement de semences)\"&$B20,Tab_IFT!$B:$B&Tab_IFT!$A:$A&Tab_IFT!$C:$C,0),1), INDEX(Tab_IFT!H:H,MATCH(\"France métropolitaine\"&\"Hors herbicides (nouvelle méthode traitement de semences)\"&$B20,Tab_IFT!$B:$B&Tab_IFT!$A:$A&Tab_IFT!$C:$C,0),1)), \"NC\")","v":2.81},{"$f":"_xlfn.IFNA(_xlfn.IFNA(INDEX(Tab_IFT!I:I,MATCH($B$7&\"Hors herbicides (nouvelle méthode traitement de semences)\"&$B20,Tab_IFT!$B:$B&Tab_IFT!$A:$A&Tab_IFT!$C:$C,0),1), INDEX(Tab_IFT!I:I,MATCH(\"France métropolitaine\"&\"Hors herbicides (nouvelle méthode traitement de semences)\"&$B20,Tab_IFT!$B:$B&Tab_IFT!$A:$A&Tab_IFT!$C:$C,0),1)), \"NC\")","v":2.94},{"$f":"_xlfn.IFNA(_xlfn.IFNA(INDEX(Tab_IFT!J:J,MATCH($B$7&\"Hors herbicides (nouvelle méthode traitement de semences)\"&$B20,Tab_IFT!$B:$B&Tab_IFT!$A:$A&Tab_IFT!$C:$C,0),1), INDEX(Tab_IFT!J:J,MATCH(\"France métropolitaine\"&\"Hors herbicides (nouvelle méthode traitement de semences)\"&$B20,Tab_IFT!$B:$B&Tab_IFT!$A:$A&Tab_IFT!$C:$C,0),1)), \"NC\")","v":3.28},{"$f":"IF(AND((R20=INDEX(Tab_IFT!I:I,MATCH(\"France métropolitaine\"&\"Hors herbicides (nouvelle méthode traitement de semences)\"&$B20,Tab_IFT!$B:$B&Tab_IFT!$A:$A&Tab_IFT!$C:$C,0),1)),(S20=INDEX(Tab_IFT!J:J,MATCH(\"France métropolitaine\"&\"Hors herbicides (nouvelle méthode traitement de semences)\"&$B20,Tab_IFT!$B:$B&Tab_IFT!$A:$A&Tab_IFT!$C:$C,0),1))), \" → Valeurs nationales utilisées\",\"\")","v":" → Valeurs nationales utilisées"}]
[null,"Féverole",0,{"$f":"_xlfn.IFNA(INDEX(Tab_N!C:C,MATCH($B$7&$B21,Tab_N!$A:$A&Tab_N!$B:$B,0),1), INDEX(Tab_N!C:C,MATCH(\"France\"&$B21,Tab_N!$A:$A&Tab_N!$B:$B,0),1))","v":1.7},{"$f":"_xlfn.IFNA(_xlfn.IFNA(INDEX(Tab_IFT!D:D,MATCH($B$7&\"Herbicides\"&$B21,Tab_IFT!$B:$B&Tab_IFT!$A:$A&Tab_IFT!$C:$C,0),1), INDEX(Tab_IFT!D:D,MATCH(\"France métropolitaine\"&\"Herbicides\"&$B21,Tab_IFT!$B:$B&Tab_IFT!$A:$A&Tab_IFT!$C:$C,0),1)), \"NC\")","v":0},{"$f":"_xlfn.IFNA(_xlfn.IFNA(INDEX(Tab_IFT!E:E,MATCH($B$7&\"Herbicides\"&$B21,Tab_IFT!$B:$B&Tab_IFT!$A:$A&Tab_IFT!$C:$C,0),1), INDEX(Tab_IFT!E:E,MATCH(\"France métropolitaine\"&\"Herbicides\"&$B21,Tab_IFT!$B:$B&Tab_IFT!$A:$A&Tab_IFT!$C:$C,0),1)), \"NC\")","v":0},{"$f":"_xlfn.IFNA(_xlfn.IFNA(INDEX(Tab_IFT!F:F,MATCH($B$7&\"Herbicides\"&$B21,Tab_IFT!$B:$B&Tab_IFT!$A:$A&Tab_IFT!$C:$C,0),1), INDEX(Tab_IFT!F:F,MATCH(\"France métropolitaine\"&\"Herbicides\"&$B21,Tab_IFT!$B:$B&Tab_IFT!$A:$A&Tab_IFT!$C:$C,0),1)), \"NC\")","v":0.46},{"$f":"_xlfn.IFNA(_xlfn.IFNA(INDEX(Tab_IFT!G:G,MATCH($B$7&\"Herbicides\"&$B21,Tab_IFT!$B:$B&Tab_IFT!$A:$A&Tab_IFT!$C:$C,0),1), INDEX(Tab_IFT!G:G,MATCH(\"France métropolitaine\"&\"Herbicides\"&$B21,Tab_IFT!$B:$B&Tab_IFT!$A:$A&Tab_IFT!$C:$C,0),1)), \"NC\")","v":0.81},{"$f":"_xlfn.IFNA(_xlfn.IFNA(INDEX(Tab_IFT!H:H,MATCH($B$7&\"Herbicides\"&$B21,Tab_IFT!$B:$B&Tab_IFT!$A:$A&Tab_IFT!$C:$C,0),1), INDEX(Tab_IFT!H:H,MATCH(\"France métropolitaine\"&\"Herbicides\"&$B21,Tab_IFT!$B:$B&Tab_IFT!$A:$A&Tab_IFT!$C:$C,0),1)), \"NC\")","v":1.03},{"$f":"_xlfn.IFNA(_xlfn.IFNA(INDEX(Tab_IFT!I:I,MATCH($B$7&\"Herbicides\"&$B21,Tab_IFT!$B:$B&Tab_IFT!$A:$A&Tab_IFT!$C:$C,0),1), INDEX(Tab_IFT!I:I,MATCH(\"France métropolitaine\"&\"Herbicides\"&$B21,Tab_IFT!$B:$B&Tab_IFT!$A:$A&Tab_IFT!$C:$C,0),1)), \"NC\")","v":1.2},{"$f":"_xlfn.IFNA(_xlfn.IFNA(INDEX(Tab_IFT!J:J,MATCH($B$7&\"Herbicides\"&$B21,Tab_IFT!$B:$B&Tab_IFT!$A:$A&Tab_IFT!$C:$C,0),1), INDEX(Tab_IFT!J:J,MATCH(\"France métropolitaine\"&\"Herbicides\"&$B21,Tab_IFT!$B:$B&Tab_IFT!$A:$A&Tab_IFT!$C:$C,0),1)), \"NC\")","v":1.48},{"$f":"IF(AND((K21=INDEX(Tab_IFT!J:J,MATCH(\"France métropolitaine\"&\"Herbicides\"&$B21,Tab_IFT!$B:$B&Tab_IFT!$A:$A&Tab_IFT!$C:$C,0),1)),(J21=INDEX(Tab_IFT!I:I,MATCH(\"France métropolitaine\"&\"Herbicides\"&$B21,Tab_IFT!$B:$B&Tab_IFT!$A:$A&Tab_IFT!$C:$C,0),1))), \" → Valeurs nationales utilisées\",\"\")","v":" → Valeurs nationales utilisées"},{"$f":"_xlfn.IFNA(_xlfn.IFNA(INDEX(Tab_IFT!D:D,MATCH($B$7&\"Hors herbicides (nouvelle méthode traitement de semences)\"&$B21,Tab_IFT!$B:$B&Tab_IFT!$A:$A&Tab_IFT!$C:$C,0),1), INDEX(Tab_IFT!D:D,MATCH(\"France métropolitaine\"&\"Hors herbicides (nouvelle méthode traitement de semences)\"&$B21,Tab_IFT!$B:$B&Tab_IFT!$A:$A&Tab_IFT!$C:$C,0),1)), \"NC\")","v":0},{"$f":"_xlfn.IFNA(_xlfn.IFNA(INDEX(Tab_IFT!E:E,MATCH($B$7&\"Hors herbicides (nouvelle méthode traitement de semences)\"&$B21,Tab_IFT!$B:$B&Tab_IFT!$A:$A&Tab_IFT!$C:$C,0),1), INDEX(Tab_IFT!E:E,MATCH(\"France métropolitaine\"&\"Hors herbicides (nouvelle méthode traitement de semences)\"&$B21,Tab_IFT!$B:$B&Tab_IFT!$A:$A&Tab_IFT!$C:$C,0),1)), \"NC\")","v":0},{"$f":"_xlfn.IFNA(_xlfn.IFNA(INDEX(Tab_IFT!F:F,MATCH($B$7&\"Hors herbicides (nouvelle méthode traitement de semences)\"&$B21,Tab_IFT!$B:$B&Tab_IFT!$A:$A&Tab_IFT!$C:$C,0),1), INDEX(Tab_IFT!F:F,MATCH(\"France métropolitaine\"&\"Hors herbicides (nouvelle méthode traitement de semences)\"&$B21,Tab_IFT!$B:$B&Tab_IFT!$A:$A&Tab_IFT!$C:$C,0),1)), \"NC\")","v":0.38},{"$f":"_xlfn.IFNA(_xlfn.IFNA(INDEX(Tab_IFT!G:G,MATCH($B$7&\"Hors herbicides (nouvelle méthode traitement de semences)\"&$B21,Tab_IFT!$B:$B&Tab_IFT!$A:$A&Tab_IFT!$C:$C,0),1), INDEX(Tab_IFT!G:G,MATCH(\"France métropolitaine\"&\"Hors herbicides (nouvelle méthode traitement de semences)\"&$B21,Tab_IFT!$B:$B&Tab_IFT!$A:$A&Tab_IFT!$C:$C,0),1)), \"NC\")","v":1.1200000000000001},{"$f":"_xlfn.IFNA(_xlfn.IFNA(INDEX(Tab_IFT!H:H,MATCH($B$7&\"Hors herbicides (nouvelle méthode traitement de semences)\"&$B21,Tab_IFT!$B:$B&Tab_IFT!$A:$A&Tab_IFT!$C:$C,0),1), INDEX(Tab_IFT!H:H,MATCH(\"France métropolitaine\"&\"Hors herbicides (nouvelle méthode traitement de semences)\"&$B21,Tab_IFT!$B:$B&Tab_IFT!$A:$A&Tab_IFT!$C:$C,0),1)), \"NC\")","v":1.69},{"$f":"_xlfn.IFNA(_xlfn.IFNA(INDEX(Tab_IFT!I:I,MATCH($B$7&\"Hors herbicides (nouvelle méthode traitement de semences)\"&$B21,Tab_IFT!$B:$B&Tab_IFT!$A:$A&Tab_IFT!$C:$C,0),1), INDEX(Tab_IFT!I:I,MATCH(\"France métropolitaine\"&\"Hors herbicides (nouvelle méthode traitement de semences)\"&$B21,Tab_IFT!$B:$B&Tab_IFT!$A:$A&Tab_IFT!$C:$C,0),1)), \"NC\")","v":2.2200000000000002},{"$f":"_xlfn.IFNA(_xlfn.IFNA(INDEX(Tab_IFT!J:J,MATCH($B$7&\"Hors herbicides (nouvelle méthode traitement de semences)\"&$B21,Tab_IFT!$B:$B&Tab_IFT!$A:$A&Tab_IFT!$C:$C,0),1), INDEX(Tab_IFT!J:J,MATCH(\"France métropolitaine\"&\"Hors herbicides (nouvelle méthode traitement de semences)\"&$B21,Tab_IFT!$B:$B&Tab_IFT!$A:$A&Tab_IFT!$C:$C,0),1)), \"NC\")","v":2.79},{"$f":"IF(AND((R21=INDEX(Tab_IFT!I:I,MATCH(\"France métropolitaine\"&\"Hors herbicides (nouvelle méthode traitement de semences)\"&$B21,Tab_IFT!$B:$B&Tab_IFT!$A:$A&Tab_IFT!$C:$C,0),1)),(S21=INDEX(Tab_IFT!J:J,MATCH(\"France métropolitaine\"&\"Hors herbicides (nouvelle méthode traitement de semences)\"&$B21,Tab_IFT!$B:$B&Tab_IFT!$A:$A&Tab_IFT!$C:$C,0),1))), \" → Valeurs nationales utilisées\",\"\")","v":" → Valeurs nationales utilisées"}]
[null,"Soja",0,{"$f":"_xlfn.IFNA(INDEX(Tab_N!C:C,MATCH($B$7&$B22,Tab_N!$A:$A&Tab_N!$B:$B,0),1), INDEX(Tab_N!C:C,MATCH(\"France\"&$B22,Tab_N!$A:$A&Tab_N!$B:$B,0),1))","v":2.7},{"$f":"_xlfn.IFNA(_xlfn.IFNA(INDEX(Tab_IFT!D:D,MATCH($B$7&\"Herbicides\"&$B22,Tab_IFT!$B:$B&Tab_IFT!$A:$A&Tab_IFT!$C:$C,0),1), INDEX(Tab_IFT!D:D,MATCH(\"France métropolitaine\"&\"Herbicides\"&$B22,Tab_IFT!$B:$B&Tab_IFT!$A:$A&Tab_IFT!$C:$C,0),1)), \"NC\")","v":0},{"$f":"_xlfn.IFNA(_xlfn.IFNA(INDEX(Tab_IFT!E:E,MATCH($B$7&\"Herbicides\"&$B22,Tab_IFT!$B:$B&Tab_IFT!$A:$A&Tab_IFT!$C:$C,0),1), INDEX(Tab_IFT!E:E,MATCH(\"France métropolitaine\"&\"Herbicides\"&$B22,Tab_IFT!$B:$B&Tab_IFT!$A:$A&Tab_IFT!$C:$C,0),1)), \"NC\")","v":0.61},{"$f":"_xlfn.IFNA(_xlfn.IFNA(INDEX(Tab_IFT!F:F,MATCH($B$7&\"Herbicides\"&$B22,Tab_IFT!$B:$B&Tab_IFT!$A:$A&Tab_IFT!$C:$C,0),1), INDEX(Tab_IFT!F:F,MATCH(\"France métropolitaine\"&\"Herbicides\"&$B22,Tab_IFT!$B:$B&Tab_IFT!$A:$A&Tab_IFT!$C:$C,0),1)), \"NC\")","v":1.28},{"$f":"_xlfn.IFNA(_xlfn.IFNA(INDEX(Tab_IFT!G:G,MATCH($B$7&\"Herbicides\"&$B22,Tab_IFT!$B:$B&Tab_IFT!$A:$A&Tab_IFT!$C:$C,0),1), INDEX(Tab_IFT!G:G,MATCH(\"France métropolitaine\"&\"Herbicides\"&$B22,Tab_IFT!$B:$B&Tab_IFT!$A:$A&Tab_IFT!$C:$C,0),1)), \"NC\")","v":1.53},{"$f":"_xlfn.IFNA(_xlfn.IFNA(INDEX(Tab_IFT!H:H,MATCH($B$7&\"Herbicides\"&$B22,Tab_IFT!$B:$B&Tab_IFT!$A:$A&Tab_IFT!$C:$C,0),1), INDEX(Tab_IFT!H:H,MATCH(\"France métropolitaine\"&\"Herbicides\"&$B22,Tab_IFT!$B:$B&Tab_IFT!$A:$A&Tab_IFT!$C:$C,0),1)), \"NC\")","v":1.74},{"$f":"_xlfn.IFNA(_xlfn.IFNA(INDEX(Tab_IFT!I:I,MATCH($B$7&\"Herbicides\"&$B22,Tab_IFT!$B:$B&Tab_IFT!$A:$A&Tab_IFT!$C:$C,0),1), INDEX(Tab_IFT!I:I,MATCH(\"France métropolitaine\"&\"Herbicides\"&$B22,Tab_IFT!$B:$B&Tab_IFT!$A:$A&Tab_IFT!$C:$C,0),1)), \"NC\")","v":1.87},{"$f":"_xlfn.IFNA(_xlfn.IFNA(INDEX(Tab_IFT!J:J,MATCH($B$7&\"Herbicides\"&$B22,Tab_IFT!$B:$B&Tab_IFT!$A:$A&Tab_IFT!$C:$C,0),1), INDEX(Tab_IFT!J:J,MATCH(\"France métropolitaine\"&\"Herbicides\"&$B22,Tab_IFT!$B:$B&Tab_IFT!$A:$A&Tab_IFT!$C:$C,0),1)), \"NC\")","v":2.0099999999999998},{"$f":"IF(AND((K22=INDEX(Tab_IFT!J:J,MATCH(\"France métropolitaine\"&\"Herbicides\"&$B22,Tab_IFT!$B:$B&Tab_IFT!$A:$A&Tab_IFT!$C:$C,0),1)),(J22=INDEX(Tab_IFT!I:I,MATCH(\"France métropolitaine\"&\"Herbicides\"&$B22,Tab_IFT!$B:$B&Tab_IFT!$A:$A&Tab_IFT!$C:$C,0),1))), \" → Valeurs nationales utilisées\",\"\")","v":""},{"$f":"_xlfn.IFNA(_xlfn.IFNA(INDEX(Tab_IFT!D:D,MATCH($B$7&\"Hors herbicides (nouvelle méthode traitement de semences)\"&$B22,Tab_IFT!$B:$B&Tab_IFT!$A:$A&Tab_IFT!$C:$C,0),1), INDEX(Tab_IFT!D:D,MATCH(\"France métropolitaine\"&\"Hors herbicides (nouvelle méthode traitement de semences)\"&$B22,Tab_IFT!$B:$B&Tab_IFT!$A:$A&Tab_IFT!$C:$C,0),1)), \"NC\")","v":0},{"$f":"_xlfn.IFNA(_xlfn.IFNA(INDEX(Tab_IFT!E:E,MATCH($B$7&\"Hors herbicides (nouvelle méthode traitement de semences)\"&$B22,Tab_IFT!$B:$B&Tab_IFT!$A:$A&Tab_IFT!$C:$C,0),1), INDEX(Tab_IFT!E:E,MATCH(\"France métropolitaine\"&\"Hors herbicides (nouvelle méthode traitement de semences)\"&$B22,Tab_IFT!$B:$B&Tab_IFT!$A:$A&Tab_IFT!$C:$C,0),1)), \"NC\")","v":0},{"$f":"_xlfn.IFNA(_xlfn.IFNA(INDEX(Tab_IFT!F:F,MATCH($B$7&\"Hors herbicides (nouvelle méthode traitement de semences)\"&$B22,Tab_IFT!$B:$B&Tab_IFT!$A:$A&Tab_IFT!$C:$C,0),1), INDEX(Tab_IFT!F:F,MATCH(\"France métropolitaine\"&\"Hors herbicides (nouvelle méthode traitement de semences)\"&$B22,Tab_IFT!$B:$B&Tab_IFT!$A:$A&Tab_IFT!$C:$C,0),1)), \"NC\")","v":0},{"$f":"_xlfn.IFNA(_xlfn.IFNA(INDEX(Tab_IFT!G:G,MATCH($B$7&\"Hors herbicides (nouvelle méthode traitement de semences)\"&$B22,Tab_IFT!$B:$B&Tab_IFT!$A:$A&Tab_IFT!$C:$C,0),1), INDEX(Tab_IFT!G:G,MATCH(\"France métropolitaine\"&\"Hors herbicides (nouvelle méthode traitement de semences)\"&$B22,Tab_IFT!$B:$B&Tab_IFT!$A:$A&Tab_IFT!$C:$C,0),1)), \"NC\")","v":0},{"$f":"_xlfn.IFNA(_xlfn.IFNA(INDEX(Tab_IFT!H:H,MATCH($B$7&\"Hors herbicides (nouvelle méthode traitement de semences)\"&$B22,Tab_IFT!$B:$B&Tab_IFT!$A:$A&Tab_IFT!$C:$C,0),1), INDEX(Tab_IFT!H:H,MATCH(\"France métropolitaine\"&\"Hors herbicides (nouvelle méthode traitement de semences)\"&$B22,Tab_IFT!$B:$B&Tab_IFT!$A:$A&Tab_IFT!$C:$C,0),1)), \"NC\")","v":0},{"$f":"_xlfn.IFNA(_xlfn.IFNA(INDEX(Tab_IFT!I:I,MATCH($B$7&\"Hors herbicides (nouvelle méthode traitement de semences)\"&$B22,Tab_IFT!$B:$B&Tab_IFT!$A:$A&Tab_IFT!$C:$C,0),1), INDEX(Tab_IFT!I:I,MATCH(\"France métropolitaine\"&\"Hors herbicides (nouvelle méthode traitement de semences)\"&$B22,Tab_IFT!$B:$B&Tab_IFT!$A:$A&Tab_IFT!$C:$C,0),1)), \"NC\")","v":0},{"$f":"_xlfn.IFNA(_xlfn.IFNA(INDEX(Tab_IFT!J:J,MATCH($B$7&\"Hors herbicides (nouvelle méthode traitement de semences)\"&$B22,Tab_IFT!$B:$B&Tab_IFT!$A:$A&Tab_IFT!$C:$C,0),1), INDEX(Tab_IFT!J:J,MATCH(\"France métropolitaine\"&\"Hors herbicides (nouvelle méthode traitement de semences)\"&$B22,Tab_IFT!$B:$B&Tab_IFT!$A:$A&Tab_IFT!$C:$C,0),1)), \"NC\")","v":0},{"$f":"IF(AND((R22=INDEX(Tab_IFT!I:I,MATCH(\"France métropolitaine\"&\"Hors herbicides (nouvelle méthode traitement de semences)\"&$B22,Tab_IFT!$B:$B&Tab_IFT!$A:$A&Tab_IFT!$C:$C,0),1)),(S22=INDEX(Tab_IFT!J:J,MATCH(\"France métropolitaine\"&\"Hors herbicides (nouvelle méthode traitement de semences)\"&$B22,Tab_IFT!$B:$B&Tab_IFT!$A:$A&Tab_IFT!$C:$C,0),1))), \" → Valeurs nationales utilisées\",\"\")","v":" → Valeurs nationales utilisées"}]
[null,"Lin fibre",0,{"$f":"_xlfn.IFNA(INDEX(Tab_N!C:C,MATCH($B$7&$B23,Tab_N!$A:$A&Tab_N!$B:$B,0),1), INDEX(Tab_N!C:C,MATCH(\"France\"&$B23,Tab_N!$A:$A&Tab_N!$B:$B,0),1))","v":24.5},{"$f":"_xlfn.IFNA(_xlfn.IFNA(INDEX(Tab_IFT!D:D,MATCH($B$7&\"Herbicides\"&$B23,Tab_IFT!$B:$B&Tab_IFT!$A:$A&Tab_IFT!$C:$C,0),1), INDEX(Tab_IFT!D:D,MATCH(\"France métropolitaine\"&\"Herbicides\"&$B23,Tab_IFT!$B:$B&Tab_IFT!$A:$A&Tab_IFT!$C:$C,0),1)), \"NC\")","v":1.01},{"$f":"_xlfn.IFNA(_xlfn.IFNA(INDEX(Tab_IFT!E:E,MATCH($B$7&\"Herbicides\"&$B23,Tab_IFT!$B:$B&Tab_IFT!$A:$A&Tab_IFT!$C:$C,0),1), INDEX(Tab_IFT!E:E,MATCH(\"France métropolitaine\"&\"Herbicides\"&$B23,Tab_IFT!$B:$B&Tab_IFT!$A:$A&Tab_IFT!$C:$C,0),1)), \"NC\")","v":1.34},{"$f":"_xlfn.IFNA(_xlfn.IFNA(INDEX(Tab_IFT!F:F,MATCH($B$7&\"Herbicides\"&$B23,Tab_IFT!$B:$B&Tab_IFT!$A:$A&Tab_IFT!$C:$C,0),1), INDEX(Tab_IFT!F:F,MATCH(\"France métropolitaine\"&\"Herbicides\"&$B23,Tab_IFT!$B:$B&Tab_IFT!$A:$A&Tab_IFT!$C:$C,0),1)), \"NC\")","v":1.65},{"$f":"_xlfn.IFNA(_xlfn.IFNA(INDEX(Tab_IFT!G:G,MATCH($B$7&\"Herbicides\"&$B23,Tab_IFT!$B:$B&Tab_IFT!$A:$A&Tab_IFT!$C:$C,0),1), INDEX(Tab_IFT!G:G,MATCH(\"France métropolitaine\"&\"Herbicides\"&$B23,Tab_IFT!$B:$B&Tab_IFT!$A:$A&Tab_IFT!$C:$C,0),1)), \"NC\")","v":1.84},{"$f":"_xlfn.IFNA(_xlfn.IFNA(INDEX(Tab_IFT!H:H,MATCH($B$7&\"Herbicides\"&$B23,Tab_IFT!$B:$B&Tab_IFT!$A:$A&Tab_IFT!$C:$C,0),1), INDEX(Tab_IFT!H:H,MATCH(\"France métropolitaine\"&\"Herbicides\"&$B23,Tab_IFT!$B:$B&Tab_IFT!$A:$A&Tab_IFT!$C:$C,0),1)), \"NC\")","v":2.08},{"$f":"_xlfn.IFNA(_xlfn.IFNA(INDEX(Tab_IFT!I:I,MATCH($B$7&\"Herbicides\"&$B23,Tab_IFT!$B:$B&Tab_IFT!$A:$A&Tab_IFT!$C:$C,0),1), INDEX(Tab_IFT!I:I,MATCH(\"France métropolitaine\"&\"Herbicides\"&$B23,Tab_IFT!$B:$B&Tab_IFT!$A:$A&Tab_IFT!$C:$C,0),1)), \"NC\")","v":2.37},{"$f":"_xlfn.IFNA(_xlfn.IFNA(INDEX(Tab_IFT!J:J,MATCH($B$7&\"Herbicides\"&$B23,Tab_IFT!$B:$B&Tab_IFT!$A:$A&Tab_IFT!$C:$C,0),1), INDEX(Tab_IFT!J:J,MATCH(\"France métropolitaine\"&\"Herbicides\"&$B23,Tab_IFT!$B:$B&Tab_IFT!$A:$A&Tab_IFT!$C:$C,0),1)), \"NC\")","v":2.56},{"$f":"IF(AND((K23=INDEX(Tab_IFT!J:J,MATCH(\"France métropolitaine\"&\"Herbicides\"&$B23,Tab_IFT!$B:$B&Tab_IFT!$A:$A&Tab_IFT!$C:$C,0),1)),(J23=INDEX(Tab_IFT!I:I,MATCH(\"France métropolitaine\"&\"Herbicides\"&$B23,Tab_IFT!$B:$B&Tab_IFT!$A:$A&Tab_IFT!$C:$C,0),1))), \" → Valeurs nationales utilisées\",\"\")","v":" → Valeurs nationales utilisées"},{"$f":"_xlfn.IFNA(_xlfn.IFNA(INDEX(Tab_IFT!D:D,MATCH($B$7&\"Hors herbicides (nouvelle méthode traitement de semences)\"&$B23,Tab_IFT!$B:$B&Tab_IFT!$A:$A&Tab_IFT!$C:$C,0),1), INDEX(Tab_IFT!D:D,MATCH(\"France métropolitaine\"&\"Hors herbicides (nouvelle méthode traitement de semences)\"&$B23,Tab_IFT!$B:$B&Tab_IFT!$A:$A&Tab_IFT!$C:$C,0),1)), \"NC\")","v":1.52},{"$f":"_xlfn.IFNA(_xlfn.IFNA(INDEX(Tab_IFT!E:E,MATCH($B$7&\"Hors herbicides (nouvelle méthode traitement de semences)\"&$B23,Tab_IFT!$B:$B&Tab_IFT!$A:$A&Tab_IFT!$C:$C,0),1), INDEX(Tab_IFT!E:E,MATCH(\"France métropolitaine\"&\"Hors herbicides (nouvelle méthode traitement de semences)\"&$B23,Tab_IFT!$B:$B&Tab_IFT!$A:$A&Tab_IFT!$C:$C,0),1)), \"NC\")","v":1.91},{"$f":"_xlfn.IFNA(_xlfn.IFNA(INDEX(Tab_IFT!F:F,MATCH($B$7&\"Hors herbicides (nouvelle méthode traitement de semences)\"&$B23,Tab_IFT!$B:$B&Tab_IFT!$A:$A&Tab_IFT!$C:$C,0),1), INDEX(Tab_IFT!F:F,MATCH(\"France métropolitaine\"&\"Hors herbicides (nouvelle méthode traitement de semences)\"&$B23,Tab_IFT!$B:$B&Tab_IFT!$A:$A&Tab_IFT!$C:$C,0),1)), \"NC\")","v":2.2599999999999998},{"$f":"_xlfn.IFNA(_xlfn.IFNA(INDEX(Tab_IFT!G:G,MATCH($B$7&\"Hors herbicides (nouvelle méthode traitement de semences)\"&$B23,Tab_IFT!$B:$B&Tab_IFT!$A:$A&Tab_IFT!$C:$C,0),1), INDEX(Tab_IFT!G:G,MATCH(\"France métropolitaine\"&\"Hors herbicides (nouvelle méthode traitement de semences)\"&$B23,Tab_IFT!$B:$B&Tab_IFT!$A:$A&Tab_IFT!$C:$C,0),1)), \"NC\")","v":2.54},{"$f":"_xlfn.IFNA(_xlfn.IFNA(INDEX(Tab_IFT!H:H,MATCH($B$7&\"Hors herbicides (nouvelle méthode traitement de semences)\"&$B23,Tab_IFT!$B:$B&Tab_IFT!$A:$A&Tab_IFT!$C:$C,0),1), INDEX(Tab_IFT!H:H,MATCH(\"France métropolitaine\"&\"Hors herbicides (nouvelle méthode traitement de semences)\"&$B23,Tab_IFT!$B:$B&Tab_IFT!$A:$A&Tab_IFT!$C:$C,0),1)), \"NC\")","v":2.93},{"$f":"_xlfn.IFNA(_xlfn.IFNA(INDEX(Tab_IFT!I:I,MATCH($B$7&\"Hors herbicides (nouvelle méthode traitement de semences)\"&$B23,Tab_IFT!$B:$B&Tab_IFT!$A:$A&Tab_IFT!$C:$C,0),1), INDEX(Tab_IFT!I:I,MATCH(\"France métropolitaine\"&\"Hors herbicides (nouvelle méthode traitement de semences)\"&$B23,Tab_IFT!$B:$B&Tab_IFT!$A:$A&Tab_IFT!$C:$C,0),1)), \"NC\")","v":3.3},{"$f":"_xlfn.IFNA(_xlfn.IFNA(INDEX(Tab_IFT!J:J,MATCH($B$7&\"Hors herbicides (nouvelle méthode traitement de semences)\"&$B23,Tab_IFT!$B:$B&Tab_IFT!$A:$A&Tab_IFT!$C:$C,0),1), INDEX(Tab_IFT!J:J,MATCH(\"France métropolitaine\"&\"Hors herbicides (nouvelle méthode traitement de semences)\"&$B23,Tab_IFT!$B:$B&Tab_IFT!$A:$A&Tab_IFT!$C:$C,0),1)), \"NC\")","v":3.55},{"$f":"IF(AND((R23=INDEX(Tab_IFT!I:I,MATCH(\"France métropolitaine\"&\"Hors herbicides (nouvelle méthode traitement de semences)\"&$B23,Tab_IFT!$B:$B&Tab_IFT!$A:$A&Tab_IFT!$C:$C,0),1)),(S23=INDEX(Tab_IFT!J:J,MATCH(\"France métropolitaine\"&\"Hors herbicides (nouvelle méthode traitement de semences)\"&$B23,Tab_IFT!$B:$B&Tab_IFT!$A:$A&Tab_IFT!$C:$C,0),1))), \" → Valeurs nationales utilisées\",\"\")","v":" → Valeurs nationales utilisées"}]
[null,"Lin Oléagineux",0,{"$f":"_xlfn.IFNA(INDEX(Tab_N!C:C,MATCH($B$7&$B24,Tab_N!$A:$A&Tab_N!$B:$B,0),1), INDEX(Tab_N!C:C,MATCH(\"France\"&$B24,Tab_N!$A:$A&Tab_N!$B:$B,0),1))","v":65.599999999999994},{"$f":"_xlfn.IFNA(_xlfn.IFNA(INDEX(Tab_IFT!D:D,MATCH($B$7&\"Herbicides\"&$B24,Tab_IFT!$B:$B&Tab_IFT!$A:$A&Tab_IFT!$C:$C,0),1), INDEX(Tab_IFT!D:D,MATCH(\"France métropolitaine\"&\"Herbicides\"&$B24,Tab_IFT!$B:$B&Tab_IFT!$A:$A&Tab_IFT!$C:$C,0),1)), \"NC\")","v":0},{"$f":"_xlfn.IFNA(_xlfn.IFNA(INDEX(Tab_IFT!E:E,MATCH($B$7&\"Herbicides\"&$B24,Tab_IFT!$B:$B&Tab_IFT!$A:$A&Tab_IFT!$C:$C,0),1), INDEX(Tab_IFT!E:E,MATCH(\"France métropolitaine\"&\"Herbicides\"&$B24,Tab_IFT!$B:$B&Tab_IFT!$A:$A&Tab_IFT!$C:$C,0),1)), \"NC\")","v":0.64},{"$f":"_xlfn.IFNA(_xlfn.IFNA(INDEX(Tab_IFT!F:F,MATCH($B$7&\"Herbicides\"&$B24,Tab_IFT!$B:$B&Tab_IFT!$A:$A&Tab_IFT!$C:$C,0),1), INDEX(Tab_IFT!F:F,MATCH(\"France métropolitaine\"&\"Herbicides\"&$B24,Tab_IFT!$B:$B&Tab_IFT!$A:$A&Tab_IFT!$C:$C,0),1)), \"NC\")","v":1},{"$f":"_xlfn.IFNA(_xlfn.IFNA(INDEX(Tab_IFT!G:G,MATCH($B$7&\"Herbicides\"&$B24,Tab_IFT!$B:$B&Tab_IFT!$A:$A&Tab_IFT!$C:$C,0),1), INDEX(Tab_IFT!G:G,MATCH(\"France métropolitaine\"&\"Herbicides\"&$B24,Tab_IFT!$B:$B&Tab_IFT!$A:$A&Tab_IFT!$C:$C,0),1)), \"NC\")","v":1.35},{"$f":"_xlfn.IFNA(_xlfn.IFNA(INDEX(Tab_IFT!H:H,MATCH($B$7&\"Herbicides\"&$B24,Tab_IFT!$B:$B&Tab_IFT!$A:$A&Tab_IFT!$C:$C,0),1), INDEX(Tab_IFT!H:H,MATCH(\"France métropolitaine\"&\"Herbicides\"&$B24,Tab_IFT!$B:$B&Tab_IFT!$A:$A&Tab_IFT!$C:$C,0),1)), \"NC\")","v":1.63},{"$f":"_xlfn.IFNA(_xlfn.IFNA(INDEX(Tab_IFT!I:I,MATCH($B$7&\"Herbicides\"&$B24,Tab_IFT!$B:$B&Tab_IFT!$A:$A&Tab_IFT!$C:$C,0),1), INDEX(Tab_IFT!I:I,MATCH(\"France métropolitaine\"&\"Herbicides\"&$B24,Tab_IFT!$B:$B&Tab_IFT!$A:$A&Tab_IFT!$C:$C,0),1)), \"NC\")","v":1.86},{"$f":"_xlfn.IFNA(_xlfn.IFNA(INDEX(Tab_IFT!J:J,MATCH($B$7&\"Herbicides\"&$B24,Tab_IFT!$B:$B&Tab_IFT!$A:$A&Tab_IFT!$C:$C,0),1), INDEX(Tab_IFT!J:J,MATCH(\"France métropolitaine\"&\"Herbicides\"&$B24,Tab_IFT!$B:$B&Tab_IFT!$A:$A&Tab_IFT!$C:$C,0),1)), \"NC\")","v":2.13},{"$f":"IF(AND((K24=INDEX(Tab_IFT!J:J,MATCH(\"France métropolitaine\"&\"Herbicides\"&$B24,Tab_IFT!$B:$B&Tab_IFT!$A:$A&Tab_IFT!$C:$C,0),1)),(J24=INDEX(Tab_IFT!I:I,MATCH(\"France métropolitaine\"&\"Herbicides\"&$B24,Tab_IFT!$B:$B&Tab_IFT!$A:$A&Tab_IFT!$C:$C,0),1))), \" → Valeurs nationales utilisées\",\"\")","v":" → Valeurs nationales utilisées"},{"$f":"_xlfn.IFNA(_xlfn.IFNA(INDEX(Tab_IFT!D:D,MATCH($B$7&\"Hors herbicides (nouvelle méthode traitement de semences)\"&$B24,Tab_IFT!$B:$B&Tab_IFT!$A:$A&Tab_IFT!$C:$C,0),1), INDEX(Tab_IFT!D:D,MATCH(\"France métropolitaine\"&\"Hors herbicides (nouvelle méthode traitement de semences)\"&$B24,Tab_IFT!$B:$B&Tab_IFT!$A:$A&Tab_IFT!$C:$C,0),1)), \"NC\")","v":0},{"$f":"_xlfn.IFNA(_xlfn.IFNA(INDEX(Tab_IFT!E:E,MATCH($B$7&\"Hors herbicides (nouvelle méthode traitement de semences)\"&$B24,Tab_IFT!$B:$B&Tab_IFT!$A:$A&Tab_IFT!$C:$C,0),1), INDEX(Tab_IFT!E:E,MATCH(\"France métropolitaine\"&\"Hors herbicides (nouvelle méthode traitement de semences)\"&$B24,Tab_IFT!$B:$B&Tab_IFT!$A:$A&Tab_IFT!$C:$C,0),1)), \"NC\")","v":0.55000000000000004},{"$f":"_xlfn.IFNA(_xlfn.IFNA(INDEX(Tab_IFT!F:F,MATCH($B$7&\"Hors herbicides (nouvelle méthode traitement de semences)\"&$B24,Tab_IFT!$B:$B&Tab_IFT!$A:$A&Tab_IFT!$C:$C,0),1), INDEX(Tab_IFT!F:F,MATCH(\"France métropolitaine\"&\"Hors herbicides (nouvelle méthode traitement de semences)\"&$B24,Tab_IFT!$B:$B&Tab_IFT!$A:$A&Tab_IFT!$C:$C,0),1)), \"NC\")","v":1.29},{"$f":"_xlfn.IFNA(_xlfn.IFNA(INDEX(Tab_IFT!G:G,MATCH($B$7&\"Hors herbicides (nouvelle méthode traitement de semences)\"&$B24,Tab_IFT!$B:$B&Tab_IFT!$A:$A&Tab_IFT!$C:$C,0),1), INDEX(Tab_IFT!G:G,MATCH(\"France métropolitaine\"&\"Hors herbicides (nouvelle méthode traitement de semences)\"&$B24,Tab_IFT!$B:$B&Tab_IFT!$A:$A&Tab_IFT!$C:$C,0),1)), \"NC\")","v":1.64},{"$f":"_xlfn.IFNA(_xlfn.IFNA(INDEX(Tab_IFT!H:H,MATCH($B$7&\"Hors herbicides (nouvelle méthode traitement de semences)\"&$B24,Tab_IFT!$B:$B&Tab_IFT!$A:$A&Tab_IFT!$C:$C,0),1), INDEX(Tab_IFT!H:H,MATCH(\"France métropolitaine\"&\"Hors herbicides (nouvelle méthode traitement de semences)\"&$B24,Tab_IFT!$B:$B&Tab_IFT!$A:$A&Tab_IFT!$C:$C,0),1)), \"NC\")","v":1.97},{"$f":"_xlfn.IFNA(_xlfn.IFNA(INDEX(Tab_IFT!I:I,MATCH($B$7&\"Hors herbicides (nouvelle méthode traitement de semences)\"&$B24,Tab_IFT!$B:$B&Tab_IFT!$A:$A&Tab_IFT!$C:$C,0),1), INDEX(Tab_IFT!I:I,MATCH(\"France métropolitaine\"&\"Hors herbicides (nouvelle méthode traitement de semences)\"&$B24,Tab_IFT!$B:$B&Tab_IFT!$A:$A&Tab_IFT!$C:$C,0),1)), \"NC\")","v":2.2999999999999998},{"$f":"_xlfn.IFNA(_xlfn.IFNA(INDEX(Tab_IFT!J:J,MATCH($B$7&\"Hors herbicides (nouvelle méthode traitement de semences)\"&$B24,Tab_IFT!$B:$B&Tab_IFT!$A:$A&Tab_IFT!$C:$C,0),1), INDEX(Tab_IFT!J:J,MATCH(\"France métropolitaine\"&\"Hors herbicides (nouvelle méthode traitement de semences)\"&$B24,Tab_IFT!$B:$B&Tab_IFT!$A:$A&Tab_IFT!$C:$C,0),1)), \"NC\")","v":2.62},{"$f":"IF(AND((R24=INDEX(Tab_IFT!I:I,MATCH(\"France métropolitaine\"&\"Hors herbicides (nouvelle méthode traitement de semences)\"&$B24,Tab_IFT!$B:$B&Tab_IFT!$A:$A&Tab_IFT!$C:$C,0),1)),(S24=INDEX(Tab_IFT!J:J,MATCH(\"France métropolitaine\"&\"Hors herbicides (nouvelle méthode traitement de semences)\"&$B24,Tab_IFT!$B:$B&Tab_IFT!$A:$A&Tab_IFT!$C:$C,0),1))), \" → Valeurs nationales utilisées\",\"\")","v":" → Valeurs nationales utilisées"}]
[null,"Prairies permanentes",0,{"$f":"_xlfn.IFNA(INDEX(Tab_N!C:C,MATCH($B$7&$B25,Tab_N!$A:$A&Tab_N!$B:$B,0),1), INDEX(Tab_N!C:C,MATCH(\"France\"&$B25,Tab_N!$A:$A&Tab_N!$B:$B,0),1))","v":19.7},"L'IFT des prairies n'est pas calculé",null,null,null,null,null,null,null,"L'IFT des prairies n'est pas calculé"]
[null,"Prairies temporaires",0,{"$f":"_xlfn.IFNA(INDEX(Tab_N!C:C,MATCH($B$7&$B26,Tab_N!$A:$A&Tab_N!$B:$B,0),1), INDEX(Tab_N!C:C,MATCH(\"France\"&$B26,Tab_N!$A:$A&Tab_N!$B:$B,0),1))","v":42}]
[null,"Pomme de terre",0,{"$f":"_xlfn.IFNA(INDEX(Tab_N!C:C,MATCH($B$7&$B27,Tab_N!$A:$A&Tab_N!$B:$B,0),1), INDEX(Tab_N!C:C,MATCH(\"France\"&$B27,Tab_N!$A:$A&Tab_N!$B:$B,0),1))","v":136},{"$f":"_xlfn.IFNA(_xlfn.IFNA(INDEX(Tab_IFT!D:D,MATCH($B$7&\"Herbicides\"&$B27,Tab_IFT!$B:$B&Tab_IFT!$A:$A&Tab_IFT!$C:$C,0),1), INDEX(Tab_IFT!D:D,MATCH(\"France métropolitaine\"&\"Herbicides\"&$B27,Tab_IFT!$B:$B&Tab_IFT!$A:$A&Tab_IFT!$C:$C,0),1)), \"NC\")","v":1.39},{"$f":"_xlfn.IFNA(_xlfn.IFNA(INDEX(Tab_IFT!E:E,MATCH($B$7&\"Herbicides\"&$B27,Tab_IFT!$B:$B&Tab_IFT!$A:$A&Tab_IFT!$C:$C,0),1), INDEX(Tab_IFT!E:E,MATCH(\"France métropolitaine\"&\"Herbicides\"&$B27,Tab_IFT!$B:$B&Tab_IFT!$A:$A&Tab_IFT!$C:$C,0),1)), \"NC\")","v":1.66},{"$f":"_xlfn.IFNA(_xlfn.IFNA(INDEX(Tab_IFT!F:F,MATCH($B$7&\"Herbicides\"&$B27,Tab_IFT!$B:$B&Tab_IFT!$A:$A&Tab_IFT!$C:$C,0),1), INDEX(Tab_IFT!F:F,MATCH(\"France métropolitaine\"&\"Herbicides\"&$B27,Tab_IFT!$B:$B&Tab_IFT!$A:$A&Tab_IFT!$C:$C,0),1)), \"NC\")","v":1.85},{"$f":"_xlfn.IFNA(_xlfn.IFNA(INDEX(Tab_IFT!G:G,MATCH($B$7&\"Herbicides\"&$B27,Tab_IFT!$B:$B&Tab_IFT!$A:$A&Tab_IFT!$C:$C,0),1), INDEX(Tab_IFT!G:G,MATCH(\"France métropolitaine\"&\"Herbicides\"&$B27,Tab_IFT!$B:$B&Tab_IFT!$A:$A&Tab_IFT!$C:$C,0),1)), \"NC\")","v":2.0299999999999998},{"$f":"_xlfn.IFNA(_xlfn.IFNA(INDEX(Tab_IFT!H:H,MATCH($B$7&\"Herbicides\"&$B27,Tab_IFT!$B:$B&Tab_IFT!$A:$A&Tab_IFT!$C:$C,0),1), INDEX(Tab_IFT!H:H,MATCH(\"France métropolitaine\"&\"Herbicides\"&$B27,Tab_IFT!$B:$B&Tab_IFT!$A:$A&Tab_IFT!$C:$C,0),1)), \"NC\")","v":2.25},{"$f":"_xlfn.IFNA(_xlfn.IFNA(INDEX(Tab_IFT!I:I,MATCH($B$7&\"Herbicides\"&$B27,Tab_IFT!$B:$B&Tab_IFT!$A:$A&Tab_IFT!$C:$C,0),1), INDEX(Tab_IFT!I:I,MATCH(\"France métropolitaine\"&\"Herbicides\"&$B27,Tab_IFT!$B:$B&Tab_IFT!$A:$A&Tab_IFT!$C:$C,0),1)), \"NC\")","v":2.44},{"$f":"_xlfn.IFNA(_xlfn.IFNA(INDEX(Tab_IFT!J:J,MATCH($B$7&\"Herbicides\"&$B27,Tab_IFT!$B:$B&Tab_IFT!$A:$A&Tab_IFT!$C:$C,0),1), INDEX(Tab_IFT!J:J,MATCH(\"France métropolitaine\"&\"Herbicides\"&$B27,Tab_IFT!$B:$B&Tab_IFT!$A:$A&Tab_IFT!$C:$C,0),1)), \"NC\")","v":2.64},{"$f":"IF(AND((K27=INDEX(Tab_IFT!J:J,MATCH(\"France métropolitaine\"&\"Herbicides\"&$B27,Tab_IFT!$B:$B&Tab_IFT!$A:$A&Tab_IFT!$C:$C,0),1)),(J27=INDEX(Tab_IFT!I:I,MATCH(\"France métropolitaine\"&\"Herbicides\"&$B27,Tab_IFT!$B:$B&Tab_IFT!$A:$A&Tab_IFT!$C:$C,0),1))), \" → Valeurs nationales utilisées\",\"\")","v":" → Valeurs nationales utilisées"},{"$f":"_xlfn.IFNA(_xlfn.IFNA(INDEX(Tab_IFT!D:D,MATCH($B$7&\"Hors herbicides (nouvelle méthode traitement de semences)\"&$B27,Tab_IFT!$B:$B&Tab_IFT!$A:$A&Tab_IFT!$C:$C,0),1), INDEX(Tab_IFT!D:D,MATCH(\"France métropolitaine\"&\"Hors herbicides (nouvelle méthode traitement de semences)\"&$B27,Tab_IFT!$B:$B&Tab_IFT!$A:$A&Tab_IFT!$C:$C,0),1)), \"NC\")","v":8.8800000000000008},{"$f":"_xlfn.IFNA(_xlfn.IFNA(INDEX(Tab_IFT!E:E,MATCH($B$7&\"Hors herbicides (nouvelle méthode traitement de semences)\"&$B27,Tab_IFT!$B:$B&Tab_IFT!$A:$A&Tab_IFT!$C:$C,0),1), INDEX(Tab_IFT!E:E,MATCH(\"France métropolitaine\"&\"Hors herbicides (nouvelle méthode traitement de semences)\"&$B27,Tab_IFT!$B:$B&Tab_IFT!$A:$A&Tab_IFT!$C:$C,0),1)), \"NC\")","v":10.87},{"$f":"_xlfn.IFNA(_xlfn.IFNA(INDEX(Tab_IFT!F:F,MATCH($B$7&\"Hors herbicides (nouvelle méthode traitement de semences)\"&$B27,Tab_IFT!$B:$B&Tab_IFT!$A:$A&Tab_IFT!$C:$C,0),1), INDEX(Tab_IFT!F:F,MATCH(\"France métropolitaine\"&\"Hors herbicides (nouvelle méthode traitement de semences)\"&$B27,Tab_IFT!$B:$B&Tab_IFT!$A:$A&Tab_IFT!$C:$C,0),1)), \"NC\")","v":12.25},{"$f":"_xlfn.IFNA(_xlfn.IFNA(INDEX(Tab_IFT!G:G,MATCH($B$7&\"Hors herbicides (nouvelle méthode traitement de semences)\"&$B27,Tab_IFT!$B:$B&Tab_IFT!$A:$A&Tab_IFT!$C:$C,0),1), INDEX(Tab_IFT!G:G,MATCH(\"France métropolitaine\"&\"Hors herbicides (nouvelle méthode traitement de semences)\"&$B27,Tab_IFT!$B:$B&Tab_IFT!$A:$A&Tab_IFT!$C:$C,0),1)), \"NC\")","v":13.47},{"$f":"_xlfn.IFNA(_xlfn.IFNA(INDEX(Tab_IFT!H:H,MATCH($B$7&\"Hors herbicides (nouvelle méthode traitement de semences)\"&$B27,Tab_IFT!$B:$B&Tab_IFT!$A:$A&Tab_IFT!$C:$C,0),1), INDEX(Tab_IFT!H:H,MATCH(\"France métropolitaine\"&\"Hors herbicides (nouvelle méthode traitement de semences)\"&$B27,Tab_IFT!$B:$B&Tab_IFT!$A:$A&Tab_IFT!$C:$C,0),1)), \"NC\")","v":14.52},{"$f":"_xlfn.IFNA(_xlfn.IFNA(INDEX(Tab_IFT!I:I,MATCH($B$7&\"Hors herbicides (nouvelle méthode traitement de semences)\"&$B27,Tab_IFT!$B:$B&Tab_IFT!$A:$A&Tab_IFT!$C:$C,0),1), INDEX(Tab_IFT!I:I,MATCH(\"France métropolitaine\"&\"Hors herbicides (nouvelle méthode traitement de semences)\"&$B27,Tab_IFT!$B:$B&Tab_IFT!$A:$A&Tab_IFT!$C:$C,0),1)), \"NC\")","v":15.51},{"$f":"_xlfn.IFNA(_xlfn.IFNA(INDEX(Tab_IFT!J:J,MATCH($B$7&\"Hors herbicides (nouvelle méthode traitement de semences)\"&$B27,Tab_IFT!$B:$B&Tab_IFT!$A:$A&Tab_IFT!$C:$C,0),1), INDEX(Tab_IFT!J:J,MATCH(\"France métropolitaine\"&\"Hors herbicides (nouvelle méthode traitement de semences)\"&$B27,Tab_IFT!$B:$B&Tab_IFT!$A:$A&Tab_IFT!$C:$C,0),1)), \"NC\")","v":16.899999999999999},{"$f":"IF(AND((R27=INDEX(Tab_IFT!I:I,MATCH(\"France métropolitaine\"&\"Hors herbicides (nouvelle méthode traitement de semences)\"&$B27,Tab_IFT!$B:$B&Tab_IFT!$A:$A&Tab_IFT!$C:$C,0),1)),(S27=INDEX(Tab_IFT!J:J,MATCH(\"France métropolitaine\"&\"Hors herbicides (nouvelle méthode traitement de semences)\"&$B27,Tab_IFT!$B:$B&Tab_IFT!$A:$A&Tab_IFT!$C:$C,0),1))), \" → Valeurs nationales utilisées\",\"\")","v":" → Valeurs nationales utilisées"}]
[null,"Carotte",0,{"$f":"IFERROR(_xlfn.IFNA(INDEX(Tab_N!C:C,MATCH($B$7&$B28,Tab_N!$A:$A&Tab_N!$B:$B,0),1), INDEX(Tab_N!C:C,MATCH(\"France\"&$B28,Tab_N!$A:$A&Tab_N!$B:$B,0),1)), 0)","v":23},{"$f":"_xlfn.IFNA(_xlfn.IFNA(INDEX(Tab_IFT!D:D,MATCH($B$7&\"Herbicides\"&$B28,Tab_IFT!$B:$B&Tab_IFT!$A:$A&Tab_IFT!$C:$C,0),1), INDEX(Tab_IFT!D:D,MATCH(\"France métropolitaine\"&\"Herbicides\"&$B28,Tab_IFT!$B:$B&Tab_IFT!$A:$A&Tab_IFT!$C:$C,0),1)), \"NC\")","v":1.02},{"$f":"_xlfn.IFNA(_xlfn.IFNA(INDEX(Tab_IFT!E:E,MATCH($B$7&\"Herbicides\"&$B28,Tab_IFT!$B:$B&Tab_IFT!$A:$A&Tab_IFT!$C:$C,0),1), INDEX(Tab_IFT!E:E,MATCH(\"France métropolitaine\"&\"Herbicides\"&$B28,Tab_IFT!$B:$B&Tab_IFT!$A:$A&Tab_IFT!$C:$C,0),1)), \"NC\")","v":1.7},{"$f":"_xlfn.IFNA(_xlfn.IFNA(INDEX(Tab_IFT!F:F,MATCH($B$7&\"Herbicides\"&$B28,Tab_IFT!$B:$B&Tab_IFT!$A:$A&Tab_IFT!$C:$C,0),1), INDEX(Tab_IFT!F:F,MATCH(\"France métropolitaine\"&\"Herbicides\"&$B28,Tab_IFT!$B:$B&Tab_IFT!$A:$A&Tab_IFT!$C:$C,0),1)), \"NC\")","v":2.08},{"$f":"_xlfn.IFNA(_xlfn.IFNA(INDEX(Tab_IFT!G:G,MATCH($B$7&\"Herbicides\"&$B28,Tab_IFT!$B:$B&Tab_IFT!$A:$A&Tab_IFT!$C:$C,0),1), INDEX(Tab_IFT!G:G,MATCH(\"France métropolitaine\"&\"Herbicides\"&$B28,Tab_IFT!$B:$B&Tab_IFT!$A:$A&Tab_IFT!$C:$C,0),1)), \"NC\")","v":2.38},{"$f":"_xlfn.IFNA(_xlfn.IFNA(INDEX(Tab_IFT!H:H,MATCH($B$7&\"Herbicides\"&$B28,Tab_IFT!$B:$B&Tab_IFT!$A:$A&Tab_IFT!$C:$C,0),1), INDEX(Tab_IFT!H:H,MATCH(\"France métropolitaine\"&\"Herbicides\"&$B28,Tab_IFT!$B:$B&Tab_IFT!$A:$A&Tab_IFT!$C:$C,0),1)), \"NC\")","v":2.62},{"$f":"_xlfn.IFNA(_xlfn.IFNA(INDEX(Tab_IFT!I:I,MATCH($B$7&\"Herbicides\"&$B28,Tab_IFT!$B:$B&Tab_IFT!$A:$A&Tab_IFT!$C:$C,0),1), INDEX(Tab_IFT!I:I,MATCH(\"France métropolitaine\"&\"Herbicides\"&$B28,Tab_IFT!$B:$B&Tab_IFT!$A:$A&Tab_IFT!$C:$C,0),1)), \"NC\")","v":3.01},{"$f":"_xlfn.IFNA(_xlfn.IFNA(INDEX(Tab_IFT!J:J,MATCH($B$7&\"Herbicides\"&$B28,Tab_IFT!$B:$B&Tab_IFT!$A:$A&Tab_IFT!$C:$C,0),1), INDEX(Tab_IFT!J:J,MATCH(\"France métropolitaine\"&\"Herbicides\"&$B28,Tab_IFT!$B:$B&Tab_IFT!$A:$A&Tab_IFT!$C:$C,0),1)), \"NC\")","v":3.4},{"$f":"IF(AND((K28=INDEX(Tab_IFT!J:J,MATCH(\"France métropolitaine\"&\"Herbicides\"&$B28,Tab_IFT!$B:$B&Tab_IFT!$A:$A&Tab_IFT!$C:$C,0),1)),(J28=INDEX(Tab_IFT!I:I,MATCH(\"France métropolitaine\"&\"Herbicides\"&$B28,Tab_IFT!$B:$B&Tab_IFT!$A:$A&Tab_IFT!$C:$C,0),1))), \" → Valeurs nationales utilisées\",\"\")","v":" → Valeurs nationales utilisées"},{"$f":"_xlfn.IFNA(_xlfn.IFNA(INDEX(Tab_IFT!D:D,MATCH($B$7&\"Hors herbicides (nouvelle méthode traitement de semences)\"&$B28,Tab_IFT!$B:$B&Tab_IFT!$A:$A&Tab_IFT!$C:$C,0),1), INDEX(Tab_IFT!D:D,MATCH(\"France métropolitaine\"&\"Hors herbicides (nouvelle méthode traitement de semences)\"&$B28,Tab_IFT!$B:$B&Tab_IFT!$A:$A&Tab_IFT!$C:$C,0),1)), \"NC\")","v":1.33},{"$f":"_xlfn.IFNA(_xlfn.IFNA(INDEX(Tab_IFT!E:E,MATCH($B$7&\"Hors herbicides (nouvelle méthode traitement de semences)\"&$B28,Tab_IFT!$B:$B&Tab_IFT!$A:$A&Tab_IFT!$C:$C,0),1), INDEX(Tab_IFT!E:E,MATCH(\"France métropolitaine\"&\"Hors herbicides (nouvelle méthode traitement de semences)\"&$B28,Tab_IFT!$B:$B&Tab_IFT!$A:$A&Tab_IFT!$C:$C,0),1)), \"NC\")","v":2.06},{"$f":"_xlfn.IFNA(_xlfn.IFNA(INDEX(Tab_IFT!F:F,MATCH($B$7&\"Hors herbicides (nouvelle méthode traitement de semences)\"&$B28,Tab_IFT!$B:$B&Tab_IFT!$A:$A&Tab_IFT!$C:$C,0),1), INDEX(Tab_IFT!F:F,MATCH(\"France métropolitaine\"&\"Hors herbicides (nouvelle méthode traitement de semences)\"&$B28,Tab_IFT!$B:$B&Tab_IFT!$A:$A&Tab_IFT!$C:$C,0),1)), \"NC\")","v":2.82},{"$f":"_xlfn.IFNA(_xlfn.IFNA(INDEX(Tab_IFT!G:G,MATCH($B$7&\"Hors herbicides (nouvelle méthode traitement de semences)\"&$B28,Tab_IFT!$B:$B&Tab_IFT!$A:$A&Tab_IFT!$C:$C,0),1), INDEX(Tab_IFT!G:G,MATCH(\"France métropolitaine\"&\"Hors herbicides (nouvelle méthode traitement de semences)\"&$B28,Tab_IFT!$B:$B&Tab_IFT!$A:$A&Tab_IFT!$C:$C,0),1)), \"NC\")","v":3.78},{"$f":"_xlfn.IFNA(_xlfn.IFNA(INDEX(Tab_IFT!H:H,MATCH($B$7&\"Hors herbicides (nouvelle méthode traitement de semences)\"&$B28,Tab_IFT!$B:$B&Tab_IFT!$A:$A&Tab_IFT!$C:$C,0),1), INDEX(Tab_IFT!H:H,MATCH(\"France métropolitaine\"&\"Hors herbicides (nouvelle méthode traitement de semences)\"&$B28,Tab_IFT!$B:$B&Tab_IFT!$A:$A&Tab_IFT!$C:$C,0),1)), \"NC\")","v":4.5599999999999996},{"$f":"_xlfn.IFNA(_xlfn.IFNA(INDEX(Tab_IFT!I:I,MATCH($B$7&\"Hors herbicides (nouvelle méthode traitement de semences)\"&$B28,Tab_IFT!$B:$B&Tab_IFT!$A:$A&Tab_IFT!$C:$C,0),1), INDEX(Tab_IFT!I:I,MATCH(\"France métropolitaine\"&\"Hors herbicides (nouvelle méthode traitement de semences)\"&$B28,Tab_IFT!$B:$B&Tab_IFT!$A:$A&Tab_IFT!$C:$C,0),1)), \"NC\")","v":5.13},{"$f":"_xlfn.IFNA(_xlfn.IFNA(INDEX(Tab_IFT!J:J,MATCH($B$7&\"Hors herbicides (nouvelle méthode traitement de semences)\"&$B28,Tab_IFT!$B:$B&Tab_IFT!$A:$A&Tab_IFT!$C:$C,0),1), INDEX(Tab_IFT!J:J,MATCH(\"France métropolitaine\"&\"Hors herbicides (nouvelle méthode traitement de semences)\"&$B28,Tab_IFT!$B:$B&Tab_IFT!$A:$A&Tab_IFT!$C:$C,0),1)), \"NC\")","v":5.89},{"$f":"IF(AND((R28=INDEX(Tab_IFT!I:I,MATCH(\"France métropolitaine\"&\"Hors herbicides (nouvelle méthode traitement de semences)\"&$B28,Tab_IFT!$B:$B&Tab_IFT!$A:$A&Tab_IFT!$C:$C,0),1)),(S28=INDEX(Tab_IFT!J:J,MATCH(\"France métropolitaine\"&\"Hors herbicides (nouvelle méthode traitement de semences)\"&$B28,Tab_IFT!$B:$B&Tab_IFT!$A:$A&Tab_IFT!$C:$C,0),1))), \" → Valeurs nationales utilisées\",\"\")","v":" → Valeurs nationales utilisées"}]
[null,"Choux fleur, Brocoli à jets et Romanesco",0,{"$f":"IFERROR(_xlfn.IFNA(INDEX(Tab_N!C:C,MATCH($B$7&$B29,Tab_N!$A:$A&Tab_N!$B:$B,0),1), INDEX(Tab_N!C:C,MATCH(\"France\"&$B29,Tab_N!$A:$A&Tab_N!$B:$B,0),1)), 0)","v":0},{"$f":"_xlfn.IFNA(_xlfn.IFNA(INDEX(Tab_IFT!D:D,MATCH($B$7&\"Herbicides\"&$B29,Tab_IFT!$B:$B&Tab_IFT!$A:$A&Tab_IFT!$C:$C,0),1), INDEX(Tab_IFT!D:D,MATCH(\"France métropolitaine\"&\"Herbicides\"&$B29,Tab_IFT!$B:$B&Tab_IFT!$A:$A&Tab_IFT!$C:$C,0),1)), \"NC\")","v":0},{"$f":"_xlfn.IFNA(_xlfn.IFNA(INDEX(Tab_IFT!E:E,MATCH($B$7&\"Herbicides\"&$B29,Tab_IFT!$B:$B&Tab_IFT!$A:$A&Tab_IFT!$C:$C,0),1), INDEX(Tab_IFT!E:E,MATCH(\"France métropolitaine\"&\"Herbicides\"&$B29,Tab_IFT!$B:$B&Tab_IFT!$A:$A&Tab_IFT!$C:$C,0),1)), \"NC\")","v":0},{"$f":"_xlfn.IFNA(_xlfn.IFNA(INDEX(Tab_IFT!F:F,MATCH($B$7&\"Herbicides\"&$B29,Tab_IFT!$B:$B&Tab_IFT!$A:$A&Tab_IFT!$C:$C,0),1), INDEX(Tab_IFT!F:F,MATCH(\"France métropolitaine\"&\"Herbicides\"&$B29,Tab_IFT!$B:$B&Tab_IFT!$A:$A&Tab_IFT!$C:$C,0),1)), \"NC\")","v":0},{"$f":"_xlfn.IFNA(_xlfn.IFNA(INDEX(Tab_IFT!G:G,MATCH($B$7&\"Herbicides\"&$B29,Tab_IFT!$B:$B&Tab_IFT!$A:$A&Tab_IFT!$C:$C,0),1), INDEX(Tab_IFT!G:G,MATCH(\"France métropolitaine\"&\"Herbicides\"&$B29,Tab_IFT!$B:$B&Tab_IFT!$A:$A&Tab_IFT!$C:$C,0),1)), \"NC\")","v":0},{"$f":"_xlfn.IFNA(_xlfn.IFNA(INDEX(Tab_IFT!H:H,MATCH($B$7&\"Herbicides\"&$B29,Tab_IFT!$B:$B&Tab_IFT!$A:$A&Tab_IFT!$C:$C,0),1), INDEX(Tab_IFT!H:H,MATCH(\"France métropolitaine\"&\"Herbicides\"&$B29,Tab_IFT!$B:$B&Tab_IFT!$A:$A&Tab_IFT!$C:$C,0),1)), \"NC\")","v":0.5},{"$f":"_xlfn.IFNA(_xlfn.IFNA(INDEX(Tab_IFT!I:I,MATCH($B$7&\"Herbicides\"&$B29,Tab_IFT!$B:$B&Tab_IFT!$A:$A&Tab_IFT!$C:$C,0),1), INDEX(Tab_IFT!I:I,MATCH(\"France métropolitaine\"&\"Herbicides\"&$B29,Tab_IFT!$B:$B&Tab_IFT!$A:$A&Tab_IFT!$C:$C,0),1)), \"NC\")","v":0.75},{"$f":"_xlfn.IFNA(_xlfn.IFNA(INDEX(Tab_IFT!J:J,MATCH($B$7&\"Herbicides\"&$B29,Tab_IFT!$B:$B&Tab_IFT!$A:$A&Tab_IFT!$C:$C,0),1), INDEX(Tab_IFT!J:J,MATCH(\"France métropolitaine\"&\"Herbicides\"&$B29,Tab_IFT!$B:$B&Tab_IFT!$A:$A&Tab_IFT!$C:$C,0),1)), \"NC\")","v":0.97},{"$f":"IF(AND((K29=INDEX(Tab_IFT!J:J,MATCH(\"France métropolitaine\"&\"Herbicides\"&$B29,Tab_IFT!$B:$B&Tab_IFT!$A:$A&Tab_IFT!$C:$C,0),1)),(J29=INDEX(Tab_IFT!I:I,MATCH(\"France métropolitaine\"&\"Herbicides\"&$B29,Tab_IFT!$B:$B&Tab_IFT!$A:$A&Tab_IFT!$C:$C,0),1))), \" → Valeurs nationales utilisées\",\"\")","v":" → Valeurs nationales utilisées"},{"$f":"_xlfn.IFNA(_xlfn.IFNA(INDEX(Tab_IFT!D:D,MATCH($B$7&\"Hors herbicides (nouvelle méthode traitement de semences)\"&$B29,Tab_IFT!$B:$B&Tab_IFT!$A:$A&Tab_IFT!$C:$C,0),1), INDEX(Tab_IFT!D:D,MATCH(\"France métropolitaine\"&\"Hors herbicides (nouvelle méthode traitement de semences)\"&$B29,Tab_IFT!$B:$B&Tab_IFT!$A:$A&Tab_IFT!$C:$C,0),1)), \"NC\")","v":1},{"$f":"_xlfn.IFNA(_xlfn.IFNA(INDEX(Tab_IFT!E:E,MATCH($B$7&\"Hors herbicides (nouvelle méthode traitement de semences)\"&$B29,Tab_IFT!$B:$B&Tab_IFT!$A:$A&Tab_IFT!$C:$C,0),1), INDEX(Tab_IFT!E:E,MATCH(\"France métropolitaine\"&\"Hors herbicides (nouvelle méthode traitement de semences)\"&$B29,Tab_IFT!$B:$B&Tab_IFT!$A:$A&Tab_IFT!$C:$C,0),1)), \"NC\")","v":1},{"$f":"_xlfn.IFNA(_xlfn.IFNA(INDEX(Tab_IFT!F:F,MATCH($B$7&\"Hors herbicides (nouvelle méthode traitement de semences)\"&$B29,Tab_IFT!$B:$B&Tab_IFT!$A:$A&Tab_IFT!$C:$C,0),1), INDEX(Tab_IFT!F:F,MATCH(\"France métropolitaine\"&\"Hors herbicides (nouvelle méthode traitement de semences)\"&$B29,Tab_IFT!$B:$B&Tab_IFT!$A:$A&Tab_IFT!$C:$C,0),1)), \"NC\")","v":1.42},{"$f":"_xlfn.IFNA(_xlfn.IFNA(INDEX(Tab_IFT!G:G,MATCH($B$7&\"Hors herbicides (nouvelle méthode traitement de semences)\"&$B29,Tab_IFT!$B:$B&Tab_IFT!$A:$A&Tab_IFT!$C:$C,0),1), INDEX(Tab_IFT!G:G,MATCH(\"France métropolitaine\"&\"Hors herbicides (nouvelle méthode traitement de semences)\"&$B29,Tab_IFT!$B:$B&Tab_IFT!$A:$A&Tab_IFT!$C:$C,0),1)), \"NC\")","v":2},{"$f":"_xlfn.IFNA(_xlfn.IFNA(INDEX(Tab_IFT!H:H,MATCH($B$7&\"Hors herbicides (nouvelle méthode traitement de semences)\"&$B29,Tab_IFT!$B:$B&Tab_IFT!$A:$A&Tab_IFT!$C:$C,0),1), INDEX(Tab_IFT!H:H,MATCH(\"France métropolitaine\"&\"Hors herbicides (nouvelle méthode traitement de semences)\"&$B29,Tab_IFT!$B:$B&Tab_IFT!$A:$A&Tab_IFT!$C:$C,0),1)), \"NC\")","v":2},{"$f":"_xlfn.IFNA(_xlfn.IFNA(INDEX(Tab_IFT!I:I,MATCH($B$7&\"Hors herbicides (nouvelle méthode traitement de semences)\"&$B29,Tab_IFT!$B:$B&Tab_IFT!$A:$A&Tab_IFT!$C:$C,0),1), INDEX(Tab_IFT!I:I,MATCH(\"France métropolitaine\"&\"Hors herbicides (nouvelle méthode traitement de semences)\"&$B29,Tab_IFT!$B:$B&Tab_IFT!$A:$A&Tab_IFT!$C:$C,0),1)), \"NC\")","v":2.46},{"$f":"_xlfn.IFNA(_xlfn.IFNA(INDEX(Tab_IFT!J:J,MATCH($B$7&\"Hors herbicides (nouvelle méthode traitement de semences)\"&$B29,Tab_IFT!$B:$B&Tab_IFT!$A:$A&Tab_IFT!$C:$C,0),1), INDEX(Tab_IFT!J:J,MATCH(\"France métropolitaine\"&\"Hors herbicides (nouvelle méthode traitement de semences)\"&$B29,Tab_IFT!$B:$B&Tab_IFT!$A:$A&Tab_IFT!$C:$C,0),1)), \"NC\")","v":2.84},{"$f":"IF(AND((R29=INDEX(Tab_IFT!I:I,MATCH(\"France métropolitaine\"&\"Hors herbicides (nouvelle méthode traitement de semences)\"&$B29,Tab_IFT!$B:$B&Tab_IFT!$A:$A&Tab_IFT!$C:$C,0),1)),(S29=INDEX(Tab_IFT!J:J,MATCH(\"France métropolitaine\"&\"Hors herbicides (nouvelle méthode traitement de semences)\"&$B29,Tab_IFT!$B:$B&Tab_IFT!$A:$A&Tab_IFT!$C:$C,0),1))), \" → Valeurs nationales utilisées\",\"\")","v":" → Valeurs nationales utilisées"}]
[null,"Autres choux (hors chou à choucroute)",0,{"$f":"IFERROR(_xlfn.IFNA(INDEX(Tab_N!C:C,MATCH($B$7&$B30,Tab_N!$A:$A&Tab_N!$B:$B,0),1), INDEX(Tab_N!C:C,MATCH(\"France\"&$B30,Tab_N!$A:$A&Tab_N!$B:$B,0),1)), 0)","v":0},{"$f":"_xlfn.IFNA(_xlfn.IFNA(INDEX(Tab_IFT!D:D,MATCH($B$7&\"Herbicides\"&$B30,Tab_IFT!$B:$B&Tab_IFT!$A:$A&Tab_IFT!$C:$C,0),1), INDEX(Tab_IFT!D:D,MATCH(\"France métropolitaine\"&\"Herbicides\"&$B30,Tab_IFT!$B:$B&Tab_IFT!$A:$A&Tab_IFT!$C:$C,0),1)), \"NC\")","v":0},{"$f":"_xlfn.IFNA(_xlfn.IFNA(INDEX(Tab_IFT!E:E,MATCH($B$7&\"Herbicides\"&$B30,Tab_IFT!$B:$B&Tab_IFT!$A:$A&Tab_IFT!$C:$C,0),1), INDEX(Tab_IFT!E:E,MATCH(\"France métropolitaine\"&\"Herbicides\"&$B30,Tab_IFT!$B:$B&Tab_IFT!$A:$A&Tab_IFT!$C:$C,0),1)), \"NC\")","v":0},{"$f":"_xlfn.IFNA(_xlfn.IFNA(INDEX(Tab_IFT!F:F,MATCH($B$7&\"Herbicides\"&$B30,Tab_IFT!$B:$B&Tab_IFT!$A:$A&Tab_IFT!$C:$C,0),1), INDEX(Tab_IFT!F:F,MATCH(\"France métropolitaine\"&\"Herbicides\"&$B30,Tab_IFT!$B:$B&Tab_IFT!$A:$A&Tab_IFT!$C:$C,0),1)), \"NC\")","v":0},{"$f":"_xlfn.IFNA(_xlfn.IFNA(INDEX(Tab_IFT!G:G,MATCH($B$7&\"Herbicides\"&$B30,Tab_IFT!$B:$B&Tab_IFT!$A:$A&Tab_IFT!$C:$C,0),1), INDEX(Tab_IFT!G:G,MATCH(\"France métropolitaine\"&\"Herbicides\"&$B30,Tab_IFT!$B:$B&Tab_IFT!$A:$A&Tab_IFT!$C:$C,0),1)), \"NC\")","v":0.35},{"$f":"_xlfn.IFNA(_xlfn.IFNA(INDEX(Tab_IFT!H:H,MATCH($B$7&\"Herbicides\"&$B30,Tab_IFT!$B:$B&Tab_IFT!$A:$A&Tab_IFT!$C:$C,0),1), INDEX(Tab_IFT!H:H,MATCH(\"France métropolitaine\"&\"Herbicides\"&$B30,Tab_IFT!$B:$B&Tab_IFT!$A:$A&Tab_IFT!$C:$C,0),1)), \"NC\")","v":0.39},{"$f":"_xlfn.IFNA(_xlfn.IFNA(INDEX(Tab_IFT!I:I,MATCH($B$7&\"Herbicides\"&$B30,Tab_IFT!$B:$B&Tab_IFT!$A:$A&Tab_IFT!$C:$C,0),1), INDEX(Tab_IFT!I:I,MATCH(\"France métropolitaine\"&\"Herbicides\"&$B30,Tab_IFT!$B:$B&Tab_IFT!$A:$A&Tab_IFT!$C:$C,0),1)), \"NC\")","v":0.7},{"$f":"_xlfn.IFNA(_xlfn.IFNA(INDEX(Tab_IFT!J:J,MATCH($B$7&\"Herbicides\"&$B30,Tab_IFT!$B:$B&Tab_IFT!$A:$A&Tab_IFT!$C:$C,0),1), INDEX(Tab_IFT!J:J,MATCH(\"France métropolitaine\"&\"Herbicides\"&$B30,Tab_IFT!$B:$B&Tab_IFT!$A:$A&Tab_IFT!$C:$C,0),1)), \"NC\")","v":1.05},{"$f":"IF(AND((K30=INDEX(Tab_IFT!J:J,MATCH(\"France métropolitaine\"&\"Herbicides\"&$B30,Tab_IFT!$B:$B&Tab_IFT!$A:$A&Tab_IFT!$C:$C,0),1)),(J30=INDEX(Tab_IFT!I:I,MATCH(\"France métropolitaine\"&\"Herbicides\"&$B30,Tab_IFT!$B:$B&Tab_IFT!$A:$A&Tab_IFT!$C:$C,0),1))), \" → Valeurs nationales utilisées\",\"\")","v":" → Valeurs nationales utilisées"},{"$f":"_xlfn.IFNA(_xlfn.IFNA(INDEX(Tab_IFT!D:D,MATCH($B$7&\"Hors herbicides (nouvelle méthode traitement de semences)\"&$B30,Tab_IFT!$B:$B&Tab_IFT!$A:$A&Tab_IFT!$C:$C,0),1), INDEX(Tab_IFT!D:D,MATCH(\"France métropolitaine\"&\"Hors herbicides (nouvelle méthode traitement de semences)\"&$B30,Tab_IFT!$B:$B&Tab_IFT!$A:$A&Tab_IFT!$C:$C,0),1)), \"NC\")","v":0.83},{"$f":"_xlfn.IFNA(_xlfn.IFNA(INDEX(Tab_IFT!E:E,MATCH($B$7&\"Hors herbicides (nouvelle méthode traitement de semences)\"&$B30,Tab_IFT!$B:$B&Tab_IFT!$A:$A&Tab_IFT!$C:$C,0),1), INDEX(Tab_IFT!E:E,MATCH(\"France métropolitaine\"&\"Hors herbicides (nouvelle méthode traitement de semences)\"&$B30,Tab_IFT!$B:$B&Tab_IFT!$A:$A&Tab_IFT!$C:$C,0),1)), \"NC\")","v":1.5},{"$f":"_xlfn.IFNA(_xlfn.IFNA(INDEX(Tab_IFT!F:F,MATCH($B$7&\"Hors herbicides (nouvelle méthode traitement de semences)\"&$B30,Tab_IFT!$B:$B&Tab_IFT!$A:$A&Tab_IFT!$C:$C,0),1), INDEX(Tab_IFT!F:F,MATCH(\"France métropolitaine\"&\"Hors herbicides (nouvelle méthode traitement de semences)\"&$B30,Tab_IFT!$B:$B&Tab_IFT!$A:$A&Tab_IFT!$C:$C,0),1)), \"NC\")","v":2.42},{"$f":"_xlfn.IFNA(_xlfn.IFNA(INDEX(Tab_IFT!G:G,MATCH($B$7&\"Hors herbicides (nouvelle méthode traitement de semences)\"&$B30,Tab_IFT!$B:$B&Tab_IFT!$A:$A&Tab_IFT!$C:$C,0),1), INDEX(Tab_IFT!G:G,MATCH(\"France métropolitaine\"&\"Hors herbicides (nouvelle méthode traitement de semences)\"&$B30,Tab_IFT!$B:$B&Tab_IFT!$A:$A&Tab_IFT!$C:$C,0),1)), \"NC\")","v":3},{"$f":"_xlfn.IFNA(_xlfn.IFNA(INDEX(Tab_IFT!H:H,MATCH($B$7&\"Hors herbicides (nouvelle méthode traitement de semences)\"&$B30,Tab_IFT!$B:$B&Tab_IFT!$A:$A&Tab_IFT!$C:$C,0),1), INDEX(Tab_IFT!H:H,MATCH(\"France métropolitaine\"&\"Hors herbicides (nouvelle méthode traitement de semences)\"&$B30,Tab_IFT!$B:$B&Tab_IFT!$A:$A&Tab_IFT!$C:$C,0),1)), \"NC\")","v":3.87},{"$f":"_xlfn.IFNA(_xlfn.IFNA(INDEX(Tab_IFT!I:I,MATCH($B$7&\"Hors herbicides (nouvelle méthode traitement de semences)\"&$B30,Tab_IFT!$B:$B&Tab_IFT!$A:$A&Tab_IFT!$C:$C,0),1), INDEX(Tab_IFT!I:I,MATCH(\"France métropolitaine\"&\"Hors herbicides (nouvelle méthode traitement de semences)\"&$B30,Tab_IFT!$B:$B&Tab_IFT!$A:$A&Tab_IFT!$C:$C,0),1)), \"NC\")","v":4.3600000000000003},{"$f":"_xlfn.IFNA(_xlfn.IFNA(INDEX(Tab_IFT!J:J,MATCH($B$7&\"Hors herbicides (nouvelle méthode traitement de semences)\"&$B30,Tab_IFT!$B:$B&Tab_IFT!$A:$A&Tab_IFT!$C:$C,0),1), INDEX(Tab_IFT!J:J,MATCH(\"France métropolitaine\"&\"Hors herbicides (nouvelle méthode traitement de semences)\"&$B30,Tab_IFT!$B:$B&Tab_IFT!$A:$A&Tab_IFT!$C:$C,0),1)), \"NC\")","v":5.66},{"$f":"IF(AND((R30=INDEX(Tab_IFT!I:I,MATCH(\"France métropolitaine\"&\"Hors herbicides (nouvelle méthode traitement de semences)\"&$B30,Tab_IFT!$B:$B&Tab_IFT!$A:$A&Tab_IFT!$C:$C,0),1)),(S30=INDEX(Tab_IFT!J:J,MATCH(\"France métropolitaine\"&\"Hors herbicides (nouvelle méthode traitement de semences)\"&$B30,Tab_IFT!$B:$B&Tab_IFT!$A:$A&Tab_IFT!$C:$C,0),1))), \" → Valeurs nationales utilisées\",\"\")","v":" → Valeurs nationales utilisées"}]
[null,"Fraise",0,{"$f":"IFERROR(_xlfn.IFNA(INDEX(Tab_N!C:C,MATCH($B$7&$B31,Tab_N!$A:$A&Tab_N!$B:$B,0),1), INDEX(Tab_N!C:C,MATCH(\"France\"&$B31,Tab_N!$A:$A&Tab_N!$B:$B,0),1)), 0)","v":0},{"$f":"_xlfn.IFNA(_xlfn.IFNA(INDEX(Tab_IFT!D:D,MATCH($B$7&\"Herbicides\"&$B31,Tab_IFT!$B:$B&Tab_IFT!$A:$A&Tab_IFT!$C:$C,0),1), INDEX(Tab_IFT!D:D,MATCH(\"France métropolitaine\"&\"Herbicides\"&$B31,Tab_IFT!$B:$B&Tab_IFT!$A:$A&Tab_IFT!$C:$C,0),1)), \"NC\")","v":0},{"$f":"_xlfn.IFNA(_xlfn.IFNA(INDEX(Tab_IFT!E:E,MATCH($B$7&\"Herbicides\"&$B31,Tab_IFT!$B:$B&Tab_IFT!$A:$A&Tab_IFT!$C:$C,0),1), INDEX(Tab_IFT!E:E,MATCH(\"France métropolitaine\"&\"Herbicides\"&$B31,Tab_IFT!$B:$B&Tab_IFT!$A:$A&Tab_IFT!$C:$C,0),1)), \"NC\")","v":0},{"$f":"_xlfn.IFNA(_xlfn.IFNA(INDEX(Tab_IFT!F:F,MATCH($B$7&\"Herbicides\"&$B31,Tab_IFT!$B:$B&Tab_IFT!$A:$A&Tab_IFT!$C:$C,0),1), INDEX(Tab_IFT!F:F,MATCH(\"France métropolitaine\"&\"Herbicides\"&$B31,Tab_IFT!$B:$B&Tab_IFT!$A:$A&Tab_IFT!$C:$C,0),1)), \"NC\")","v":0},{"$f":"_xlfn.IFNA(_xlfn.IFNA(INDEX(Tab_IFT!G:G,MATCH($B$7&\"Herbicides\"&$B31,Tab_IFT!$B:$B&Tab_IFT!$A:$A&Tab_IFT!$C:$C,0),1), INDEX(Tab_IFT!G:G,MATCH(\"France métropolitaine\"&\"Herbicides\"&$B31,Tab_IFT!$B:$B&Tab_IFT!$A:$A&Tab_IFT!$C:$C,0),1)), \"NC\")","v":0},{"$f":"_xlfn.IFNA(_xlfn.IFNA(INDEX(Tab_IFT!H:H,MATCH($B$7&\"Herbicides\"&$B31,Tab_IFT!$B:$B&Tab_IFT!$A:$A&Tab_IFT!$C:$C,0),1), INDEX(Tab_IFT!H:H,MATCH(\"France métropolitaine\"&\"Herbicides\"&$B31,Tab_IFT!$B:$B&Tab_IFT!$A:$A&Tab_IFT!$C:$C,0),1)), \"NC\")","v":0.08},{"$f":"_xlfn.IFNA(_xlfn.IFNA(INDEX(Tab_IFT!I:I,MATCH($B$7&\"Herbicides\"&$B31,Tab_IFT!$B:$B&Tab_IFT!$A:$A&Tab_IFT!$C:$C,0),1), INDEX(Tab_IFT!I:I,MATCH(\"France métropolitaine\"&\"Herbicides\"&$B31,Tab_IFT!$B:$B&Tab_IFT!$A:$A&Tab_IFT!$C:$C,0),1)), \"NC\")","v":0.16},{"$f":"_xlfn.IFNA(_xlfn.IFNA(INDEX(Tab_IFT!J:J,MATCH($B$7&\"Herbicides\"&$B31,Tab_IFT!$B:$B&Tab_IFT!$A:$A&Tab_IFT!$C:$C,0),1), INDEX(Tab_IFT!J:J,MATCH(\"France métropolitaine\"&\"Herbicides\"&$B31,Tab_IFT!$B:$B&Tab_IFT!$A:$A&Tab_IFT!$C:$C,0),1)), \"NC\")","v":0.32},{"$f":"IF(AND((K31=INDEX(Tab_IFT!J:J,MATCH(\"France métropolitaine\"&\"Herbicides\"&$B31,Tab_IFT!$B:$B&Tab_IFT!$A:$A&Tab_IFT!$C:$C,0),1)),(J31=INDEX(Tab_IFT!I:I,MATCH(\"France métropolitaine\"&\"Herbicides\"&$B31,Tab_IFT!$B:$B&Tab_IFT!$A:$A&Tab_IFT!$C:$C,0),1))), \" → Valeurs nationales utilisées\",\"\")","v":" → Valeurs nationales utilisées"},{"$f":"_xlfn.IFNA(_xlfn.IFNA(INDEX(Tab_IFT!D:D,MATCH($B$7&\"Hors herbicides (nouvelle méthode traitement de semences)\"&$B31,Tab_IFT!$B:$B&Tab_IFT!$A:$A&Tab_IFT!$C:$C,0),1), INDEX(Tab_IFT!D:D,MATCH(\"France métropolitaine\"&\"Hors herbicides (nouvelle méthode traitement de semences)\"&$B31,Tab_IFT!$B:$B&Tab_IFT!$A:$A&Tab_IFT!$C:$C,0),1)), \"NC\")","v":0.7},{"$f":"_xlfn.IFNA(_xlfn.IFNA(INDEX(Tab_IFT!E:E,MATCH($B$7&\"Hors herbicides (nouvelle méthode traitement de semences)\"&$B31,Tab_IFT!$B:$B&Tab_IFT!$A:$A&Tab_IFT!$C:$C,0),1), INDEX(Tab_IFT!E:E,MATCH(\"France métropolitaine\"&\"Hors herbicides (nouvelle méthode traitement de semences)\"&$B31,Tab_IFT!$B:$B&Tab_IFT!$A:$A&Tab_IFT!$C:$C,0),1)), \"NC\")","v":1.93},{"$f":"_xlfn.IFNA(_xlfn.IFNA(INDEX(Tab_IFT!F:F,MATCH($B$7&\"Hors herbicides (nouvelle méthode traitement de semences)\"&$B31,Tab_IFT!$B:$B&Tab_IFT!$A:$A&Tab_IFT!$C:$C,0),1), INDEX(Tab_IFT!F:F,MATCH(\"France métropolitaine\"&\"Hors herbicides (nouvelle méthode traitement de semences)\"&$B31,Tab_IFT!$B:$B&Tab_IFT!$A:$A&Tab_IFT!$C:$C,0),1)), \"NC\")","v":2.2000000000000002},{"$f":"_xlfn.IFNA(_xlfn.IFNA(INDEX(Tab_IFT!G:G,MATCH($B$7&\"Hors herbicides (nouvelle méthode traitement de semences)\"&$B31,Tab_IFT!$B:$B&Tab_IFT!$A:$A&Tab_IFT!$C:$C,0),1), INDEX(Tab_IFT!G:G,MATCH(\"France métropolitaine\"&\"Hors herbicides (nouvelle méthode traitement de semences)\"&$B31,Tab_IFT!$B:$B&Tab_IFT!$A:$A&Tab_IFT!$C:$C,0),1)), \"NC\")","v":2.66},{"$f":"_xlfn.IFNA(_xlfn.IFNA(INDEX(Tab_IFT!H:H,MATCH($B$7&\"Hors herbicides (nouvelle méthode traitement de semences)\"&$B31,Tab_IFT!$B:$B&Tab_IFT!$A:$A&Tab_IFT!$C:$C,0),1), INDEX(Tab_IFT!H:H,MATCH(\"France métropolitaine\"&\"Hors herbicides (nouvelle méthode traitement de semences)\"&$B31,Tab_IFT!$B:$B&Tab_IFT!$A:$A&Tab_IFT!$C:$C,0),1)), \"NC\")","v":4.01},{"$f":"_xlfn.IFNA(_xlfn.IFNA(INDEX(Tab_IFT!I:I,MATCH($B$7&\"Hors herbicides (nouvelle méthode traitement de semences)\"&$B31,Tab_IFT!$B:$B&Tab_IFT!$A:$A&Tab_IFT!$C:$C,0),1), INDEX(Tab_IFT!I:I,MATCH(\"France métropolitaine\"&\"Hors herbicides (nouvelle méthode traitement de semences)\"&$B31,Tab_IFT!$B:$B&Tab_IFT!$A:$A&Tab_IFT!$C:$C,0),1)), \"NC\")","v":5.14},{"$f":"_xlfn.IFNA(_xlfn.IFNA(INDEX(Tab_IFT!J:J,MATCH($B$7&\"Hors herbicides (nouvelle méthode traitement de semences)\"&$B31,Tab_IFT!$B:$B&Tab_IFT!$A:$A&Tab_IFT!$C:$C,0),1), INDEX(Tab_IFT!J:J,MATCH(\"France métropolitaine\"&\"Hors herbicides (nouvelle méthode traitement de semences)\"&$B31,Tab_IFT!$B:$B&Tab_IFT!$A:$A&Tab_IFT!$C:$C,0),1)), \"NC\")","v":5.86},{"$f":"IF(AND((R31=INDEX(Tab_IFT!I:I,MATCH(\"France métropolitaine\"&\"Hors herbicides (nouvelle méthode traitement de semences)\"&$B31,Tab_IFT!$B:$B&Tab_IFT!$A:$A&Tab_IFT!$C:$C,0),1)),(S31=INDEX(Tab_IFT!J:J,MATCH(\"France métropolitaine\"&\"Hors herbicides (nouvelle méthode traitement de semences)\"&$B31,Tab_IFT!$B:$B&Tab_IFT!$A:$A&Tab_IFT!$C:$C,0),1))), \" → Valeurs nationales utilisées\",\"\")","v":" → Valeurs nationales utilisées"}]
[null,"Melon",0,{"$f":"IFERROR(_xlfn.IFNA(INDEX(Tab_N!C:C,MATCH($B$7&$B32,Tab_N!$A:$A&Tab_N!$B:$B,0),1), INDEX(Tab_N!C:C,MATCH(\"France\"&$B32,Tab_N!$A:$A&Tab_N!$B:$B,0),1)), 0)","v":0},{"$f":"_xlfn.IFNA(_xlfn.IFNA(INDEX(Tab_IFT!D:D,MATCH($B$7&\"Herbicides\"&$B32,Tab_IFT!$B:$B&Tab_IFT!$A:$A&Tab_IFT!$C:$C,0),1), INDEX(Tab_IFT!D:D,MATCH(\"France métropolitaine\"&\"Herbicides\"&$B32,Tab_IFT!$B:$B&Tab_IFT!$A:$A&Tab_IFT!$C:$C,0),1)), \"NC\")","v":0},{"$f":"_xlfn.IFNA(_xlfn.IFNA(INDEX(Tab_IFT!E:E,MATCH($B$7&\"Herbicides\"&$B32,Tab_IFT!$B:$B&Tab_IFT!$A:$A&Tab_IFT!$C:$C,0),1), INDEX(Tab_IFT!E:E,MATCH(\"France métropolitaine\"&\"Herbicides\"&$B32,Tab_IFT!$B:$B&Tab_IFT!$A:$A&Tab_IFT!$C:$C,0),1)), \"NC\")","v":0},{"$f":"_xlfn.IFNA(_xlfn.IFNA(INDEX(Tab_IFT!F:F,MATCH($B$7&\"Herbicides\"&$B32,Tab_IFT!$B:$B&Tab_IFT!$A:$A&Tab_IFT!$C:$C,0),1), INDEX(Tab_IFT!F:F,MATCH(\"France métropolitaine\"&\"Herbicides\"&$B32,Tab_IFT!$B:$B&Tab_IFT!$A:$A&Tab_IFT!$C:$C,0),1)), \"NC\")","v":0},{"$f":"_xlfn.IFNA(_xlfn.IFNA(INDEX(Tab_IFT!G:G,MATCH($B$7&\"Herbicides\"&$B32,Tab_IFT!$B:$B&Tab_IFT!$A:$A&Tab_IFT!$C:$C,0),1), INDEX(Tab_IFT!G:G,MATCH(\"France métropolitaine\"&\"Herbicides\"&$B32,Tab_IFT!$B:$B&Tab_IFT!$A:$A&Tab_IFT!$C:$C,0),1)), \"NC\")","v":0},{"$f":"_xlfn.IFNA(_xlfn.IFNA(INDEX(Tab_IFT!H:H,MATCH($B$7&\"Herbicides\"&$B32,Tab_IFT!$B:$B&Tab_IFT!$A:$A&Tab_IFT!$C:$C,0),1), INDEX(Tab_IFT!H:H,MATCH(\"France métropolitaine\"&\"Herbicides\"&$B32,Tab_IFT!$B:$B&Tab_IFT!$A:$A&Tab_IFT!$C:$C,0),1)), \"NC\")","v":0},{"$f":"_xlfn.IFNA(_xlfn.IFNA(INDEX(Tab_IFT!I:I,MATCH($B$7&\"Herbicides\"&$B32,Tab_IFT!$B:$B&Tab_IFT!$A:$A&Tab_IFT!$C:$C,0),1), INDEX(Tab_IFT!I:I,MATCH(\"France métropolitaine\"&\"Herbicides\"&$B32,Tab_IFT!$B:$B&Tab_IFT!$A:$A&Tab_IFT!$C:$C,0),1)), \"NC\")","v":0},{"$f":"_xlfn.IFNA(_xlfn.IFNA(INDEX(Tab_IFT!J:J,MATCH($B$7&\"Herbicides\"&$B32,Tab_IFT!$B:$B&Tab_IFT!$A:$A&Tab_IFT!$C:$C,0),1), INDEX(Tab_IFT!J:J,MATCH(\"France métropolitaine\"&\"Herbicides\"&$B32,Tab_IFT!$B:$B&Tab_IFT!$A:$A&Tab_IFT!$C:$C,0),1)), \"NC\")","v":0.18},{"$f":"IF(AND((K32=INDEX(Tab_IFT!J:J,MATCH(\"France métropolitaine\"&\"Herbicides\"&$B32,Tab_IFT!$B:$B&Tab_IFT!$A:$A&Tab_IFT!$C:$C,0),1)),(J32=INDEX(Tab_IFT!I:I,MATCH(\"France métropolitaine\"&\"Herbicides\"&$B32,Tab_IFT!$B:$B&Tab_IFT!$A:$A&Tab_IFT!$C:$C,0),1))), \" → Valeurs nationales utilisées\",\"\")","v":" → Valeurs nationales utilisées"},{"$f":"_xlfn.IFNA(_xlfn.IFNA(INDEX(Tab_IFT!D:D,MATCH($B$7&\"Hors herbicides (nouvelle méthode traitement de semences)\"&$B32,Tab_IFT!$B:$B&Tab_IFT!$A:$A&Tab_IFT!$C:$C,0),1), INDEX(Tab_IFT!D:D,MATCH(\"France métropolitaine\"&\"Hors herbicides (nouvelle méthode traitement de semences)\"&$B32,Tab_IFT!$B:$B&Tab_IFT!$A:$A&Tab_IFT!$C:$C,0),1)), \"NC\")","v":2.5499999999999998},{"$f":"_xlfn.IFNA(_xlfn.IFNA(INDEX(Tab_IFT!E:E,MATCH($B$7&\"Hors herbicides (nouvelle méthode traitement de semences)\"&$B32,Tab_IFT!$B:$B&Tab_IFT!$A:$A&Tab_IFT!$C:$C,0),1), INDEX(Tab_IFT!E:E,MATCH(\"France métropolitaine\"&\"Hors herbicides (nouvelle méthode traitement de semences)\"&$B32,Tab_IFT!$B:$B&Tab_IFT!$A:$A&Tab_IFT!$C:$C,0),1)), \"NC\")","v":3.69},{"$f":"_xlfn.IFNA(_xlfn.IFNA(INDEX(Tab_IFT!F:F,MATCH($B$7&\"Hors herbicides (nouvelle méthode traitement de semences)\"&$B32,Tab_IFT!$B:$B&Tab_IFT!$A:$A&Tab_IFT!$C:$C,0),1), INDEX(Tab_IFT!F:F,MATCH(\"France métropolitaine\"&\"Hors herbicides (nouvelle méthode traitement de semences)\"&$B32,Tab_IFT!$B:$B&Tab_IFT!$A:$A&Tab_IFT!$C:$C,0),1)), \"NC\")","v":4.29},{"$f":"_xlfn.IFNA(_xlfn.IFNA(INDEX(Tab_IFT!G:G,MATCH($B$7&\"Hors herbicides (nouvelle méthode traitement de semences)\"&$B32,Tab_IFT!$B:$B&Tab_IFT!$A:$A&Tab_IFT!$C:$C,0),1), INDEX(Tab_IFT!G:G,MATCH(\"France métropolitaine\"&\"Hors herbicides (nouvelle méthode traitement de semences)\"&$B32,Tab_IFT!$B:$B&Tab_IFT!$A:$A&Tab_IFT!$C:$C,0),1)), \"NC\")","v":4.78},{"$f":"_xlfn.IFNA(_xlfn.IFNA(INDEX(Tab_IFT!H:H,MATCH($B$7&\"Hors herbicides (nouvelle méthode traitement de semences)\"&$B32,Tab_IFT!$B:$B&Tab_IFT!$A:$A&Tab_IFT!$C:$C,0),1), INDEX(Tab_IFT!H:H,MATCH(\"France métropolitaine\"&\"Hors herbicides (nouvelle méthode traitement de semences)\"&$B32,Tab_IFT!$B:$B&Tab_IFT!$A:$A&Tab_IFT!$C:$C,0),1)), \"NC\")","v":5.59},{"$f":"_xlfn.IFNA(_xlfn.IFNA(INDEX(Tab_IFT!I:I,MATCH($B$7&\"Hors herbicides (nouvelle méthode traitement de semences)\"&$B32,Tab_IFT!$B:$B&Tab_IFT!$A:$A&Tab_IFT!$C:$C,0),1), INDEX(Tab_IFT!I:I,MATCH(\"France métropolitaine\"&\"Hors herbicides (nouvelle méthode traitement de semences)\"&$B32,Tab_IFT!$B:$B&Tab_IFT!$A:$A&Tab_IFT!$C:$C,0),1)), \"NC\")","v":6.15},{"$f":"_xlfn.IFNA(_xlfn.IFNA(INDEX(Tab_IFT!J:J,MATCH($B$7&\"Hors herbicides (nouvelle méthode traitement de semences)\"&$B32,Tab_IFT!$B:$B&Tab_IFT!$A:$A&Tab_IFT!$C:$C,0),1), INDEX(Tab_IFT!J:J,MATCH(\"France métropolitaine\"&\"Hors herbicides (nouvelle méthode traitement de semences)\"&$B32,Tab_IFT!$B:$B&Tab_IFT!$A:$A&Tab_IFT!$C:$C,0),1)), \"NC\")","v":7.1},{"$f":"IF(AND((R32=INDEX(Tab_IFT!I:I,MATCH(\"France métropolitaine\"&\"Hors herbicides (nouvelle méthode traitement de semences)\"&$B32,Tab_IFT!$B:$B&Tab_IFT!$A:$A&Tab_IFT!$C:$C,0),1)),(S32=INDEX(Tab_IFT!J:J,MATCH(\"France métropolitaine\"&\"Hors herbicides (nouvelle méthode traitement de semences)\"&$B32,Tab_IFT!$B:$B&Tab_IFT!$A:$A&Tab_IFT!$C:$C,0),1))), \" → Valeurs nationales utilisées\",\"\")","v":" → Valeurs nationales utilisées"}]
[null,"Poireau",0,{"$f":"IFERROR(_xlfn.IFNA(INDEX(Tab_N!C:C,MATCH($B$7&$B33,Tab_N!$A:$A&Tab_N!$B:$B,0),1), INDEX(Tab_N!C:C,MATCH(\"France\"&$B33,Tab_N!$A:$A&Tab_N!$B:$B,0),1)), 0)","v":0},{"$f":"_xlfn.IFNA(_xlfn.IFNA(INDEX(Tab_IFT!D:D,MATCH($B$7&\"Herbicides\"&$B33,Tab_IFT!$B:$B&Tab_IFT!$A:$A&Tab_IFT!$C:$C,0),1), INDEX(Tab_IFT!D:D,MATCH(\"France métropolitaine\"&\"Herbicides\"&$B33,Tab_IFT!$B:$B&Tab_IFT!$A:$A&Tab_IFT!$C:$C,0),1)), \"NC\")","v":0},{"$f":"_xlfn.IFNA(_xlfn.IFNA(INDEX(Tab_IFT!E:E,MATCH($B$7&\"Herbicides\"&$B33,Tab_IFT!$B:$B&Tab_IFT!$A:$A&Tab_IFT!$C:$C,0),1), INDEX(Tab_IFT!E:E,MATCH(\"France métropolitaine\"&\"Herbicides\"&$B33,Tab_IFT!$B:$B&Tab_IFT!$A:$A&Tab_IFT!$C:$C,0),1)), \"NC\")","v":0.15},{"$f":"_xlfn.IFNA(_xlfn.IFNA(INDEX(Tab_IFT!F:F,MATCH($B$7&\"Herbicides\"&$B33,Tab_IFT!$B:$B&Tab_IFT!$A:$A&Tab_IFT!$C:$C,0),1), INDEX(Tab_IFT!F:F,MATCH(\"France métropolitaine\"&\"Herbicides\"&$B33,Tab_IFT!$B:$B&Tab_IFT!$A:$A&Tab_IFT!$C:$C,0),1)), \"NC\")","v":0.41},{"$f":"_xlfn.IFNA(_xlfn.IFNA(INDEX(Tab_IFT!G:G,MATCH($B$7&\"Herbicides\"&$B33,Tab_IFT!$B:$B&Tab_IFT!$A:$A&Tab_IFT!$C:$C,0),1), INDEX(Tab_IFT!G:G,MATCH(\"France métropolitaine\"&\"Herbicides\"&$B33,Tab_IFT!$B:$B&Tab_IFT!$A:$A&Tab_IFT!$C:$C,0),1)), \"NC\")","v":0.61},{"$f":"_xlfn.IFNA(_xlfn.IFNA(INDEX(Tab_IFT!H:H,MATCH($B$7&\"Herbicides\"&$B33,Tab_IFT!$B:$B&Tab_IFT!$A:$A&Tab_IFT!$C:$C,0),1), INDEX(Tab_IFT!H:H,MATCH(\"France métropolitaine\"&\"Herbicides\"&$B33,Tab_IFT!$B:$B&Tab_IFT!$A:$A&Tab_IFT!$C:$C,0),1)), \"NC\")","v":0.82},{"$f":"_xlfn.IFNA(_xlfn.IFNA(INDEX(Tab_IFT!I:I,MATCH($B$7&\"Herbicides\"&$B33,Tab_IFT!$B:$B&Tab_IFT!$A:$A&Tab_IFT!$C:$C,0),1), INDEX(Tab_IFT!I:I,MATCH(\"France métropolitaine\"&\"Herbicides\"&$B33,Tab_IFT!$B:$B&Tab_IFT!$A:$A&Tab_IFT!$C:$C,0),1)), \"NC\")","v":0.96},{"$f":"_xlfn.IFNA(_xlfn.IFNA(INDEX(Tab_IFT!J:J,MATCH($B$7&\"Herbicides\"&$B33,Tab_IFT!$B:$B&Tab_IFT!$A:$A&Tab_IFT!$C:$C,0),1), INDEX(Tab_IFT!J:J,MATCH(\"France métropolitaine\"&\"Herbicides\"&$B33,Tab_IFT!$B:$B&Tab_IFT!$A:$A&Tab_IFT!$C:$C,0),1)), \"NC\")","v":1.1399999999999999},{"$f":"IF(AND((K33=INDEX(Tab_IFT!J:J,MATCH(\"France métropolitaine\"&\"Herbicides\"&$B33,Tab_IFT!$B:$B&Tab_IFT!$A:$A&Tab_IFT!$C:$C,0),1)),(J33=INDEX(Tab_IFT!I:I,MATCH(\"France métropolitaine\"&\"Herbicides\"&$B33,Tab_IFT!$B:$B&Tab_IFT!$A:$A&Tab_IFT!$C:$C,0),1))), \" → Valeurs nationales utilisées\",\"\")","v":" → Valeurs nationales utilisées"},{"$f":"_xlfn.IFNA(_xlfn.IFNA(INDEX(Tab_IFT!D:D,MATCH($B$7&\"Hors herbicides (nouvelle méthode traitement de semences)\"&$B33,Tab_IFT!$B:$B&Tab_IFT!$A:$A&Tab_IFT!$C:$C,0),1), INDEX(Tab_IFT!D:D,MATCH(\"France métropolitaine\"&\"Hors herbicides (nouvelle méthode traitement de semences)\"&$B33,Tab_IFT!$B:$B&Tab_IFT!$A:$A&Tab_IFT!$C:$C,0),1)), \"NC\")","v":0.75},{"$f":"_xlfn.IFNA(_xlfn.IFNA(INDEX(Tab_IFT!E:E,MATCH($B$7&\"Hors herbicides (nouvelle méthode traitement de semences)\"&$B33,Tab_IFT!$B:$B&Tab_IFT!$A:$A&Tab_IFT!$C:$C,0),1), INDEX(Tab_IFT!E:E,MATCH(\"France métropolitaine\"&\"Hors herbicides (nouvelle méthode traitement de semences)\"&$B33,Tab_IFT!$B:$B&Tab_IFT!$A:$A&Tab_IFT!$C:$C,0),1)), \"NC\")","v":2.2999999999999998},{"$f":"_xlfn.IFNA(_xlfn.IFNA(INDEX(Tab_IFT!F:F,MATCH($B$7&\"Hors herbicides (nouvelle méthode traitement de semences)\"&$B33,Tab_IFT!$B:$B&Tab_IFT!$A:$A&Tab_IFT!$C:$C,0),1), INDEX(Tab_IFT!F:F,MATCH(\"France métropolitaine\"&\"Hors herbicides (nouvelle méthode traitement de semences)\"&$B33,Tab_IFT!$B:$B&Tab_IFT!$A:$A&Tab_IFT!$C:$C,0),1)), \"NC\")","v":3.92},{"$f":"_xlfn.IFNA(_xlfn.IFNA(INDEX(Tab_IFT!G:G,MATCH($B$7&\"Hors herbicides (nouvelle méthode traitement de semences)\"&$B33,Tab_IFT!$B:$B&Tab_IFT!$A:$A&Tab_IFT!$C:$C,0),1), INDEX(Tab_IFT!G:G,MATCH(\"France métropolitaine\"&\"Hors herbicides (nouvelle méthode traitement de semences)\"&$B33,Tab_IFT!$B:$B&Tab_IFT!$A:$A&Tab_IFT!$C:$C,0),1)), \"NC\")","v":5.4},{"$f":"_xlfn.IFNA(_xlfn.IFNA(INDEX(Tab_IFT!H:H,MATCH($B$7&\"Hors herbicides (nouvelle méthode traitement de semences)\"&$B33,Tab_IFT!$B:$B&Tab_IFT!$A:$A&Tab_IFT!$C:$C,0),1), INDEX(Tab_IFT!H:H,MATCH(\"France métropolitaine\"&\"Hors herbicides (nouvelle méthode traitement de semences)\"&$B33,Tab_IFT!$B:$B&Tab_IFT!$A:$A&Tab_IFT!$C:$C,0),1)), \"NC\")","v":6.84},{"$f":"_xlfn.IFNA(_xlfn.IFNA(INDEX(Tab_IFT!I:I,MATCH($B$7&\"Hors herbicides (nouvelle méthode traitement de semences)\"&$B33,Tab_IFT!$B:$B&Tab_IFT!$A:$A&Tab_IFT!$C:$C,0),1), INDEX(Tab_IFT!I:I,MATCH(\"France métropolitaine\"&\"Hors herbicides (nouvelle méthode traitement de semences)\"&$B33,Tab_IFT!$B:$B&Tab_IFT!$A:$A&Tab_IFT!$C:$C,0),1)), \"NC\")","v":8.2200000000000006},{"$f":"_xlfn.IFNA(_xlfn.IFNA(INDEX(Tab_IFT!J:J,MATCH($B$7&\"Hors herbicides (nouvelle méthode traitement de semences)\"&$B33,Tab_IFT!$B:$B&Tab_IFT!$A:$A&Tab_IFT!$C:$C,0),1), INDEX(Tab_IFT!J:J,MATCH(\"France métropolitaine\"&\"Hors herbicides (nouvelle méthode traitement de semences)\"&$B33,Tab_IFT!$B:$B&Tab_IFT!$A:$A&Tab_IFT!$C:$C,0),1)), \"NC\")","v":9.93},{"$f":"IF(AND((R33=INDEX(Tab_IFT!I:I,MATCH(\"France métropolitaine\"&\"Hors herbicides (nouvelle méthode traitement de semences)\"&$B33,Tab_IFT!$B:$B&Tab_IFT!$A:$A&Tab_IFT!$C:$C,0),1)),(S33=INDEX(Tab_IFT!J:J,MATCH(\"France métropolitaine\"&\"Hors herbicides (nouvelle méthode traitement de semences)\"&$B33,Tab_IFT!$B:$B&Tab_IFT!$A:$A&Tab_IFT!$C:$C,0),1))), \" → Valeurs nationales utilisées\",\"\")","v":" → Valeurs nationales utilisées"}]
[null,"Salade",0,{"$f":"IFERROR(_xlfn.IFNA(INDEX(Tab_N!C:C,MATCH($B$7&$B34,Tab_N!$A:$A&Tab_N!$B:$B,0),1), INDEX(Tab_N!C:C,MATCH(\"France\"&$B34,Tab_N!$A:$A&Tab_N!$B:$B,0),1)), 0)","v":0},{"$f":"_xlfn.IFNA(_xlfn.IFNA(INDEX(Tab_IFT!D:D,MATCH($B$7&\"Herbicides\"&$B34,Tab_IFT!$B:$B&Tab_IFT!$A:$A&Tab_IFT!$C:$C,0),1), INDEX(Tab_IFT!D:D,MATCH(\"France métropolitaine\"&\"Herbicides\"&$B34,Tab_IFT!$B:$B&Tab_IFT!$A:$A&Tab_IFT!$C:$C,0),1)), \"NC\")","v":0},{"$f":"_xlfn.IFNA(_xlfn.IFNA(INDEX(Tab_IFT!E:E,MATCH($B$7&\"Herbicides\"&$B34,Tab_IFT!$B:$B&Tab_IFT!$A:$A&Tab_IFT!$C:$C,0),1), INDEX(Tab_IFT!E:E,MATCH(\"France métropolitaine\"&\"Herbicides\"&$B34,Tab_IFT!$B:$B&Tab_IFT!$A:$A&Tab_IFT!$C:$C,0),1)), \"NC\")","v":0},{"$f":"_xlfn.IFNA(_xlfn.IFNA(INDEX(Tab_IFT!F:F,MATCH($B$7&\"Herbicides\"&$B34,Tab_IFT!$B:$B&Tab_IFT!$A:$A&Tab_IFT!$C:$C,0),1), INDEX(Tab_IFT!F:F,MATCH(\"France métropolitaine\"&\"Herbicides\"&$B34,Tab_IFT!$B:$B&Tab_IFT!$A:$A&Tab_IFT!$C:$C,0),1)), \"NC\")","v":0},{"$f":"_xlfn.IFNA(_xlfn.IFNA(INDEX(Tab_IFT!G:G,MATCH($B$7&\"Herbicides\"&$B34,Tab_IFT!$B:$B&Tab_IFT!$A:$A&Tab_IFT!$C:$C,0),1), INDEX(Tab_IFT!G:G,MATCH(\"France métropolitaine\"&\"Herbicides\"&$B34,Tab_IFT!$B:$B&Tab_IFT!$A:$A&Tab_IFT!$C:$C,0),1)), \"NC\")","v":0.18},{"$f":"_xlfn.IFNA(_xlfn.IFNA(INDEX(Tab_IFT!H:H,MATCH($B$7&\"Herbicides\"&$B34,Tab_IFT!$B:$B&Tab_IFT!$A:$A&Tab_IFT!$C:$C,0),1), INDEX(Tab_IFT!H:H,MATCH(\"France métropolitaine\"&\"Herbicides\"&$B34,Tab_IFT!$B:$B&Tab_IFT!$A:$A&Tab_IFT!$C:$C,0),1)), \"NC\")","v":0.27},{"$f":"_xlfn.IFNA(_xlfn.IFNA(INDEX(Tab_IFT!I:I,MATCH($B$7&\"Herbicides\"&$B34,Tab_IFT!$B:$B&Tab_IFT!$A:$A&Tab_IFT!$C:$C,0),1), INDEX(Tab_IFT!I:I,MATCH(\"France métropolitaine\"&\"Herbicides\"&$B34,Tab_IFT!$B:$B&Tab_IFT!$A:$A&Tab_IFT!$C:$C,0),1)), \"NC\")","v":0.54},{"$f":"_xlfn.IFNA(_xlfn.IFNA(INDEX(Tab_IFT!J:J,MATCH($B$7&\"Herbicides\"&$B34,Tab_IFT!$B:$B&Tab_IFT!$A:$A&Tab_IFT!$C:$C,0),1), INDEX(Tab_IFT!J:J,MATCH(\"France métropolitaine\"&\"Herbicides\"&$B34,Tab_IFT!$B:$B&Tab_IFT!$A:$A&Tab_IFT!$C:$C,0),1)), \"NC\")","v":0.7},{"$f":"IF(AND((K34=INDEX(Tab_IFT!J:J,MATCH(\"France métropolitaine\"&\"Herbicides\"&$B34,Tab_IFT!$B:$B&Tab_IFT!$A:$A&Tab_IFT!$C:$C,0),1)),(J34=INDEX(Tab_IFT!I:I,MATCH(\"France métropolitaine\"&\"Herbicides\"&$B34,Tab_IFT!$B:$B&Tab_IFT!$A:$A&Tab_IFT!$C:$C,0),1))), \" → Valeurs nationales utilisées\",\"\")","v":" → Valeurs nationales utilisées"},{"$f":"_xlfn.IFNA(_xlfn.IFNA(INDEX(Tab_IFT!D:D,MATCH($B$7&\"Hors herbicides (nouvelle méthode traitement de semences)\"&$B34,Tab_IFT!$B:$B&Tab_IFT!$A:$A&Tab_IFT!$C:$C,0),1), INDEX(Tab_IFT!D:D,MATCH(\"France métropolitaine\"&\"Hors herbicides (nouvelle méthode traitement de semences)\"&$B34,Tab_IFT!$B:$B&Tab_IFT!$A:$A&Tab_IFT!$C:$C,0),1)), \"NC\")","v":1},{"$f":"_xlfn.IFNA(_xlfn.IFNA(INDEX(Tab_IFT!E:E,MATCH($B$7&\"Hors herbicides (nouvelle méthode traitement de semences)\"&$B34,Tab_IFT!$B:$B&Tab_IFT!$A:$A&Tab_IFT!$C:$C,0),1), INDEX(Tab_IFT!E:E,MATCH(\"France métropolitaine\"&\"Hors herbicides (nouvelle méthode traitement de semences)\"&$B34,Tab_IFT!$B:$B&Tab_IFT!$A:$A&Tab_IFT!$C:$C,0),1)), \"NC\")","v":1},{"$f":"_xlfn.IFNA(_xlfn.IFNA(INDEX(Tab_IFT!F:F,MATCH($B$7&\"Hors herbicides (nouvelle méthode traitement de semences)\"&$B34,Tab_IFT!$B:$B&Tab_IFT!$A:$A&Tab_IFT!$C:$C,0),1), INDEX(Tab_IFT!F:F,MATCH(\"France métropolitaine\"&\"Hors herbicides (nouvelle méthode traitement de semences)\"&$B34,Tab_IFT!$B:$B&Tab_IFT!$A:$A&Tab_IFT!$C:$C,0),1)), \"NC\")","v":1.33},{"$f":"_xlfn.IFNA(_xlfn.IFNA(INDEX(Tab_IFT!G:G,MATCH($B$7&\"Hors herbicides (nouvelle méthode traitement de semences)\"&$B34,Tab_IFT!$B:$B&Tab_IFT!$A:$A&Tab_IFT!$C:$C,0),1), INDEX(Tab_IFT!G:G,MATCH(\"France métropolitaine\"&\"Hors herbicides (nouvelle méthode traitement de semences)\"&$B34,Tab_IFT!$B:$B&Tab_IFT!$A:$A&Tab_IFT!$C:$C,0),1)), \"NC\")","v":1.71},{"$f":"_xlfn.IFNA(_xlfn.IFNA(INDEX(Tab_IFT!H:H,MATCH($B$7&\"Hors herbicides (nouvelle méthode traitement de semences)\"&$B34,Tab_IFT!$B:$B&Tab_IFT!$A:$A&Tab_IFT!$C:$C,0),1), INDEX(Tab_IFT!H:H,MATCH(\"France métropolitaine\"&\"Hors herbicides (nouvelle méthode traitement de semences)\"&$B34,Tab_IFT!$B:$B&Tab_IFT!$A:$A&Tab_IFT!$C:$C,0),1)), \"NC\")","v":2},{"$f":"_xlfn.IFNA(_xlfn.IFNA(INDEX(Tab_IFT!I:I,MATCH($B$7&\"Hors herbicides (nouvelle méthode traitement de semences)\"&$B34,Tab_IFT!$B:$B&Tab_IFT!$A:$A&Tab_IFT!$C:$C,0),1), INDEX(Tab_IFT!I:I,MATCH(\"France métropolitaine\"&\"Hors herbicides (nouvelle méthode traitement de semences)\"&$B34,Tab_IFT!$B:$B&Tab_IFT!$A:$A&Tab_IFT!$C:$C,0),1)), \"NC\")","v":2.5499999999999998},{"$f":"_xlfn.IFNA(_xlfn.IFNA(INDEX(Tab_IFT!J:J,MATCH($B$7&\"Hors herbicides (nouvelle méthode traitement de semences)\"&$B34,Tab_IFT!$B:$B&Tab_IFT!$A:$A&Tab_IFT!$C:$C,0),1), INDEX(Tab_IFT!J:J,MATCH(\"France métropolitaine\"&\"Hors herbicides (nouvelle méthode traitement de semences)\"&$B34,Tab_IFT!$B:$B&Tab_IFT!$A:$A&Tab_IFT!$C:$C,0),1)), \"NC\")","v":3.84},{"$f":"IF(AND((R34=INDEX(Tab_IFT!I:I,MATCH(\"France métropolitaine\"&\"Hors herbicides (nouvelle méthode traitement de semences)\"&$B34,Tab_IFT!$B:$B&Tab_IFT!$A:$A&Tab_IFT!$C:$C,0),1)),(S34=INDEX(Tab_IFT!J:J,MATCH(\"France métropolitaine\"&\"Hors herbicides (nouvelle méthode traitement de semences)\"&$B34,Tab_IFT!$B:$B&Tab_IFT!$A:$A&Tab_IFT!$C:$C,0),1))), \" → Valeurs nationales utilisées\",\"\")","v":" → Valeurs nationales utilisées"}]
[null,"Tomate",0,{"$f":"IFERROR(_xlfn.IFNA(INDEX(Tab_N!C:C,MATCH($B$7&$B35,Tab_N!$A:$A&Tab_N!$B:$B,0),1), INDEX(Tab_N!C:C,MATCH(\"France\"&$B35,Tab_N!$A:$A&Tab_N!$B:$B,0),1)), 0)","v":0},{"$f":"_xlfn.IFNA(_xlfn.IFNA(INDEX(Tab_IFT!D:D,MATCH($B$7&\"Herbicides\"&$B35,Tab_IFT!$B:$B&Tab_IFT!$A:$A&Tab_IFT!$C:$C,0),1), INDEX(Tab_IFT!D:D,MATCH(\"France métropolitaine\"&\"Herbicides\"&$B35,Tab_IFT!$B:$B&Tab_IFT!$A:$A&Tab_IFT!$C:$C,0),1)), \"NC\")","v":0},{"$f":"_xlfn.IFNA(_xlfn.IFNA(INDEX(Tab_IFT!E:E,MATCH($B$7&\"Herbicides\"&$B35,Tab_IFT!$B:$B&Tab_IFT!$A:$A&Tab_IFT!$C:$C,0),1), INDEX(Tab_IFT!E:E,MATCH(\"France métropolitaine\"&\"Herbicides\"&$B35,Tab_IFT!$B:$B&Tab_IFT!$A:$A&Tab_IFT!$C:$C,0),1)), \"NC\")","v":0},{"$f":"_xlfn.IFNA(_xlfn.IFNA(INDEX(Tab_IFT!F:F,MATCH($B$7&\"Herbicides\"&$B35,Tab_IFT!$B:$B&Tab_IFT!$A:$A&Tab_IFT!$C:$C,0),1), INDEX(Tab_IFT!F:F,MATCH(\"France métropolitaine\"&\"Herbicides\"&$B35,Tab_IFT!$B:$B&Tab_IFT!$A:$A&Tab_IFT!$C:$C,0),1)), \"NC\")","v":0},{"$f":"_xlfn.IFNA(_xlfn.IFNA(INDEX(Tab_IFT!G:G,MATCH($B$7&\"Herbicides\"&$B35,Tab_IFT!$B:$B&Tab_IFT!$A:$A&Tab_IFT!$C:$C,0),1), INDEX(Tab_IFT!G:G,MATCH(\"France métropolitaine\"&\"Herbicides\"&$B35,Tab_IFT!$B:$B&Tab_IFT!$A:$A&Tab_IFT!$C:$C,0),1)), \"NC\")","v":0},{"$f":"_xlfn.IFNA(_xlfn.IFNA(INDEX(Tab_IFT!H:H,MATCH($B$7&\"Herbicides\"&$B35,Tab_IFT!$B:$B&Tab_IFT!$A:$A&Tab_IFT!$C:$C,0),1), INDEX(Tab_IFT!H:H,MATCH(\"France métropolitaine\"&\"Herbicides\"&$B35,Tab_IFT!$B:$B&Tab_IFT!$A:$A&Tab_IFT!$C:$C,0),1)), \"NC\")","v":0.93},{"$f":"_xlfn.IFNA(_xlfn.IFNA(INDEX(Tab_IFT!I:I,MATCH($B$7&\"Herbicides\"&$B35,Tab_IFT!$B:$B&Tab_IFT!$A:$A&Tab_IFT!$C:$C,0),1), INDEX(Tab_IFT!I:I,MATCH(\"France métropolitaine\"&\"Herbicides\"&$B35,Tab_IFT!$B:$B&Tab_IFT!$A:$A&Tab_IFT!$C:$C,0),1)), \"NC\")","v":1.01},{"$f":"_xlfn.IFNA(_xlfn.IFNA(INDEX(Tab_IFT!J:J,MATCH($B$7&\"Herbicides\"&$B35,Tab_IFT!$B:$B&Tab_IFT!$A:$A&Tab_IFT!$C:$C,0),1), INDEX(Tab_IFT!J:J,MATCH(\"France métropolitaine\"&\"Herbicides\"&$B35,Tab_IFT!$B:$B&Tab_IFT!$A:$A&Tab_IFT!$C:$C,0),1)), \"NC\")","v":1.5},{"$f":"IF(AND((K35=INDEX(Tab_IFT!J:J,MATCH(\"France métropolitaine\"&\"Herbicides\"&$B35,Tab_IFT!$B:$B&Tab_IFT!$A:$A&Tab_IFT!$C:$C,0),1)),(J35=INDEX(Tab_IFT!I:I,MATCH(\"France métropolitaine\"&\"Herbicides\"&$B35,Tab_IFT!$B:$B&Tab_IFT!$A:$A&Tab_IFT!$C:$C,0),1))), \" → Valeurs nationales utilisées\",\"\")","v":" → Valeurs nationales utilisées"},{"$f":"_xlfn.IFNA(_xlfn.IFNA(INDEX(Tab_IFT!D:D,MATCH($B$7&\"Hors herbicides (nouvelle méthode traitement de semences)\"&$B35,Tab_IFT!$B:$B&Tab_IFT!$A:$A&Tab_IFT!$C:$C,0),1), INDEX(Tab_IFT!D:D,MATCH(\"France métropolitaine\"&\"Hors herbicides (nouvelle méthode traitement de semences)\"&$B35,Tab_IFT!$B:$B&Tab_IFT!$A:$A&Tab_IFT!$C:$C,0),1)), \"NC\")","v":1.03},{"$f":"_xlfn.IFNA(_xlfn.IFNA(INDEX(Tab_IFT!E:E,MATCH($B$7&\"Hors herbicides (nouvelle méthode traitement de semences)\"&$B35,Tab_IFT!$B:$B&Tab_IFT!$A:$A&Tab_IFT!$C:$C,0),1), INDEX(Tab_IFT!E:E,MATCH(\"France métropolitaine\"&\"Hors herbicides (nouvelle méthode traitement de semences)\"&$B35,Tab_IFT!$B:$B&Tab_IFT!$A:$A&Tab_IFT!$C:$C,0),1)), \"NC\")","v":3.13},{"$f":"_xlfn.IFNA(_xlfn.IFNA(INDEX(Tab_IFT!F:F,MATCH($B$7&\"Hors herbicides (nouvelle méthode traitement de semences)\"&$B35,Tab_IFT!$B:$B&Tab_IFT!$A:$A&Tab_IFT!$C:$C,0),1), INDEX(Tab_IFT!F:F,MATCH(\"France métropolitaine\"&\"Hors herbicides (nouvelle méthode traitement de semences)\"&$B35,Tab_IFT!$B:$B&Tab_IFT!$A:$A&Tab_IFT!$C:$C,0),1)), \"NC\")","v":5.14},{"$f":"_xlfn.IFNA(_xlfn.IFNA(INDEX(Tab_IFT!G:G,MATCH($B$7&\"Hors herbicides (nouvelle méthode traitement de semences)\"&$B35,Tab_IFT!$B:$B&Tab_IFT!$A:$A&Tab_IFT!$C:$C,0),1), INDEX(Tab_IFT!G:G,MATCH(\"France métropolitaine\"&\"Hors herbicides (nouvelle méthode traitement de semences)\"&$B35,Tab_IFT!$B:$B&Tab_IFT!$A:$A&Tab_IFT!$C:$C,0),1)), \"NC\")","v":7.65},{"$f":"_xlfn.IFNA(_xlfn.IFNA(INDEX(Tab_IFT!H:H,MATCH($B$7&\"Hors herbicides (nouvelle méthode traitement de semences)\"&$B35,Tab_IFT!$B:$B&Tab_IFT!$A:$A&Tab_IFT!$C:$C,0),1), INDEX(Tab_IFT!H:H,MATCH(\"France métropolitaine\"&\"Hors herbicides (nouvelle méthode traitement de semences)\"&$B35,Tab_IFT!$B:$B&Tab_IFT!$A:$A&Tab_IFT!$C:$C,0),1)), \"NC\")","v":9.06},{"$f":"_xlfn.IFNA(_xlfn.IFNA(INDEX(Tab_IFT!I:I,MATCH($B$7&\"Hors herbicides (nouvelle méthode traitement de semences)\"&$B35,Tab_IFT!$B:$B&Tab_IFT!$A:$A&Tab_IFT!$C:$C,0),1), INDEX(Tab_IFT!I:I,MATCH(\"France métropolitaine\"&\"Hors herbicides (nouvelle méthode traitement de semences)\"&$B35,Tab_IFT!$B:$B&Tab_IFT!$A:$A&Tab_IFT!$C:$C,0),1)), \"NC\")","v":11.23},{"$f":"_xlfn.IFNA(_xlfn.IFNA(INDEX(Tab_IFT!J:J,MATCH($B$7&\"Hors herbicides (nouvelle méthode traitement de semences)\"&$B35,Tab_IFT!$B:$B&Tab_IFT!$A:$A&Tab_IFT!$C:$C,0),1), INDEX(Tab_IFT!J:J,MATCH(\"France métropolitaine\"&\"Hors herbicides (nouvelle méthode traitement de semences)\"&$B35,Tab_IFT!$B:$B&Tab_IFT!$A:$A&Tab_IFT!$C:$C,0),1)), \"NC\")","v":13.34},{"$f":"IF(AND((R35=INDEX(Tab_IFT!I:I,MATCH(\"France métropolitaine\"&\"Hors herbicides (nouvelle méthode traitement de semences)\"&$B35,Tab_IFT!$B:$B&Tab_IFT!$A:$A&Tab_IFT!$C:$C,0),1)),(S35=INDEX(Tab_IFT!J:J,MATCH(\"France métropolitaine\"&\"Hors herbicides (nouvelle méthode traitement de semences)\"&$B35,Tab_IFT!$B:$B&Tab_IFT!$A:$A&Tab_IFT!$C:$C,0),1))), \" → Valeurs nationales utilisées\",\"\")","v":" → Valeurs nationales utilisées"}]
[]
[null,"Bilan d'IFT"]
[]
[null,"Seuils d'IFT Herbicides",null,null,null,null,null,null,null,null,null,"Seuils d'IFT Herbicides - Cas des exploitations en polyculture-élevage (mesures FER et SDC)"]
[null,null,"Grandes cultures",null,null,null," Cultures légumières + PdT",null,null,null,null,null,"Grandes cultures",null,null,null,"Cultures légumières + PdT"]
[null,"Année d'engagement","Surfaces engagées",null,"Surfaces éligibles non engagées",null,"Surfaces engagées",null,"Surfaces éligibles non engagées",null,null,"Année d'engagement","Surfaces engagées",null,"Surfaces éligibles non engagées",null,"Surfaces engagées",null,"Surfaces éligibles non engagées"]
[null,null,"IFT max à respecter sur les surfaces engagées","Percentile utilisé","IFT max à respecter sur les surfaces non engagées","Percentile utilisé","IFT max à respecter sur les surfaces engagées","Percentile utilisé","IFT max à respecter sur les surfaces non engagées","Percentile utilisé",null,null,"IFT max à respecter sur les surfaces engagées","Percentile utilisé","IFT max à respecter sur les surfaces non engagées","Percentile utilisé","IFT max à respecter sur les surfaces engagées","Percentile utilisé","IFT max à respecter sur les surfaces non engagées","Percentile utilisé"]
[null,"année 1",null,null,null,null,null,null,null,null,null,"année 1"]
[null,"année 2",{"$f":"IFERROR(ROUNDUP((1-$E$7)*SUMPRODUCT(INDEX($E$11:$K$24,$11:$24,MATCH(D44,$E$10:$K$10,0)),$C$11:$C$24)/(SUMIF($C$11:$C$24, \"<>0\", $C$11:$C$24)),1), \"\")","v":""},{"$f":"INDEX(Tab_MAEC!C:C,MATCH($C$7&$B44,Tab_MAEC!A:A&Tab_MAEC!B:B,0),1)","v":"P50"},{"$f":"IFERROR(ROUNDUP((1-$E$7)*SUMPRODUCT(INDEX($E$11:$K$24,$11:$24,MATCH($F44,$E$10:$K$10,0)),$C$11:$C$24)/(SUMIF($C$11:$C$24, \"<>0\", $C$11:$C$24)),1), \"\")","v":""},{"$f":"IF(D44=0,0,\"P70\")","v":"P70"},{"$f":"IFERROR(ROUNDUP(SUMPRODUCT(INDEX($E$27:$K$35,$27:$35,MATCH($H44,$E$10:$K$10,0)),$C$27:$C$35)/(SUMIF($C$27:$C$35, \"<>0\", $C$27:$C$35)),1), \"\")","v":""},{"$f":"D44","v":"P50"},{"$f":"IFERROR(ROUNDUP(SUMPRODUCT(INDEX($E$27:$K$35,$27:$35,MATCH($J44,$E$10:$K$10,0)),$C$27:$C$35)/(SUMIF($C$27:$C$35, \"<>0\", $C$27:$C$35)),1), \"\")","v":""},{"$f":"IF(H44=0,0,\"P70\")","v":"P70"},null,"année 2",{"$f":"IFERROR(ROUNDUP(SUMPRODUCT(INDEX($E$11:$K$24,$11:$24,MATCH($N44,$E$10:$K$10,0)),$C$11:$C$24)/(SUMIF($C$11:$C$24, \"<>0\", $C$11:$C$24)+$C$26),1), \"\")","v":""},{"$f":"IF(INDEX(Tab_MAEC!H:H,MATCH($C$7&$B44,Tab_MAEC!A:A&Tab_MAEC!B:B,0),1)=\"Oui\",INDEX(Tab_MAEC!C:C,MATCH($C$7&$B44,Tab_MAEC!A:A&Tab_MAEC!B:B,0),1),\"\")","v":""},{"$f":"IFERROR(ROUNDUP(SUMPRODUCT(INDEX($E$11:$K$24,$11:$24,MATCH($P44,$E$10:$K$10,0)),$C$11:$C$24)/(SUMIF($C$11:$C$24, \"<>0\", $C$11:$C$24)+$C$26),1), \"\")","v":""},{"$f":"IF(OR(N44=\"\",N44=0),\"\",\"P70\")","v":""},{"$f":"IFERROR(ROUNDUP(SUMPRODUCT(INDEX($E$27:$K$35,$27:$35,MATCH($R44,$E$10:$K$10,0)),$C$27:$C$35)/(SUMIF($C$27:$C$35, \"<>0\", $C$27:$C$35)),1), \"\")","v":""},{"$f":"N44","v":""},{"$f":"IFERROR(ROUNDUP(SUMPRODUCT(INDEX($E$27:$K$35,$27:$35,MATCH($T44,$E$10:$K$10,0)),$C$27:$C$35)/(SUMIF($C$27:$C$35, \"<>0\", $C$27:$C$35)),1), \"\")","v":""},{"$f":"IF(OR(R44=\"\",R44=0),\"\",\"P70\")","v":""}]
[null,"Année 3 OU moyenne années 2 et 3",{"$f":"IFERROR(ROUNDUP((1-$E$7)*SUMPRODUCT(INDEX($E$11:$K$24,$11:$24,MATCH(D45,$E$10:$K$10,0)),$C$11:$C$24)/(SUMIF($C$11:$C$24, \"<>0\", $C$11:$C$24)),1), \"\")","v":""},{"$f":"INDEX(Tab_MAEC!C:C,MATCH($C$7&$B45,Tab_MAEC!A:A&Tab_MAEC!B:B,0),1)","v":"P30"},{"$f":"IFERROR(ROUNDUP((1-$E$7)*SUMPRODUCT(INDEX($E$11:$K$24,$11:$24,MATCH($F45,$E$10:$K$10,0)),$C$11:$C$24)/(SUMIF($C$11:$C$24, \"<>0\", $C$11:$C$24)),1), \"\")","v":""},{"$f":"IF(D45=0,0,\"P70\")","v":"P70"},{"$f":"IFERROR(ROUNDUP(SUMPRODUCT(INDEX($E$27:$K$35,$27:$35,MATCH($H45,$E$10:$K$10,0)),$C$27:$C$35)/(SUMIF($C$27:$C$35, \"<>0\", $C$27:$C$35)),1), \"\")","v":""},{"$f":"D45","v":"P30"},{"$f":"IFERROR(ROUNDUP(SUMPRODUCT(INDEX($E$27:$K$35,$27:$35,MATCH($J45,$E$10:$K$10,0)),$C$27:$C$35)/(SUMIF($C$27:$C$35, \"<>0\", $C$27:$C$35)),1), \"\")","v":""},{"$f":"IF(H45=0,0,\"P70\")","v":"P70"},null,"Année 3 OU moyenne années 2 et 3",{"$f":"IFERROR(ROUNDUP(SUMPRODUCT(INDEX($E$11:$K$24,$11:$24,MATCH($N45,$E$10:$K$10,0)),$C$11:$C$24)/(SUMIF($C$11:$C$24, \"<>0\", $C$11:$C$24)+$C$26),1), \"\")","v":""},{"$f":"IF(INDEX(Tab_MAEC!H:H,MATCH($C$7&$B45,Tab_MAEC!A:A&Tab_MAEC!B:B,0),1)=\"Oui\",INDEX(Tab_MAEC!C:C,MATCH($C$7&$B45,Tab_MAEC!A:A&Tab_MAEC!B:B,0),1),\"\")","v":""},{"$f":"IFERROR(ROUNDUP(SUMPRODUCT(INDEX($E$11:$K$24,$11:$24,MATCH($P45,$E$10:$K$10,0)),$C$11:$C$24)/(SUMIF($C$11:$C$24, \"<>0\", $C$11:$C$24)+$C$26),1), \"\")","v":""},{"$f":"IF(OR(N45=\"\",N45=0),\"\",\"P70\")","v":""},{"$f":"IFERROR(ROUNDUP(SUMPRODUCT(INDEX($E$27:$K$35,$27:$35,MATCH($R45,$E$10:$K$10,0)),$C$27:$C$35)/(SUMIF($C$27:$C$35, \"<>0\", $C$27:$C$35)),1), \"\")","v":""},{"$f":"N45","v":""},{"$f":"IFERROR(ROUNDUP(SUMPRODUCT(INDEX($E$27:$K$35,$27:$35,MATCH($T45,$E$10:$K$10,0)),$C$27:$C$35)/(SUMIF($C$27:$C$35, \"<>0\", $C$27:$C$35)),1), \"\")","v":""},{"$f":"IF(OR(R45=\"\",R45=0),\"\",\"P70\")","v":""}]
[null,"Année 4 OU moyenne années 2,3,4",{"$f":"IFERROR(ROUNDUP((1-$E$7)*SUMPRODUCT(INDEX($E$11:$K$24,$11:$24,MATCH(D46,$E$10:$K$10,0)),$C$11:$C$24)/(SUMIF($C$11:$C$24, \"<>0\", $C$11:$C$24)),1), \"\")","v":""},{"$f":"INDEX(Tab_MAEC!C:C,MATCH($C$7&$B46,Tab_MAEC!A:A&Tab_MAEC!B:B,0),1)","v":"P30"},{"$f":"IFERROR(ROUNDUP((1-$E$7)*SUMPRODUCT(INDEX($E$11:$K$24,$11:$24,MATCH($F46,$E$10:$K$10,0)),$C$11:$C$24)/(SUMIF($C$11:$C$24, \"<>0\", $C$11:$C$24)),1), \"\")","v":""},"P70",{"$f":"IFERROR(ROUNDUP(SUMPRODUCT(INDEX($E$27:$K$35,$27:$35,MATCH($H46,$E$10:$K$10,0)),$C$27:$C$35)/(SUMIF($C$27:$C$35, \"<>0\", $C$27:$C$35)),1), \"\")","v":""},"P30",{"$f":"IFERROR(ROUNDUP(SUMPRODUCT(INDEX($E$27:$K$35,$27:$35,MATCH($J46,$E$10:$K$10,0)),$C$27:$C$35)/(SUMIF($C$27:$C$35, \"<>0\", $C$27:$C$35)),1), \"\")","v":""},"P70",null,"Année 4 OU moyenne années 2,3,4",{"$f":"IFERROR(ROUNDUP(SUMPRODUCT(INDEX($E$11:$K$24,$11:$24,MATCH($N46,$E$10:$K$10,0)),$C$11:$C$24)/(SUMIF($C$11:$C$24, \"<>0\", $C$11:$C$24)+$C$26),1), \"\")","v":""},{"$f":"IF(INDEX(Tab_MAEC!H:H,MATCH($C$7&$B46,Tab_MAEC!A:A&Tab_MAEC!B:B,0),1)=\"Oui\",INDEX(Tab_MAEC!C:C,MATCH($C$7&$B46,Tab_MAEC!A:A&Tab_MAEC!B:B,0),1),\"\")","v":""},{"$f":"IFERROR(ROUNDUP(SUMPRODUCT(INDEX($E$11:$K$24,$11:$24,MATCH($P46,$E$10:$K$10,0)),$C$11:$C$24)/(SUMIF($C$11:$C$24, \"<>0\", $C$11:$C$24)+$C$26),1), \"\")","v":""},"",{"$f":"IFERROR(ROUNDUP(SUMPRODUCT(INDEX($E$27:$K$35,$27:$35,MATCH($R46,$E$10:$K$10,0)),$C$27:$C$35)/(SUMIF($C$27:$C$35, \"<>0\", $C$27:$C$35)),1), \"\")","v":""},"",{"$f":"IFERROR(ROUNDUP(SUMPRODUCT(INDEX($E$27:$K$35,$27:$35,MATCH($T46,$E$10:$K$10,0)),$C$27:$C$35)/(SUMIF($C$27:$C$35, \"<>0\", $C$27:$C$35)),1), \"\")","v":""},""]
[null,"Année 5 OU moyenne années 2,3,4,5",{"$f":"IFERROR(ROUNDUP((1-$E$7)*SUMPRODUCT(INDEX($E$11:$K$24,$11:$24,MATCH(D47,$E$10:$K$10,0)),$C$11:$C$24)/(SUMIF($C$11:$C$24, \"<>0\", $C$11:$C$24)),1), \"\")","v":""},{"$f":"INDEX(Tab_MAEC!C:C,MATCH($C$7&$B47,Tab_MAEC!A:A&Tab_MAEC!B:B,0),1)","v":"P30"},{"$f":"IFERROR(ROUNDUP((1-$E$7)*SUMPRODUCT(INDEX($E$11:$K$24,$11:$24,MATCH($F47,$E$10:$K$10,0)),$C$11:$C$24)/(SUMIF($C$11:$C$24, \"<>0\", $C$11:$C$24)),1), \"\")","v":""},"P70",{"$f":"IFERROR(ROUNDUP(SUMPRODUCT(INDEX($E$27:$K$35,$27:$35,MATCH($H47,$E$10:$K$10,0)),$C$27:$C$35)/(SUMIF($C$27:$C$35, \"<>0\", $C$27:$C$35)),1), \"\")","v":""},"P30",{"$f":"IFERROR(ROUNDUP(SUMPRODUCT(INDEX($E$27:$K$35,$27:$35,MATCH($J47,$E$10:$K$10,0)),$C$27:$C$35)/(SUMIF($C$27:$C$35, \"<>0\", $C$27:$C$35)),1), \"\")","v":""},"P70",null,"Année 5 OU moyenne années 2,3,4,5",{"$f":"IFERROR(ROUNDUP(SUMPRODUCT(INDEX($E$11:$K$24,$11:$24,MATCH($N47,$E$10:$K$10,0)),$C$11:$C$24)/(SUMIF($C$11:$C$24, \"<>0\", $C$11:$C$24)+$C$26),1), \"\")","v":""},{"$f":"IF(INDEX(Tab_MAEC!H:H,MATCH($C$7&$B47,Tab_MAEC!A:A&Tab_MAEC!B:B,0),1)=\"Oui\",INDEX(Tab_MAEC!C:C,MATCH($C$7&$B47,Tab_MAEC!A:A&Tab_MAEC!B:B,0),1),\"\")","v":""},{"$f":"IFERROR(ROUNDUP(SUMPRODUCT(INDEX($E$11:$K$24,$11:$24,MATCH($P47,$E$10:$K$10,0)),$C$11:$C$24)/(SUMIF($C$11:$C$24, \"<>0\", $C$11:$C$24)+$C$26),1), \"\")","v":""},"",{"$f":"IFERROR(ROUNDUP(SUMPRODUCT(INDEX($E$27:$K$35,$27:$35,MATCH($R47,$E$10:$K$10,0)),$C$27:$C$35)/(SUMIF($C$27:$C$35, \"<>0\", $C$27:$C$35)),1), \"\")","v":""},"",{"$f":"IFERROR(ROUNDUP(SUMPRODUCT(INDEX($E$27:$K$35,$27:$35,MATCH($T47,$E$10:$K$10,0)),$C$27:$C$35)/(SUMIF($C$27:$C$35, \"<>0\", $C$27:$C$35)),1), \"\")","v":""},""]
[]
[null,"Seuils d'IFT Hors herbicides",null,null,null,null,null,null,null,null,null,"Seuils d'IFT Hors herbicides - Cas des exploitations en polyculture-élevage (mesures FER et SDC)"]
[null,null,"Grandes cultures",null,null,null,"Cultures légumières + PdT",null,null,null,null,null,"Grandes cultures",null,null,null,"Cultures légumières + PdT"]
[null,"Année d'engagement","Surfaces engagées",null,"Surfaces éligibles non engagées",null,"Surfaces engagées",null,"Surfaces éligibles non engagées",null,null,"Année d'engagement","Surfaces engagées",null,"Surfaces éligibles non engagées",null,"Surfaces engagées",null,"Surfaces éligibles non engagées"]
[null,null,"IFT max à respecter sur les surfaces engagées","Percentile utilisé","IFT max à respecter sur les surfaces non engagées","Percentile utilisé","IFT max à respecter sur les surfaces engagées","Percentile utilisé","IFT max à respecter sur les surfaces non engagées","Percentile utilisé",null,null,"IFT max à respecter sur les surfaces engagées","Percentile utilisé","IFT max à respecter sur les surfaces non engagées","Percentile utilisé","IFT max à respecter sur les surfaces engagées","Percentile utilisé","IFT max à respecter sur les surfaces non engagées","Percentile utilisé"]
[null,"année 1",null,null,null,null,null,null,null,null,null,"année 1"]
[null,"année 2",{"$f":"IFERROR(ROUNDUP((1-$E$7)*SUMPRODUCT(INDEX($M$11:$S$24,$11:$24,MATCH($D54,$M$10:$S$10,0)),$C$11:$C$24)/(SUMIF($C$11:$C$24, \"<>0\", $C$11:$C$24)),1), \"\")","v":""},{"$f":"INDEX(Tab_MAEC!E:E,MATCH($C$7&$B54,Tab_MAEC!A:A&Tab_MAEC!B:B,0),1)","v":0},{"$f":"IFERROR(ROUNDUP((1-$E$7)*SUMPRODUCT(INDEX($M$11:$S$24,$11:$24,MATCH($F54,$M$10:$S$10,0)),$C$11:$C$24)/(SUMIF($C$11:$C$24, \"<>0\", $C$11:$C$24)),1), \"\")","v":""},{"$f":"IF(D54=0,0,\"P70\")","v":0},{"$f":"IFERROR(ROUNDUP(SUMPRODUCT(INDEX($M$27:$S$35,$27:$35,MATCH($H54,$M$10:$S$10,0)),$C$27:$C$35)/(SUMIF($C$27:$C$35, \"<>0\", $C$27:$C$35)),1), \"\")","v":""},{"$f":"D54","v":0},{"$f":"IFERROR(ROUNDUP(SUMPRODUCT(INDEX($M$27:$S$35,$27:$35,MATCH($J54,$E$10:$K$10,0)),$C$27:$C$35)/(SUMIF($C$27:$C$35, \"<>0\", $C$27:$C$35)),1), \"\")","v":""},{"$f":"F54","v":0},null,"année 2",{"$f":"IFERROR(ROUNDUP(SUMPRODUCT(INDEX($M$11:$S$24,$11:$24,MATCH($N54,$M$10:$S$10,0)),$C$11:$C$24)/(SUMIF($C$11:$C$24, \"<>0\", $C$11:$C$24)+$C$26),1), \"\")","v":""},{"$f":"IF(INDEX(Tab_MAEC!H:H,MATCH($C$7&$B54,Tab_MAEC!A:A&Tab_MAEC!B:B,0),1)=\"Oui\",INDEX(Tab_MAEC!E:E,MATCH($C$7&$B54,Tab_MAEC!A:A&Tab_MAEC!B:B,0),1),\"\")","v":""},{"$f":"IFERROR(ROUNDUP(SUMPRODUCT(INDEX($M$11:$S$24,$11:$24,MATCH($P54,$M$10:$S$10,0)),$C$11:$C$24)/(SUMIF($C$11:$C$24, \"<>0\", $C$11:$C$24)+$C$26),1), \"\")","v":""},{"$f":"IF(OR(N54=\"\",N54=0),\"\",\"P70\")","v":""},{"$f":"IFERROR(ROUNDUP(SUMPRODUCT(INDEX($M$27:$S$35,$27:$35,MATCH($R54,$M$10:$S$10,0)),$C$27:$C$35)/(SUMIF($C$27:$C$35, \"<>0\", $C$27:$C$35)),1), \"\")","v":""},{"$f":"N54","v":""},{"$f":"IFERROR(ROUNDUP(SUMPRODUCT(INDEX($M$27:$S$35,$27:$35,MATCH($T54,$E$10:$K$10,0)),$C$27:$C$35)/(SUMIF($C$27:$C$35, \"<>0\", $C$27:$C$35)),1), \"\")","v":""},{"$f":"IF(OR(R54=\"\",R54=0),\"\",\"P70\")","v":""}]
[null,"Année 3 OU moyenne années 2 et 3",{"$f":"IFERROR(ROUNDUP((1-$E$7)*SUMPRODUCT(INDEX($M$11:$S$24,$11:$24,MATCH($D55,$M$10:$S$10,0)),$C$11:$C$24)/(SUMIF($C$11:$C$24, \"<>0\", $C$11:$C$24)),1), \"\")","v":""},{"$f":"INDEX(Tab_MAEC!E:E,MATCH($C$7&$B55,Tab_MAEC!A:A&Tab_MAEC!B:B,0),1)","v":0},{"$f":"IFERROR(ROUNDUP((1-$E$7)*SUMPRODUCT(INDEX($M$11:$S$24,$11:$24,MATCH($F55,$M$10:$S$10,0)),$C$11:$C$24)/(SUMIF($C$11:$C$24, \"<>0\", $C$11:$C$24)),1), \"\")","v":""},{"$f":"IF(D55=0,0,\"P70\")","v":0},{"$f":"IFERROR(ROUNDUP(SUMPRODUCT(INDEX($M$27:$S$35,$27:$35,MATCH($H55,$M$10:$S$10,0)),$C$27:$C$35)/(SUMIF($C$27:$C$35, \"<>0\", $C$27:$C$35)),1), \"\")","v":""},{"$f":"D55","v":0},{"$f":"IFERROR(ROUNDUP(SUMPRODUCT(INDEX($M$27:$S$35,$27:$35,MATCH($J55,$E$10:$K$10,0)),$C$27:$C$35)/(SUMIF($C$27:$C$35, \"<>0\", $C$27:$C$35)),1), \"\")","v":""},{"$f":"F55","v":0},null,"Année 3 OU moyenne années 2 et 3",{"$f":"IFERROR(ROUNDUP(SUMPRODUCT(INDEX($M$11:$S$24,$11:$24,MATCH($N55,$M$10:$S$10,0)),$C$11:$C$24)/(SUMIF($C$11:$C$24, \"<>0\", $C$11:$C$24)+$C$26),1), \"\")","v":""},{"$f":"IF(INDEX(Tab_MAEC!H:H,MATCH($C$7&$B55,Tab_MAEC!A:A&Tab_MAEC!B:B,0),1)=\"Oui\",INDEX(Tab_MAEC!E:E,MATCH($C$7&$B55,Tab_MAEC!A:A&Tab_MAEC!B:B,0),1),\"\")","v":""},{"$f":"IFERROR(ROUNDUP(SUMPRODUCT(INDEX($M$11:$S$24,$11:$24,MATCH($P55,$M$10:$S$10,0)),$C$11:$C$24)/(SUMIF($C$11:$C$24, \"<>0\", $C$11:$C$24)+$C$26),1), \"\")","v":""},{"$f":"IF(OR(N55=\"\",N55=0),\"\",\"P70\")","v":""},{"$f":"IFERROR(ROUNDUP(SUMPRODUCT(INDEX($M$27:$S$35,$27:$35,MATCH($R55,$M$10:$S$10,0)),$C$27:$C$35)/(SUMIF($C$27:$C$35, \"<>0\", $C$27:$C$35)),1), \"\")","v":""},{"$f":"N55","v":""},{"$f":"IFERROR(ROUNDUP(SUMPRODUCT(INDEX($M$27:$S$35,$27:$35,MATCH($T55,$E$10:$K$10,0)),$C$27:$C$35)/(SUMIF($C$27:$C$35, \"<>0\", $C$27:$C$35)),1), \"\")","v":""},{"$f":"IF(OR(R55=\"\",R55=0),\"\",\"P70\")","v":""}]
[null,"Année 4 OU moyenne années 2,3,4",{"$f":"IFERROR(ROUNDUP((1-$E$7)*SUMPRODUCT(INDEX($M$11:$S$24,$11:$24,MATCH($D56,$M$10:$S$10,0)),$C$11:$C$24)/(SUMIF($C$11:$C$24, \"<>0\", $C$11:$C$24)),1), \"\")","v":""},{"$f":"INDEX(Tab_MAEC!E:E,MATCH($C$7&$B56,Tab_MAEC!A:A&Tab_MAEC!B:B,0),1)","v":0},{"$f":"IFERROR(ROUNDUP((1-$E$7)*SUMPRODUCT(INDEX($M$11:$S$24,$11:$24,MATCH($F56,$M$10:$S$10,0)),$C$11:$C$24)/(SUMIF($C$11:$C$24, \"<>0\", $C$11:$C$24)),1), \"\")","v":""},0,{"$f":"IFERROR(ROUNDUP(SUMPRODUCT(INDEX($M$27:$S$35,$27:$35,MATCH($H56,$M$10:$S$10,0)),$C$27:$C$35)/(SUMIF($C$27:$C$35, \"<>0\", $C$27:$C$35)),1), \"\")","v":""},0,{"$f":"IFERROR(ROUNDUP(SUMPRODUCT(INDEX($M$27:$S$35,$27:$35,MATCH($J56,$E$10:$K$10,0)),$C$27:$C$35)/(SUMIF($C$27:$C$35, \"<>0\", $C$27:$C$35)),1), \"\")","v":""},0,null,"Année 4 OU moyenne années 2,3,4",{"$f":"IFERROR(ROUNDUP(SUMPRODUCT(INDEX($M$11:$S$24,$11:$24,MATCH($N56,$M$10:$S$10,0)),$C$11:$C$24)/(SUMIF($C$11:$C$24, \"<>0\", $C$11:$C$24)+$C$26),1), \"\")","v":""},{"$f":"IF(INDEX(Tab_MAEC!H:H,MATCH($C$7&$B56,Tab_MAEC!A:A&Tab_MAEC!B:B,0),1)=\"Oui\",INDEX(Tab_MAEC!E:E,MATCH($C$7&$B56,Tab_MAEC!A:A&Tab_MAEC!B:B,0),1),\"\")","v":""},{"$f":"IFERROR(ROUNDUP(SUMPRODUCT(INDEX($M$11:$S$24,$11:$24,MATCH($P56,$M$10:$S$10,0)),$C$11:$C$24)/(SUMIF($C$11:$C$24, \"<>0\", $C$11:$C$24)+$C$26),1), \"\")","v":""},"",{"$f":"IFERROR(ROUNDUP(SUMPRODUCT(INDEX($M$27:$S$35,$27:$35,MATCH($R56,$M$10:$S$10,0)),$C$27:$C$35)/(SUMIF($C$27:$C$35, \"<>0\", $C$27:$C$35)),1), \"\")","v":""},"",{"$f":"IFERROR(ROUNDUP(SUMPRODUCT(INDEX($M$27:$S$35,$27:$35,MATCH($T56,$E$10:$K$10,0)),$C$27:$C$35)/(SUMIF($C$27:$C$35, \"<>0\", $C$27:$C$35)),1), \"\")","v":""},""]
[null,"Année 5 OU moyenne années 2,3,4,5",{"$f":"IFERROR(ROUNDUP((1-$E$7)*SUMPRODUCT(INDEX($M$11:$S$24,$11:$24,MATCH($D57,$M$10:$S$10,0)),$C$11:$C$24)/(SUMIF($C$11:$C$24, \"<>0\", $C$11:$C$24)),1), \"\")","v":""},{"$f":"INDEX(Tab_MAEC!E:E,MATCH($C$7&$B57,Tab_MAEC!A:A&Tab_MAEC!B:B,0),1)","v":0},{"$f":"IFERROR(ROUNDUP((1-$E$7)*SUMPRODUCT(INDEX($M$11:$S$24,$11:$24,MATCH($F57,$M$10:$S$10,0)),$C$11:$C$24)/(SUMIF($C$11:$C$24, \"<>0\", $C$11:$C$24)),1), \"\")","v":""},0,{"$f":"IFERROR(ROUNDUP(SUMPRODUCT(INDEX($M$27:$S$35,$27:$35,MATCH($H57,$M$10:$S$10,0)),$C$27:$C$35)/(SUMIF($C$27:$C$35, \"<>0\", $C$27:$C$35)),1), \"\")","v":""},0,{"$f":"IFERROR(ROUNDUP(SUMPRODUCT(INDEX($M$27:$S$35,$27:$35,MATCH($J57,$E$10:$K$10,0)),$C$27:$C$35)/(SUMIF($C$27:$C$35, \"<>0\", $C$27:$C$35)),1), \"\")","v":""},0,null,"Année 5 OU moyenne années 2,3,4,5",{"$f":"IFERROR(ROUNDUP(SUMPRODUCT(INDEX($M$11:$S$24,$11:$24,MATCH($N57,$M$10:$S$10,0)),$C$11:$C$24)/(SUMIF($C$11:$C$24, \"<>0\", $C$11:$C$24)+$C$26),1), \"\")","v":""},{"$f":"IF(INDEX(Tab_MAEC!H:H,MATCH($C$7&$B57,Tab_MAEC!A:A&Tab_MAEC!B:B,0),1)=\"Oui\",INDEX(Tab_MAEC!E:E,MATCH($C$7&$B57,Tab_MAEC!A:A&Tab_MAEC!B:B,0),1),\"\")","v":""},{"$f":"IFERROR(ROUNDUP(SUMPRODUCT(INDEX($M$11:$S$24,$11:$24,MATCH($P57,$M$10:$S$10,0)),$C$11:$C$24)/(SUMIF($C$11:$C$24, \"<>0\", $C$11:$C$24)+$C$26),1), \"\")","v":""},"",{"$f":"IFERROR(ROUNDUP(SUMPRODUCT(INDEX($M$27:$S$35,$27:$35,MATCH($R57,$M$10:$S$10,0)),$C$27:$C$35)/(SUMIF($C$27:$C$35, \"<>0\", $C$27:$C$35)),1), \"\")","v":""},"",{"$f":"IFERROR(ROUNDUP(SUMPRODUCT(INDEX($M$27:$S$35,$27:$35,MATCH($T57,$E$10:$K$10,0)),$C$27:$C$35)/(SUMIF($C$27:$C$35, \"<>0\", $C$27:$C$35)),1), \"\")","v":""},""]
[]
[]
[]
[null,"Bilan d'Azote minéral"]
[null,null,"Grandes cultures + PdT"]
[null,"Moyenne régionale (indicative)",{"$f":"SUMPRODUCT($C$11:$C$27,$D$11:$D$27)/SUMIF($D$11:$D$27, \"<>0\", $C$11:$C$27)","v":{"$error":"#DIV/0!"}}]
[null,"Année d'engagement","Pression de référence à ne pas dépasser","Pourcentage utilisé"]
[null,"année 1"]
[null,"année 2",{"$f":"(IFERROR(ROUNDUP((SUMPRODUCT($C$11:$C$27,$D$11:$D$27)*D66)/(SUMIF($D$11:$D$27, \"<>0\", $C$11:$C$27)*100),1), \"Vérifier les cases\"))","v":"Vérifier les cases"},{"$f":"INDEX(Tab_MAEC!G:G,MATCH($C$7&$B66,Tab_MAEC!A:A&Tab_MAEC!B:B,0),1)","v":0}]
[null,"Année 3 OU moyenne années 2 et 3",{"$f":"(IFERROR(ROUNDUP((SUMPRODUCT($C$11:$C$27,$D$11:$D$27)*D67)/(SUMIF($D$11:$D$27, \"<>0\", $C$11:$C$27)*100),1), \"Vérifier les cases\"))","v":"Vérifier les cases"},{"$f":"INDEX(Tab_MAEC!G:G,MATCH($C$7&$B67,Tab_MAEC!A:A&Tab_MAEC!B:B,0),1)","v":0}]
[null,"Année 4 OU moyenne années 2,3,4",{"$f":"(IFERROR(ROUNDUP((SUMPRODUCT($C$11:$C$27,$D$11:$D$27)*D68)/(SUMIF($D$11:$D$27, \"<>0\", $C$11:$C$27)*100),1), \"Vérifier les cases\"))","v":"Vérifier les cases"},{"$f":"INDEX(Tab_MAEC!G:G,MATCH($C$7&$B68,Tab_MAEC!A:A&Tab_MAEC!B:B,0),1)","v":0}]
[null,"Année 5 OU moyenne années 2,3,4,5",{"$f":"(IFERROR(ROUNDUP((SUMPRODUCT($C$11:$C$27,$D$11:$D$27)*D69)/(SUMIF($D$11:$D$27, \"<>0\", $C$11:$C$27)*100),1), \"Vérifier les cases\"))","v":"Vérifier les cases"},{"$f":"INDEX(Tab_MAEC!G:G,MATCH($C$7&$B69,Tab_MAEC!A:A&Tab_MAEC!B:B,0),1)","v":0}]

{"sheet":"Publipostage","index":1,"n_rows":1,"n_cols":72,"rows_kept":1,"cut":false,"hidden":false,"merged":[]}
["Echelle géographique","Code de la MAEC","Code du PAEC","Surfaces herbacées imposées par le cahier des charges","IFT Herb GC - engagé - année 2","IFT Herb GC - engagé - année 3","IFT Herb GC - engagé - année 4","IFT Herb GC - engagé - année 5","IFT Herb CL+PdT - engagé - année 2","IFT Herb CL+PdT - engagé - année 3","IFT Herb CL+PdT - engagé - année 4","IFT Herb CL+PdT - engagé - année 5","IFT Herb GC - non-engagé - année 2","IFT Herb GC - non-engagé - année 3","IFT Herb GC - non-engagé - année 4","IFT Herb GC - non-engagé - année 5","IFT Herb CL+PdT - non-engagé - année 2","IFT Herb CL+PdT - non-engagé - année 3","IFT Herb CL+PdT - non-engagé - année 4","IFT Herb CL+PdT - non-engagé - année 5","IFT Hors Herb GC - engagé - année 2","IFT Hors Herb GC - engagé - année 3","IFT Hors Herb GC - engagé - année 4","IFT Hors Herb GC - engagé - année 5","IFT Hors Herb CL+PdT - engagé - année 2","IFT Hors Herb CL+PdT - engagé - année 3","IFT Hors Herb CL+PdT - engagé - année 4","IFT Hors Herb CL+PdT - engagé - année 5","IFT Hors Herb GC - non-engagé - année 2","IFT Hors Herb GC - non-engagé - année 3","IFT Hors Herb GC - non-engagé - année 4","IFT Hors Herb GC - non-engagé - année 5","IFT Hors Herb CL+PdT - non-engagé - année 2","IFT Hors Herb CL+PdT - non-engagé - année 3","IFT Hors Herb CL+PdT - non-engagé - année 4","IFT Hors Herb CL+PdT - non-engagé - année 5","PE - IFT Herb GC - engagé - année 2","PE - IFT Herb GC - engagé - année 3","PE - IFT Herb GC - engagé - année 4","PE - IFT Herb GC - engagé - année 5","PE - IFT Herb CL+PdT - engagé - année 2","PE - IFT Herb CL+PdT - engagé - année 3","PE - IFT Herb CL+PdT - engagé - année 4","PE - IFT Herb CL+PdT - engagé - année 5","PE - IFT Herb GC - non-engagé - année 2","PE - IFT Herb GC - non-engagé - année 3","PE - IFT Herb GC - non-engagé - année 4","PE - IFT Herb GC - non-engagé - année 5","PE - IFT Herb CL+PdT - non-engagé - année 2","PE - IFT Herb CL+PdT - non-engagé - année 3","PE - IFT Herb CL+PdT - non-engagé - année 4","PE - IFT Herb CL+PdT - non-engagé - année 5","PE - IFT Hors Herb GC - engagé - année 2","PE - IFT Hors Herb GC - engagé - année 3","PE - IFT Hors Herb GC - engagé - année 4","PE - IFT Hors Herb GC - engagé - année 5","PE - IFT Hors Herb CL+PdT - engagé - année 2","PE - IFT Hors Herb CL+PdT - engagé - année 3","PE - IFT Hors Herb CL+PdT - engagé - année 4","PE - IFT Hors Herb CL+PdT - engagé - année 5","PE - IFT Hors Herb GC - non-engagé - année 2","PE - IFT Hors Herb GC - non-engagé - année 3","PE - IFT Hors Herb GC - non-engagé - année 4","PE - IFT Hors Herb GC - non-engagé - année 5","PE - IFT Hors Herb CL+PdT - non-engagé - année 2","PE - IFT Hors Herb CL+PdT - non-engagé - année 3","PE - IFT Hors Herb CL+PdT - non-engagé - année 4","PE - IFT Hors Herb CL+PdT - non-engagé - année 5","Pression de référence - année 2","Pression de référence - année 3","Pression de référence - année 4","Pression de référence - année 5"]

{"sheet":"Listes","index":2,"n_rows":133,"n_cols":1,"rows_kept":133,"cut":false,"hidden":true,"merged":[]}
["Liste cultures"]
["Blé tendre"]
["Blé dur"]
["Orge"]
["Triticale"]
["Colza"]
["Tournesol"]
["Pois protéagineux"]
["Maïs fourrage"]
["Maïs grain"]
["Betterave sucrière"]
["Pomme de terre"]
["Canne à sucre"]
["Féverole"]
["Soja"]
["Lin fibre"]
["Lin Oléagineux"]
["Carotte"]
["Poireau"]
["Salade"]
["Chou fleur, Brocoli à jets et Romanesco"]
["Autres choux (hors chou à choucroute)"]
["Melon"]
["Tomate"]
["Fraise"]
["Autres cultures légumières"]
["Prairies permanentes"]
["Prairies temporaires"]
[]
["Echelle géographique"]
["Alsace"]
["Aquitaine"]
["Auvergne"]
["Basse-Normandie"]
["Bourgogne"]
["Bretagne"]
["Centre"]
["Champagne-Ardenne"]
["Corse"]
["Franche-Comté"]
["Haute-Normandie"]
["Ile-de-France"]
["Languedoc-Roussillon"]
["Limousin"]
["Lorraine"]
["Midi-Pyrénées"]
["Nord-Pas-de-Calais"]
["Pays de la Loire"]
["Picardie"]
["Poitou-Charentes"]
["Provence-Alpes-Côte d'Azur"]
["Rhône-Alpes"]
["Martinique"]
["Guadeloupe"]
["Guyane"]
["Réunion"]
["Mayotte"]
["France métropolitaine"]
[]
["Type de traitement"]
["Herbicides"]
["Hors herbicides (ancienne méthode traitement de semences)"]
["Hors herbicides (nouvelle méthode traitement de semences)"]
[]
["Percentiles"]
["P70"]
["P60"]
["P50"]
["P40"]
["P30"]
["P20"]
["P10"]
[]
["Pourcentages"]
[90]
[80]
[70]
[]
["Surfaces herbacées imposées "]
[0.3]
[0.2]
[0.1]
[0]
[]
[]
["MAEC"]
["PHY1"]
["PHY2"]
["PHY3"]
["PHY4"]
["PHY5"]
["PHY6"]
["PHY7"]
["PHY8"]
["PHY9"]
["FER1"]
["FER2"]
["FER3"]
["FER4"]
["FER5"]
["FER6"]
["COV1"]
["COV2"]
["COV3"]
["COV4"]
["COV5"]
["COV6"]
["LEP1"]
["LEP2"]
["LEP3"]
["LEP4"]
["LEP5"]
["LEP6"]
["LEP7"]
["LEP8"]
["LEP9"]
["LEF1"]
["LEF2"]
["LEF3"]
["LEF4"]
["LEF5"]
["LEF6"]
["LEC1"]
["LEC2"]
["LEC3"]
["LEC4"]
["LEC5"]
["LEC6"]
["HBV1"]
["HBV2"]
["HBV3"]
["SDC1"]
["SDC2"]

{"sheet":"Tab_N","index":3,"n_rows":182,"n_cols":3,"rows_kept":182,"cut":false,"hidden":true,"merged":[]}
["Echelle géographique","Culture ","Pression en azote minéral"]
["Alsace","Blé tendre",167.9]
["Alsace","Maïs grain",178.9]
["Aquitaine","Triticale",93.3]
["Aquitaine","Tournesol",65.8]
["Aquitaine","Maïs fourrage",140]
["Aquitaine","Maïs grain",191.9]
["Aquitaine","Féverole",2.2000000000000002]
["Aquitaine","Soja",5]
["Auvergne","Blé tendre",148.9]
["Auvergne","Triticale",84.2]
["Auvergne","Colza",142.30000000000001]
["Auvergne","Tournesol",33.9]
["Auvergne","Maïs fourrage",68.8]
["Auvergne","Maïs grain",152]
["Basse-Normandie","Blé tendre",161.19999999999999]
["Basse-Normandie","Orge",130.30000000000001]
["Basse-Normandie","Triticale",107.4]
["Basse-Normandie","Colza",157]
["Basse-Normandie","Pois protéagineux",1]
["Basse-Normandie","Maïs fourrage",53]
["Basse-Normandie","Betterave sucrière",98.9]
["Basse-Normandie","Féverole",0]
["Bourgogne","Blé tendre",155.69999999999999]
["Bourgogne","Orge",132.19999999999999]
["Bourgogne","Triticale",88.4]
["Bourgogne","Colza",165.2]
["Bourgogne","Tournesol",33.299999999999997]
["Bourgogne","Pois protéagineux",0.6]
["Bourgogne","Maïs fourrage",112.4]
["Bourgogne","Maïs grain",156.69999999999999]
["Bourgogne","Soja",1]
["Bourgogne","Lin Oléagineux",79.400000000000006]
["Bretagne","Blé tendre",138.5]
["Bretagne","Orge",97.5]
["Bretagne","Triticale",98.3]
["Bretagne","Colza",81.8]
["Bretagne","Maïs fourrage",22.6]
["Bretagne","Maïs grain",26.4]
["Bretagne","Pomme de terre",76.8]
["Bretagne","Féverole",0.7]
["Centre","Blé tendre",178.8]
["Centre","Blé dur",203.9]
["Centre","Orge",115.9]
["Centre","Triticale",102.3]
["Centre","Colza",163.30000000000001]
["Centre","Tournesol",37]
["Centre","Pois protéagineux",0.2]
["Centre","Maïs fourrage",106.9]
["Centre","Maïs grain",142.1]
["Centre","Betterave sucrière",90.2]
["Centre","Pomme de terre",127.8]
["Centre","Féverole",0.8]
["Centre","Lin Oléagineux",75.3]
["Champagne-Ardenne","Blé tendre",174.3]
["Champagne-Ardenne","Orge",117.1]
["Champagne-Ardenne","Triticale",108.1]
["Champagne-Ardenne","Colza",172]
["Champagne-Ardenne","Pois protéagineux",1.9]
["Champagne-Ardenne","Maïs fourrage",121.1]
["Champagne-Ardenne","Maïs grain",138.30000000000001]
["Champagne-Ardenne","Betterave sucrière",72.7]
["Champagne-Ardenne","Pomme de terre",142.69999999999999]
["Champagne-Ardenne","Féverole",1.5]
["France","Blé tendre",164.1]
["France","Blé dur",188.1]
["France","Orge",120.1]
["France","Triticale",90.7]
["France","Colza",157.69999999999999]
["France","Tournesol",44.4]
["France","Pois protéagineux",1.2]
["France","Maïs fourrage",62.4]
["France","Maïs grain",143.6]
["France","Betterave sucrière",82.3]
["France","Pomme de terre",136]
["France","Féverole",1.7]
["France","Soja",2.7]
["France","Lin fibre",24.5]
["France","Lin Oléagineux",65.599999999999994]
["France","Prairies temporaires",42]
["France","Prairies permanentes",19.7]
["Franche-Comté","Blé tendre",156.9]
["Franche-Comté","Orge",127.2]
["Franche-Comté","Colza",170]
["Franche-Comté","Soja",3.8]
["Haute-Normandie","Blé tendre",170.1]
["Haute-Normandie","Orge",133.5]
["Haute-Normandie","Colza",159.5]
["Haute-Normandie","Pois protéagineux",1.8]
["Haute-Normandie","Maïs fourrage",83.8]
["Haute-Normandie","Betterave sucrière",80.400000000000006]
["Haute-Normandie","Pomme de terre",122.9]
["Haute-Normandie","Féverole",1.9]
["Haute-Normandie","Lin fibre",22.7]
["Île-de-France","Blé tendre",157.4]
["Île-de-France","Orge",112.7]
["Île-de-France","Colza",161.4]
["Île-de-France","Pois protéagineux",0.9]
["Île-de-France","Maïs grain",130.69999999999999]
["Île-de-France","Betterave sucrière",86.2]
["Île-de-France","Pomme de terre",123]
["Île-de-France","Féverole",6.6]
["Languedoc-Roussillon","Blé dur",148.80000000000001]
["Languedoc-Roussillon","Triticale",57.3]
["Languedoc-Roussillon","Tournesol",23.7]
["Languedoc-Roussillon","Pois protéagineux",1.3]
["Limousin","Triticale",86]
["Limousin","Maïs fourrage",64.5]
["Lorraine","Blé tendre",158.80000000000001]
["Lorraine","Orge",138.69999999999999]
["Lorraine","Triticale",110.4]
["Lorraine","Colza",165.8]
["Lorraine","Tournesol",53.4]
["Lorraine","Pois protéagineux",4.5999999999999996]
["Lorraine","Maïs fourrage",126.8]
["Lorraine","Maïs grain",142.69999999999999]
["Lorraine","Lin Oléagineux",96.3]
["Midi-Pyrénées","Blé tendre",157]
["Midi-Pyrénées","Blé dur",193.3]
["Midi-Pyrénées","Orge",97.8]
["Midi-Pyrénées","Triticale",83.6]
["Midi-Pyrénées","Colza",155.6]
["Midi-Pyrénées","Tournesol",45.4]
["Midi-Pyrénées","Pois protéagineux",1.2]
["Midi-Pyrénées","Maïs fourrage",96]
["Midi-Pyrénées","Maïs grain",176.5]
["Midi-Pyrénées","Féverole",0.2]
["Midi-Pyrénées","Soja",1.9]
["Midi-Pyrénées","Lin Oléagineux",50.2]
["Nord-Pas-de-Calais","Blé tendre",169.2]
["Nord-Pas-de-Calais","Orge",119.2]
["Nord-Pas-de-Calais","Colza",159.4]
["Nord-Pas-de-Calais","Pois protéagineux",2.4]
["Nord-Pas-de-Calais","Maïs fourrage",93.4]
["Nord-Pas-de-Calais","Maïs grain",108.9]
["Nord-Pas-de-Calais","Betterave sucrière",83.3]
["Nord-Pas-de-Calais","Pomme de terre",139.5]
["Nord-Pas-de-Calais","Féverole",3.7]
["Nord-Pas-de-Calais","Lin fibre",30.9]
["PACA","Blé dur",156.30000000000001]
["Pays de la Loire","Blé tendre",154.19999999999999]
["Pays de la Loire","Blé dur",200.7]
["Pays de la Loire","Orge",111.8]
["Pays de la Loire","Triticale",92.4]
["Pays de la Loire","Colza",131.69999999999999]
["Pays de la Loire","Tournesol",32.299999999999997]
["Pays de la Loire","Pois protéagineux",2.2999999999999998]
["Pays de la Loire","Maïs fourrage",36.9]
["Pays de la Loire","Maïs grain",91.1]
["Pays de la Loire","Féverole",0.4]
["Pays de la Loire","Lin Oléagineux",50]
["Picardie","Blé tendre",173]
["Picardie","Orge",134.1]
["Picardie","Colza",153.6]
["Picardie","Pois protéagineux",0.6]
["Picardie","Maïs fourrage",86.2]
["Picardie","Maïs grain",108.3]
["Picardie","Betterave sucrière",84.7]
["Picardie","Pomme de terre",148.69999999999999]
["Picardie","Féverole",0.6]
["Picardie","Lin fibre",23.3]
["Poitou-Charentes","Blé tendre",167.9]
["Poitou-Charentes","Blé dur",213]
["Poitou-Charentes","Orge",121.8]
["Poitou-Charentes","Triticale",94.6]
["Poitou-Charentes","Colza",162.9]
["Poitou-Charentes","Tournesol",42.5]
["Poitou-Charentes","Pois protéagineux",0]
["Poitou-Charentes","Maïs fourrage",90.1]
["Poitou-Charentes","Maïs grain",146.19999999999999]
["Poitou-Charentes","Féverole",2.9]
["Poitou-Charentes","Lin Oléagineux",68.7]
["Rhône-Alpes","Blé tendre",144.80000000000001]
["Rhône-Alpes","Blé dur",182.1]
["Rhône-Alpes","Orge",99.6]
["Rhône-Alpes","Triticale",76.2]
["Rhône-Alpes","Colza",148.30000000000001]
["Rhône-Alpes","Tournesol",47.8]
["Rhône-Alpes","Maïs fourrage",110.5]
["Rhône-Alpes","Maïs grain",166.7]
["Rhône-Alpes","Soja",2]
["Alsace","Carotte",23]

{"sheet":"Tab_IFT","index":4,"n_rows":509,"n_cols":10,"rows_kept":509,"cut":false,"hidden":true,"merged":[]}
["Type_traitement","Echelle géographique","Cultures","IFT P10","IFT P20","IFT P30","IFT P40","IFT P50","IFT P60","IFT P70"]
["Herbicides","Alsace","Blé tendre",0,0.62,0.82,0.9,1,1.1000000000000001,1.29]
["Herbicides","Alsace","Maïs grain",0.99,1.1200000000000001,1.25,1.36,1.5,1.63,1.73]
["Herbicides","Alsace","Soja",0,0.61,1.28,1.53,1.74,1.87,2.0099999999999998]
["Hors herbicides (nouvelle méthode traitement de semences)","Alsace","Blé tendre",1.2,1.69,1.87,2.0099999999999998,2.2400000000000002,2.5499999999999998,2.8]
["Hors herbicides (nouvelle méthode traitement de semences)","Alsace","Maïs grain",0.94,1,1,1.21,1.3,1.33,1.65]
["Hors herbicides (nouvelle méthode traitement de semences)","Alsace","Soja",0,0,0,0,0,0,0]
["Herbicides","Aquitaine","Blé tendre",0.27,0.86,1.01,1.1599999999999999,1.31,1.62,1.81]
["Herbicides","Aquitaine","Féverole",0,0,0,0,0,0.21,0.5]
["Herbicides","Aquitaine","Maïs fourrage",0.56999999999999995,0.79,0.91,1.04,1.07,1.22,1.4]
["Herbicides","Aquitaine","Maïs grain",0.7,0.94,1.02,1.2,1.33,1.53,1.74]
["Herbicides","Aquitaine","Orge",0.43,0.6,0.76,1.19,1.4,1.58,1.78]
["Herbicides","Aquitaine","Soja",0,0.44,1.08,1.43,1.61,1.82,1.92]
["Herbicides","Aquitaine","Tournesol",0.47,0.87,1.1299999999999999,1.37,1.5,1.61,1.71]
["Herbicides","Aquitaine","Triticale",0,0.2,0.55000000000000004,0.82,0.92,0.97,1.1299999999999999]
["Hors herbicides (nouvelle méthode traitement de semences)","Aquitaine","Blé tendre",0.83,1.57,1.96,2.23,2.5299999999999998,2.85,3.11]
["Hors herbicides (nouvelle méthode traitement de semences)","Aquitaine","Féverole",0,0,0,0,0,0,0.46]
["Hors herbicides (nouvelle méthode traitement de semences)","Aquitaine","Maïs fourrage",0,0.67,1,1,1,1.03,1.23]
["Hors herbicides (nouvelle méthode traitement de semences)","Aquitaine","Maïs grain",0.33,0.88,1,1,1.07,1.39,1.87]
["Hors herbicides (nouvelle méthode traitement de semences)","Aquitaine","Orge",0.83,1.47,1.67,1.88,2.06,2.46,2.72]
["Hors herbicides (nouvelle méthode traitement de semences)","Aquitaine","Soja",0,0,0,0,0,0,0]
["Hors herbicides (nouvelle méthode traitement de semences)","Aquitaine","Tournesol",0.47,1,1,1.22,1.5,1.84,1.93]
["Hors herbicides (nouvelle méthode traitement de semences)","Aquitaine","Triticale",0,0,0.6,0.67,0.95,1.17,1.4]
["Herbicides","Auvergne","Blé tendre",0.64,0.83,0.96,1.18,1.34,1.57,1.79]
["Herbicides","Auvergne","Colza",0.56999999999999995,0.91,1.06,1.28,1.48,1.7,2]
["Herbicides","Auvergne","Maïs fourrage",0.61,0.81,0.98,1.04,1.1200000000000001,1.29,1.43]
["Herbicides","Auvergne","Maïs grain",0.93,1.22,1.42,1.61,1.82,2.04,2.2000000000000002]
["Herbicides","Auvergne","Orge",0.39,0.82,1.03,1.26,1.44,1.72,1.9]
["Herbicides","Auvergne","Tournesol",0.69,0.94,1.23,1.37,1.51,1.65,1.76]
["Herbicides","Auvergne","Triticale",0,0.33,0.83,0.92,1.05,1.3,1.49]
["Hors herbicides (nouvelle méthode traitement de semences)","Auvergne","Blé tendre",1,1.1299999999999999,1.44,1.77,2.02,2.2999999999999998,2.58]
["Hors herbicides (nouvelle méthode traitement de semences)","Auvergne","Colza",2.16,2.94,3.44,3.8,4.24,4.6399999999999997,5.07]
["Hors herbicides (nouvelle méthode traitement de semences)","Auvergne","Maïs fourrage",0.67,1,1,1,1,1,1]
["Hors herbicides (nouvelle méthode traitement de semences)","Auvergne","Maïs grain",0.67,1,1,1,1.19,1.64,1.92]
["Hors herbicides (nouvelle méthode traitement de semences)","Auvergne","Orge",0.51,1.21,1.33,1.66,1.86,2.2599999999999998,2.54]
["Hors herbicides (nouvelle méthode traitement de semences)","Auvergne","Tournesol",1,1,1,1,1,1,1]
["Hors herbicides (nouvelle méthode traitement de semences)","Auvergne","Triticale",0,0.86,1,1,1,1.47,1.65]
["Herbicides","Basse-Normandie","Betterave sucrière",1.84,2.17,2.39,2.58,2.81,3.14,3.48]
["Herbicides","Basse-Normandie","Blé tendre",0.9,1.1100000000000001,1.31,1.42,1.58,1.77,2.02]
["Herbicides","Basse-Normandie","Colza",1.04,1.34,1.51,1.7,1.86,2.06,2.3199999999999998]
["Herbicides","Basse-Normandie","Féverole",0.36,0.59,0.81,1.1499999999999999,1.37,1.5,1.78]
["Herbicides","Basse-Normandie","Lin fibre",1.19,1.55,1.84,2.0699999999999998,2.33,2.63,2.89]
["Herbicides","Basse-Normandie","Maïs fourrage",0.76,0.96,1.1100000000000001,1.28,1.46,1.62,1.78]
["Herbicides","Basse-Normandie","Maïs grain",0.72,0.98,1.23,1.38,1.56,1.76,1.92]
["Herbicides","Basse-Normandie","Orge",0.68,0.93,1.1299999999999999,1.43,1.62,1.78,2.0299999999999998]
["Herbicides","Basse-Normandie","Pois protéagineux",0.89,1.1399999999999999,1.38,1.68,1.85,2.09,2.23]
["Herbicides","Basse-Normandie","Triticale",0.22,0.78,0.96,1.1399999999999999,1.32,1.44,1.67]
["Hors herbicides (nouvelle méthode traitement de semences)","Basse-Normandie","Betterave sucrière",1.54,1.93,2.13,2.23,2.59,2.86,3.14]
["Hors herbicides (nouvelle méthode traitement de semences)","Basse-Normandie","Blé tendre",1.88,2.4,2.73,3.1,3.44,3.8,4.1399999999999997]
["Hors herbicides (nouvelle méthode traitement de semences)","Basse-Normandie","Colza",2.4900000000000002,3.22,3.72,4.2,4.74,5.32,5.58]
["Hors herbicides (nouvelle méthode traitement de semences)","Basse-Normandie","Féverole",0.5,1.25,1.58,2.2999999999999998,2.88,3.21,3.81]
["Hors herbicides (nouvelle méthode traitement de semences)","Basse-Normandie","Lin fibre",1.64,1.94,2.3199999999999998,2.61,2.96,3.26,3.62]
["Hors herbicides (nouvelle méthode traitement de semences)","Basse-Normandie","Maïs fourrage",0.67,1,1,1,1,1,1]
["Hors herbicides (nouvelle méthode traitement de semences)","Basse-Normandie","Maïs grain",0.56000000000000005,1,1,1,1,1,1.24]
["Hors herbicides (nouvelle méthode traitement de semences)","Basse-Normandie","Orge",1.38,1.84,2.19,2.4700000000000002,2.73,3.04,3.25]
["Hors herbicides (nouvelle méthode traitement de semences)","Basse-Normandie","Pois protéagineux",1.53,2.2999999999999998,2.67,3.09,3.57,3.89,4.32]
["Hors herbicides (nouvelle méthode traitement de semences)","Basse-Normandie","Triticale",0.33,1,1.51,1.75,2.08,2.3199999999999998,2.63]
["Herbicides","Bourgogne","Blé tendre",0.64,0.98,1.07,1.22,1.39,1.58,1.75]
["Herbicides","Bourgogne","Colza",0.99,1.39,1.57,1.77,1.96,2.14,2.39]
["Herbicides","Bourgogne","Féverole",0,0,0.33,0.6,0.84,1.1200000000000001,1.27]
["Herbicides","Bourgogne","Lin oléagineux",0.75,1.03,1.35,1.69,1.8,1.98,2.34]
["Herbicides","Bourgogne","Maïs fourrage",0.56999999999999995,0.82,0.99,1.06,1.18,1.36,1.53]
["Herbicides","Bourgogne","Maïs grain",0.87,1.1100000000000001,1.27,1.36,1.48,1.73,1.88]
["Herbicides","Bourgogne","Orge",0.72,0.95,1.27,1.49,1.67,1.85,2.12]
["Herbicides","Bourgogne","Pois protéagineux",0.04,0.62,0.83,0.93,1.06,1.19,1.48]
["Herbicides","Bourgogne","Soja",0.43,1.35,1.66,1.89,2.14,2.2999999999999998,2.5]
["Herbicides","Bourgogne","Tournesol",0.46,0.72,0.94,1.03,1.1399999999999999,1.24,1.44]
["Herbicides","Bourgogne","Triticale",0,0.47,0.88,0.94,1.08,1.32,1.55]
["Hors herbicides (nouvelle méthode traitement de semences)","Bourgogne","Blé tendre",1.22,1.63,1.99,2.4500000000000002,2.86,3.15,3.6]
["Hors herbicides (nouvelle méthode traitement de semences)","Bourgogne","Colza",2.75,3.23,3.73,4.21,4.79,5.17,5.72]
["Hors herbicides (nouvelle méthode traitement de semences)","Bourgogne","Féverole",0,0,0.38,1.1200000000000001,1.87,2.19,2.73]
["Hors herbicides (nouvelle méthode traitement de semences)","Bourgogne","Lin oléagineux",0,1,1.17,1.71,2.02,2.2000000000000002,2.5099999999999998]
["Hors herbicides (nouvelle méthode traitement de semences)","Bourgogne","Maïs fourrage",1,1,1,1,1,1,1]
["Hors herbicides (nouvelle méthode traitement de semences)","Bourgogne","Maïs grain",0.67,0.93,1,1,1,1,1.32]
["Hors herbicides (nouvelle méthode traitement de semences)","Bourgogne","Orge",1.1100000000000001,1.69,2.12,2.39,2.71,2.98,3.4]
["Hors herbicides (nouvelle méthode traitement de semences)","Bourgogne","Pois protéagineux",0.28999999999999998,1.45,2,2.5,2.92,3.28,3.64]
["Hors herbicides (nouvelle méthode traitement de semences)","Bourgogne","Soja",0,0,0,0,0,0,0]
["Hors herbicides (nouvelle méthode traitement de semences)","Bourgogne","Tournesol",0.33,1,1,1,1,1.29,1.65]
["Hors herbicides (nouvelle méthode traitement de semences)","Bourgogne","Triticale",0,0.57999999999999996,1,1,1.24,1.57,1.8]
["Herbicides","Bretagne","Blé tendre",0.74,0.99,1.1499999999999999,1.32,1.56,1.73,1.99]
["Herbicides","Bretagne","Colza",0.65,0.83,1,1,1.1200000000000001,1.3,1.57]
["Herbicides","Bretagne","Féverole",0,0.56000000000000005,0.95,1.23,1.45,1.89,2.02]
["Herbicides","Bretagne","Maïs fourrage",0.8,0.98,1.1399999999999999,1.36,1.48,1.66,1.86]
["Herbicides","Bretagne","Maïs grain",0.75,0.93,1.1599999999999999,1.36,1.48,1.59,1.75]
["Herbicides","Bretagne","Orge",0.71,0.92,1.1100000000000001,1.4,1.55,1.74,1.99]
["Herbicides","Bretagne","Pois protéagineux",0.31,0.5,0.89,1.06,1.22,1.42,1.57]
["Herbicides","Bretagne","Triticale",0.71,0.9,1.1399999999999999,1.32,1.48,1.69,2.02]
["Hors herbicides (nouvelle méthode traitement de semences)","Bretagne","Blé tendre",1.77,2.0299999999999998,2.35,2.59,2.78,2.97,3.23]
["Hors herbicides (nouvelle méthode traitement de semences)","Bretagne","Colza",1.19,1.57,1.87,2.06,2.5099999999999998,2.79,3.07]
["Hors herbicides (nouvelle méthode traitement de semences)","Bretagne","Féverole",0,0.85,1.75,2.2200000000000002,2.42,3.48,3.8]
["Hors herbicides (nouvelle méthode traitement de semences)","Bretagne","Maïs fourrage",0.67,0.83,1,1,1,1,1]
["Hors herbicides (nouvelle méthode traitement de semences)","Bretagne","Maïs grain",0.67,1,1,1,1,1,1]
["Hors herbicides (nouvelle méthode traitement de semences)","Bretagne","Orge",1.4,1.89,2.02,2.2000000000000002,2.4500000000000002,2.73,2.94]
["Hors herbicides (nouvelle méthode traitement de semences)","Bretagne","Pois protéagineux",0.6,1.31,1.8,2.36,2.76,3.25,3.64]
["Hors herbicides (nouvelle méthode traitement de semences)","Bretagne","Triticale",0.9,1.26,1.58,1.88,2.17,2.41,2.71]
["Herbicides","Centre","Betterave sucrière",1.57,1.9,2.17,2.4,2.68,2.95,3.29]
["Herbicides","Centre","Blé dur",1,1.26,1.5,1.72,1.85,2.06,2.41]
["Herbicides","Centre","Blé tendre",1.07,1.3,1.53,1.79,2,2.21,2.4500000000000002]
["Herbicides","Centre","Colza",1.1499999999999999,1.43,1.69,1.83,2.0099999999999998,2.2400000000000002,2.52]
["Herbicides","Centre","Féverole",0,0,0.78,0.95,1.18,1.37,1.62]
["Herbicides","Centre","Lin oléagineux",1.1299999999999999,1.49,1.65,1.86,2.15,2.35,2.5]
["Herbicides","Centre","Maïs fourrage",0.74,0.96,1.03,1.23,1.39,1.54,1.76]
["Herbicides","Centre","Maïs grain",0.8,1.17,1.38,1.57,1.83,2.06,2.25]
["Herbicides","Centre","Orge",0.85,1.21,1.41,1.57,1.76,1.93,2.21]
["Herbicides","Centre","Pois protéagineux",0.5,0.89,1.0900000000000001,1.26,1.47,1.63,1.78]
["Herbicides","Centre","Soja",0,0.32,0.83,1.1599999999999999,1.44,1.7,2]
["Herbicides","Centre","Tournesol",0.75,1,1.33,1.49,1.58,1.71,1.83]
["Herbicides","Centre","Triticale",0,0.66,0.82,1.03,1.18,1.41,1.58]
["Hors herbicides (nouvelle méthode traitement de semences)","Centre","Betterave sucrière",2.2000000000000002,2.83,3,3.3,3.47,3.72,4.1500000000000004]
["Hors herbicides (nouvelle méthode traitement de semences)","Centre","Blé dur",2.2000000000000002,2.52,2.88,3.28,3.59,3.82,4.22]
["Hors herbicides (nouvelle méthode traitement de semences)","Centre","Blé tendre",1.57,2.0699999999999998,2.34,2.75,3.18,3.51,3.97]
["Hors herbicides (nouvelle méthode traitement de semences)","Centre","Colza",2.7,3.16,3.73,4.05,4.5599999999999996,4.96,5.43]
["Hors herbicides (nouvelle méthode traitement de semences)","Centre","Féverole",0,0,0.31,0.98,1.52,1.95,2.63]
["Hors herbicides (nouvelle méthode traitement de semences)","Centre","Lin oléagineux",0.8,1.41,1.79,2.13,2.4700000000000002,2.72,3.12]
["Hors herbicides (nouvelle méthode traitement de semences)","Centre","Maïs fourrage",0.75,1,1,1,1,1,1]
["Hors herbicides (nouvelle méthode traitement de semences)","Centre","Maïs grain",1,1,1,1,1,1.34,1.67]
["Hors herbicides (nouvelle méthode traitement de semences)","Centre","Orge",1.6,2,2.37,2.67,2.88,3.19,3.45]
["Hors herbicides (nouvelle méthode traitement de semences)","Centre","Pois protéagineux",1.17,2.2000000000000002,2.69,3.36,3.73,4.3600000000000003,4.99]
["Hors herbicides (nouvelle méthode traitement de semences)","Centre","Soja",0,0,0,0,0,0,0]
["Hors herbicides (nouvelle méthode traitement de semences)","Centre","Tournesol",1,1,1,1,1,1.2,1.67]
["Hors herbicides (nouvelle méthode traitement de semences)","Centre","Triticale",0,0.25,0.96,1.21,1.54,1.8,2.11]
["Herbicides","Champagne-Ardenne","Betterave sucrière",1.99,2.23,2.54,2.78,2.98,3.27,3.5]
["Herbicides","Champagne-Ardenne","Blé tendre",0.87,1.01,1.19,1.38,1.49,1.67,1.87]
["Herbicides","Champagne-Ardenne","Colza",0.93,1.1299999999999999,1.39,1.59,1.87,2.16,2.31]
["Herbicides","Champagne-Ardenne","Féverole",0,0.47,0.7,0.99,1.1399999999999999,1.31,1.52]
["Herbicides","Champagne-Ardenne","Maïs fourrage",0.77,0.97,1.17,1.33,1.52,1.68,1.87]
["Herbicides","Champagne-Ardenne","Maïs grain",0.83,1.06,1.26,1.43,1.59,1.81,2.0099999999999998]
["Herbicides","Champagne-Ardenne","Orge",0.61,0.7,0.88,1.07,1.32,1.52,1.91]
["Herbicides","Champagne-Ardenne","Pois protéagineux",0.47,0.72,0.91,1.03,1.23,1.36,1.57]
["Herbicides","Champagne-Ardenne","Soja",0,0.32,0.59,1.1000000000000001,1.48,1.72,1.9]
["Herbicides","Champagne-Ardenne","Tournesol",0.45,0.75,0.97,1.1399999999999999,1.31,1.38,1.53]
["Herbicides","Champagne-Ardenne","Triticale",0.03,0.23,0.56999999999999995,1.01,1.21,1.39,1.59]
["Hors herbicides (nouvelle méthode traitement de semences)","Champagne-Ardenne","Betterave sucrière",1.97,2.2799999999999998,2.88,2.93,3.19,3.3,3.6]
["Hors herbicides (nouvelle méthode traitement de semences)","Champagne-Ardenne","Blé tendre",1.99,2.72,3.17,3.55,3.9,4.32,4.76]
["Hors herbicides (nouvelle méthode traitement de semences)","Champagne-Ardenne","Colza",2.4700000000000002,3.28,3.75,4.0999999999999996,4.54,5.03,5.45]
["Hors herbicides (nouvelle méthode traitement de semences)","Champagne-Ardenne","Féverole",0,0.5,0.83,1.58,1.99,2.48,2.99]
["Hors herbicides (nouvelle méthode traitement de semences)","Champagne-Ardenne","Maïs fourrage",1,1,1,1,1,1,1]
["Hors herbicides (nouvelle méthode traitement de semences)","Champagne-Ardenne","Maïs grain",1,1,1,1,1,1,1.44]
["Hors herbicides (nouvelle méthode traitement de semences)","Champagne-Ardenne","Orge",1.49,1.7,2.06,2.3199999999999998,2.61,2.92,3.23]
["Hors herbicides (nouvelle méthode traitement de semences)","Champagne-Ardenne","Pois protéagineux",1,1.75,2.21,2.5099999999999998,2.96,3.38,3.87]
["Hors herbicides (nouvelle méthode traitement de semences)","Champagne-Ardenne","Soja",0,0,0,0,0,0,0]
["Hors herbicides (nouvelle méthode traitement de semences)","Champagne-Ardenne","Tournesol",0.4,1,1,1.17,1.27,1.28,1.58]
["Hors herbicides (nouvelle méthode traitement de semences)","Champagne-Ardenne","Triticale",0.33,0.52,1.24,1.48,1.79,2.12,2.36]
["Herbicides","Franche-Comté","Blé tendre",0.71,1,1.19,1.35,1.46,1.63,1.85]
["Herbicides","Franche-Comté","Colza",0.93,1.07,1.29,1.46,1.72,1.91,2.11]
["Herbicides","Franche-Comté","Maïs fourrage",0.7,0.89,1.0900000000000001,1.19,1.32,1.51,1.67]
["Herbicides","Franche-Comté","Maïs grain",0.72,0.89,1.1200000000000001,1.28,1.44,1.62,1.81]
["Herbicides","Franche-Comté","Orge",0.75,0.95,1.1000000000000001,1.26,1.52,1.69,1.88]
["Herbicides","Franche-Comté","Soja",0.43,1.1599999999999999,1.43,1.64,1.83,1.96,2.0499999999999998]
["Herbicides","Franche-Comté","Triticale",0,0.46,0.85,0.97,1.2,1.51,1.73]
["Hors herbicides (nouvelle méthode traitement de semences)","Franche-Comté","Blé tendre",1.2,1.83,2.19,2.5499999999999998,2.78,3.24,3.54]
["Hors herbicides (nouvelle méthode traitement de semences)","Franche-Comté","Colza",2.4500000000000002,3.13,3.77,4.2,4.6399999999999997,5.07,5.57]
["Hors herbicides (nouvelle méthode traitement de semences)","Franche-Comté","Maïs fourrage",0.67,0.67,1,1,1,1,1]
["Hors herbicides (nouvelle méthode traitement de semences)","Franche-Comté","Maïs grain",0.67,1,1,1,1.18,1.32,1.6]
["Hors herbicides (nouvelle méthode traitement de semences)","Franche-Comté","Orge",0.94,1.52,1.91,2.25,2.77,3.15,3.74]
["Hors herbicides (nouvelle méthode traitement de semences)","Franche-Comté","Soja",0,0,0,0,0,0,0]
["Hors herbicides (nouvelle méthode traitement de semences)","Franche-Comté","Triticale",0,0.73,1,1.17,1.53,1.73,1.89]
["Herbicides","Haute-Normandie","Betterave sucrière",1.79,2.2799999999999998,2.63,2.89,3.03,3.38,3.62]
["Herbicides","Haute-Normandie","Blé tendre",0.83,1.1200000000000001,1.39,1.63,1.96,2.2200000000000002,2.44]
["Herbicides","Haute-Normandie","Colza",0.96,1.27,1.48,1.61,1.74,1.85,2.0499999999999998]
["Herbicides","Haute-Normandie","Féverole",0.44,0.5,0.76,1.03,1.29,1.44,1.69]
["Herbicides","Haute-Normandie","Lin fibre",1.25,1.73,1.91,2.19,2.4,2.5499999999999998,2.67]
["Herbicides","Haute-Normandie","Maïs fourrage",0.67,0.81,0.95,1.07,1.25,1.42,1.66]
["Herbicides","Haute-Normandie","Orge",0.85,1.04,1.27,1.45,1.62,1.86,2.16]
["Herbicides","Haute-Normandie","Pois protéagineux",0.9,1.1200000000000001,1.27,1.42,1.58,1.76,1.92]
["Herbicides","Haute-Normandie","Betterave sucrière",1.47,1.88,1.97,2.17,2.39,2.52,2.86]
["Hors herbicides (nouvelle méthode traitement de semences)","Haute-Normandie","Blé tendre",2.75,3.38,3.68,4.1100000000000003,4.4000000000000004,4.83,5.13]
["Hors herbicides (nouvelle méthode traitement de semences)","Haute-Normandie","Colza",2.72,3.48,3.82,4.33,4.6100000000000003,5.26,5.72]
["Hors herbicides (nouvelle méthode traitement de semences)","Haute-Normandie","Féverole",0.4,0.6,1,1.7,2.19,2.68,3.49]
["Hors herbicides (nouvelle méthode traitement de semences)","Haute-Normandie","Lin fibre",1.72,2.12,2.4300000000000002,2.9,3.11,3.43,3.69]
["Hors herbicides (nouvelle méthode traitement de semences)","Haute-Normandie","Maïs fourrage",1,1,1,1,1,1,1]
["Hors herbicides (nouvelle méthode traitement de semences)","Haute-Normandie","Orge",2.15,2.77,3.2,3.41,3.65,3.9,4.09]
["Hors herbicides (nouvelle méthode traitement de semences)","Haute-Normandie","Pois protéagineux",1.75,2.25,2.84,3.4,4.03,4.4800000000000004,5.0599999999999996]
["Herbicides","Ile-de-France","Betterave sucrière",1.51,1.99,2.34,2.56,2.92,3.18,3.48]
["Herbicides","Ile-de-France","Blé tendre",0.92,1.18,1.32,1.51,1.89,2.0699999999999998,2.4]
["Herbicides","Ile-de-France","Colza",1.04,1.28,1.55,1.75,1.89,2.0499999999999998,2.29]
["Herbicides","Ile-de-France","Féverole",0,0.25,0.6,0.87,1.06,1.21,1.47]
["Herbicides","Ile-de-France","Maïs grain",0.78,1.03,1.23,1.43,1.64,1.81,2.08]
["Herbicides","Ile-de-France","Orge",0.63,0.9,1.1200000000000001,1.36,1.53,1.72,1.97]
["Herbicides","Ile-de-France","Pois protéagineux",0.57999999999999996,0.79,0.98,1.1299999999999999,1.37,1.52,1.71]
["Hors herbicides (nouvelle méthode traitement de semences)","Ile-de-France","Betterave sucrière",1.63,2.15,2.6,2.79,3,3.24,3.49]
["Hors herbicides (nouvelle méthode traitement de semences)","Ile-de-France","Blé tendre",2.13,2.78,3.16,3.43,3.85,4.0599999999999996,4.49]
["Hors herbicides (nouvelle méthode traitement de semences)","Ile-de-France","Colza",2.59,3.13,3.82,4.18,4.72,5.29,5.67]
["Hors herbicides (nouvelle méthode traitement de semences)","Ile-de-France","Féverole",0,0.75,1.08,1.8,2.23,2.52,3.05]
["Hors herbicides (nouvelle méthode traitement de semences)","Ile-de-France","Maïs grain",0.67,1,1,1,1,1,1.26]
["Hors herbicides (nouvelle méthode traitement de semences)","Ile-de-France","Orge",1.5,1.97,2.2599999999999998,2.59,2.85,3.12,3.34]
["Hors herbicides (nouvelle méthode traitement de semences)","Ile-de-France","Pois protéagineux",1.23,2.0099999999999998,2.77,3.11,3.52,3.89,4.46]
["Herbicides","Languedoc-Roussillon","Blé dur",0,0.2,0.73,0.94,1.06,1.29,1.57]
["Herbicides","Languedoc-Roussillon","Colza",1.07,1.29,1.51,1.68,1.83,2.04,2.38]
["Herbicides","Languedoc-Roussillon","Orge",0.43,0.6,0.92,1.17,1.36,1.52,1.77]
["Herbicides","Languedoc-Roussillon","Pois protéagineux",0.11,0.45,0.73,0.86,1.03,1.22,1.52]
["Herbicides","Languedoc-Roussillon","Tournesol",0.17,0.56999999999999995,0.78,0.83,1.04,1.19,1.36]
["Herbicides","Languedoc-Roussillon","Triticale",0,0,0,0,0,0,0.06]
["Hors herbicides (nouvelle méthode traitement de semences)","Languedoc-Roussillon","Blé dur",1,1.05,1.05,1.5,1.96,2.3199999999999998,2.5]
["Hors herbicides (nouvelle méthode traitement de semences)","Languedoc-Roussillon","Colza",2.2599999999999998,2.79,3.32,3.78,4.28,4.59,4.93]
["Hors herbicides (nouvelle méthode traitement de semences)","Languedoc-Roussillon","Orge",0.83,1.47,1.67,1.88,2.27,2.4900000000000002,2.69]
["Hors herbicides (nouvelle méthode traitement de semences)","Languedoc-Roussillon","Pois protéagineux",0.31,1.27,2.33,2.82,3.19,3.74,4.0599999999999996]
["Hors herbicides (nouvelle méthode traitement de semences)","Languedoc-Roussillon","Tournesol",0.67,1,1,1,1,1.07,1.44]
["Hors herbicides (nouvelle méthode traitement de semences)","Languedoc-Roussillon","Triticale",0,0,0,0,0,0.67,1]
["Herbicides","Limousin","Maïs fourrage",0.41,0.57999999999999996,0.76,0.81,0.93,0.97,1.02]
["Herbicides","Limousin","Triticale",0,0.42,0.7,0.89,1,1.1000000000000001,1.36]
["Hors herbicides (nouvelle méthode traitement de semences)","Limousin","Maïs fourrage",1,1,1,1,1,1,1]
["Hors herbicides (nouvelle méthode traitement de semences)","Limousin","Triticale",0,0.78,1,1,1.1499999999999999,1.57,1.73]
["Herbicides","Lorraine","Blé tendre",0.76,1.19,1.4,1.6,1.76,1.9,2.14]
["Herbicides","Lorraine","Colza",1.04,1.37,1.59,1.81,1.98,2.2000000000000002,2.5]
["Herbicides","Lorraine","Lin oléagineux",0.34,0.7,0.96,1.1599999999999999,1.5,1.77,1.9]
["Herbicides","Lorraine","Maïs fourrage",0.67,1.03,1.22,1.3,1.43,1.55,1.72]
["Herbicides","Lorraine","Maïs grain",0.83,1.08,1.26,1.39,1.6,1.75,2.02]
["Herbicides","Lorraine","Orge",0.74,0.9,1.2,1.38,1.61,1.75,1.91]
["Herbicides","Lorraine","Pois protéagineux",0.33,0.55000000000000004,0.74,0.88,1.04,1.19,1.37]
["Herbicides","Lorraine","Tournesol",0.65,0.89,0.99,1.1399999999999999,1.26,1.41,1.55]
["Herbicides","Lorraine","Triticale",0,0.26,0.79,0.96,1.26,1.47,1.64]
["Hors herbicides (nouvelle méthode traitement de semences)","Lorraine","Blé tendre",1.22,1.57,1.89,2.2000000000000002,2.37,2.75,3.29]
["Hors herbicides (nouvelle méthode traitement de semences)","Lorraine","Colza",2.16,2.94,3.36,3.8,4.2300000000000004,4.5199999999999996,4.91]
["Hors herbicides (nouvelle méthode traitement de semences)","Lorraine","Lin oléagineux",0.5,0.86,1.36,1.64,1.93,2.1800000000000002,2.5299999999999998]
["Hors herbicides (nouvelle méthode traitement de semences)","Lorraine","Maïs fourrage",0.67,1,1,1,1,1,1]
["Hors herbicides (nouvelle méthode traitement de semences)","Lorraine","Maïs grain",1,1,1,1,1,1.22,1.4]
["Hors herbicides (nouvelle méthode traitement de semences)","Lorraine","Orge",0.66,1.17,1.52,1.86,2.08,2.42,2.7]
["Hors herbicides (nouvelle méthode traitement de semences)","Lorraine","Pois protéagineux",0,0.55000000000000004,1,1.36,1.73,2.1,2.44]
["Hors herbicides (nouvelle méthode traitement de semences)","Lorraine","Tournesol",0.67,1,1,1.28,1.31,1.53,1.81]
["Hors herbicides (nouvelle méthode traitement de semences)","Lorraine","Triticale",0,0.67,1,1.07,1.4,1.64,2]
["Herbicides","Midi-Pyrénées","Blé dur",0.68,0.9,1.05,1.29,1.44,1.57,1.7]
["Herbicides","Midi-Pyrénées","Blé tendre",0.2,0.61,0.86,1,1.2,1.49,1.62]
["Herbicides","Midi-Pyrénées","Colza",0.54,0.81,1,1.1000000000000001,1.3,1.57,1.86]
["Herbicides","Midi-Pyrénées","Féverole",0,0,0,0.06,0.42,0.66,0.77]
["Herbicides","Midi-Pyrénées","Lin oléagineux",0,0,0,0,0.16,0.5,0.62]
["Herbicides","Midi-Pyrénées","Maïs fourrage",0.4,0.61,0.81,0.91,0.98,1.0900000000000001,1.33]
["Herbicides","Midi-Pyrénées","Maïs grain",0.74,0.89,1.02,1.23,1.36,1.56,1.73]
["Herbicides","Midi-Pyrénées","Orge",0,0.47,0.76,0.95,1.1100000000000001,1.38,1.67]
["Herbicides","Midi-Pyrénées","Pois protéagineux",0,0.11,0.33,0.45,0.63,0.88,1.02]
["Herbicides","Midi-Pyrénées","Soja",0,0,0.24,0.56000000000000005,0.73,1.37,1.67]
["Herbicides","Midi-Pyrénées","Tournesol",0.2,0.7,0.97,1.2,1.33,1.43,1.56]
["Herbicides","Midi-Pyrénées","Triticale",0,0,0.45,0.81,0.87,1.06,1.33]
["Hors herbicides (nouvelle méthode traitement de semences)","Midi-Pyrénées","Blé dur",2,2.34,2.4900000000000002,2.69,2.89,3.1,3.32]
["Hors herbicides (nouvelle méthode traitement de semences)","Midi-Pyrénées","Blé tendre",0.4,1.29,1.57,1.76,2,2.2799999999999998,2.5099999999999998]
["Hors herbicides (nouvelle méthode traitement de semences)","Midi-Pyrénées","Colza",1.43,2.21,2.71,3.46,3.87,4.3899999999999997,4.8499999999999996]
["Hors herbicides (nouvelle méthode traitement de semences)","Midi-Pyrénées","Féverole",0,0,0,0,0.7,1.42,1.9]
["Hors herbicides (nouvelle méthode traitement de semences)","Midi-Pyrénées","Lin oléagineux",0,0,0,0,0.3,1,1.31]
["Hors herbicides (nouvelle méthode traitement de semences)","Midi-Pyrénées","Maïs fourrage",0,0.67,1,1,1,1,1]
["Hors herbicides (nouvelle méthode traitement de semences)","Midi-Pyrénées","Maïs grain",0.33,0.97,1,1,1.1299999999999999,1.52,1.87]
["Hors herbicides (nouvelle méthode traitement de semences)","Midi-Pyrénées","Orge",0.1,1,1,1.5,1.69,1.82,2.0299999999999998]
["Hors herbicides (nouvelle méthode traitement de semences)","Midi-Pyrénées","Pois protéagineux",0,0.87,1.3,2.14,2.76,3.33,3.79]
["Hors herbicides (nouvelle méthode traitement de semences)","Midi-Pyrénées","Soja",0,0,0,0,0,0,0]
["Hors herbicides (nouvelle méthode traitement de semences)","Midi-Pyrénées","Tournesol",0.33,0.67,1,1,1,1.4,1.88]
["Hors herbicides (nouvelle méthode traitement de semences)","Midi-Pyrénées","Triticale",0,0.17,0.93,1,1.1599999999999999,1.47,1.67]
["Herbicides","Nord-Pas-de-Calais","Betterave sucrière",1.47,1.9,2.16,2.2799999999999998,2.58,2.85,3.16]
["Herbicides","Nord-Pas-de-Calais","Blé tendre",0.87,0.99,1.21,1.39,1.58,1.81,2.02]
["Herbicides","Nord-Pas-de-Calais","Colza",0.94,1.25,1.44,1.64,1.92,2.08,2.27]
["Herbicides","Nord-Pas-de-Calais","Féverole",0.49,0.57999999999999996,0.77,1.0900000000000001,1.26,1.39,1.6]
["Herbicides","Nord-Pas-de-Calais","Lin fibre",0.83,0.97,1.38,1.55,1.78,1.98,2.13]
["Herbicides","Nord-Pas-de-Calais","Maïs fourrage",0.81,1,1.1399999999999999,1.3,1.46,1.59,1.77]
["Herbicides","Nord-Pas-de-Calais","Maïs grain",0.73,0.93,1.1000000000000001,1.3,1.44,1.64,1.76]
["Herbicides","Nord-Pas-de-Calais","Orge",0.78,1.04,1.31,1.46,1.62,1.73,1.91]
["Herbicides","Nord-Pas-de-Calais","Pois protéagineux",0.84,1.05,1.2,1.33,1.44,1.54,1.87]
["Hors herbicides (nouvelle méthode traitement de semences)","Nord-Pas-de-Calais","Betterave sucrière",1.23,1.83,1.93,2,2.17,2.39,2.8]
["Hors herbicides (nouvelle méthode traitement de semences)","Nord-Pas-de-Calais","Blé tendre",2.58,3.2,3.55,3.95,4.28,4.63,4.9800000000000004]
["Hors herbicides (nouvelle méthode traitement de semences)","Nord-Pas-de-Calais","Colza",1.85,2.33,2.63,3.1,3.39,3.89,4.28]
["Hors herbicides (nouvelle méthode traitement de semences)","Nord-Pas-de-Calais","Féverole",0.4,0.75,0.92,1.69,2.2599999999999998,2.83,3.38]
["Hors herbicides (nouvelle méthode traitement de semences)","Nord-Pas-de-Calais","Lin fibre",1.21,1.73,2.0099999999999998,2.19,2.39,2.77,3.12]
["Hors herbicides (nouvelle méthode traitement de semences)","Nord-Pas-de-Calais","Maïs fourrage",0.67,0.67,1,1,1,1,1]
["Hors herbicides (nouvelle méthode traitement de semences)","Nord-Pas-de-Calais","Maïs grain",0.67,1,1,1,1,1,1]
["Hors herbicides (nouvelle méthode traitement de semences)","Nord-Pas-de-Calais","Orge",1.58,2.2599999999999998,2.65,2.88,3.19,3.6,3.88]
["Hors herbicides (nouvelle méthode traitement de semences)","Nord-Pas-de-Calais","Pois protéagineux",1.56,2.3199999999999998,2.79,3.06,3.44,3.96,4.34]
["Herbicides","Pays de la Loire","Blé dur",0.71,0.9,1.06,1.19,1.33,1.55,1.65]
["Herbicides","Pays de la Loire","Blé tendre",0.76,1.04,1.29,1.52,1.75,1.98,2.15]
["Herbicides","Pays de la Loire","Colza",0.76,0.93,1.1399999999999999,1.27,1.59,1.84,2.13]
["Herbicides","Pays de la Loire","Féverole",0,0.1,0.38,0.73,0.8,0.97,1.1499999999999999]
["Herbicides","Pays de la Loire","Lin oléagineux",0.34,0.74,0.98,1.19,1.33,1.59,1.92]
["Herbicides","Pays de la Loire","Maïs fourrage",0.66,0.86,1.03,1.1399999999999999,1.29,1.51,1.67]
["Herbicides","Pays de la Loire","Maïs grain",0.57999999999999996,0.87,1.1100000000000001,1.28,1.48,1.75,2.04]
["Herbicides","Pays de la Loire","Orge",0.68,0.9,1.1200000000000001,1.37,1.5,1.68,1.91]
["Herbicides","Pays de la Loire","Pois protéagineux",0.37,0.68,0.88,0.97,1.1499999999999999,1.32,1.61]
["Herbicides","Pays de la Loire","Tournesol",0.5,0.83,1.0900000000000001,1.23,1.37,1.45,1.54]
["Herbicides","Pays de la Loire","Triticale",0.09,0.82,1.1000000000000001,1.32,1.52,1.69,1.92]
["Herbicides","Pays de la Loire","Blé dur",1.73,2.09,2.27,2.44,2.64,2.85,3.01]
["Hors herbicides (nouvelle méthode traitement de semences)","Pays de la Loire","Blé tendre",1.67,1.95,2.21,2.42,2.67,2.94,3.31]
["Hors herbicides (nouvelle méthode traitement de semences)","Pays de la Loire","Colza",1.81,2.44,2.88,3.27,3.63,3.9,4.28]
["Hors herbicides (nouvelle méthode traitement de semences)","Pays de la Loire","Féverole",0,0,0.38,1,1.37,1.74,2.5299999999999998]
["Hors herbicides (nouvelle méthode traitement de semences)","Pays de la Loire","Lin oléagineux",0.5,1.4,1.5,1.84,1.91,2.14,2.2200000000000002]
["Hors herbicides (nouvelle méthode traitement de semences)","Pays de la Loire","Maïs fourrage",0.33,0.99,1,1,1,1,1]
["Hors herbicides (nouvelle méthode traitement de semences)","Pays de la Loire","Maïs grain",0.67,1,1,1,1,1,1.27]
["Hors herbicides (nouvelle méthode traitement de semences)","Pays de la Loire","Orge",1.1299999999999999,1.61,1.88,2.17,2.54,2.78,3.01]
["Hors herbicides (nouvelle méthode traitement de semences)","Pays de la Loire","Pois protéagineux",0.73,1.41,2.15,2.81,2.99,3.4,3.77]
["Hors herbicides (nouvelle méthode traitement de semences)","Pays de la Loire","Tournesol",0.33,0.96,1,1,1,1,1.28]
["Hors herbicides (nouvelle méthode traitement de semences)","Pays de la Loire","Triticale",0.26,1,1.43,1.63,1.75,1.93,2.2799999999999998]
["Herbicides","Picardie","Betterave sucrière",1.75,2.1,2.4,2.6,2.76,2.95,3.29]
["Herbicides","Picardie","Blé tendre",0.97,1.22,1.42,1.6,1.82,2.0699999999999998,2.2599999999999998]
["Herbicides","Picardie","Colza",0.92,1.1299999999999999,1.36,1.52,1.68,1.9,2.13]
["Herbicides","Picardie","Féverole",0.31,0.47,0.69,0.96,1.1399999999999999,1.27,1.51]
["Herbicides","Picardie","Lin fibre",0.96,1.18,1.28,1.31,1.5,1.63,2.02]
["Herbicides","Picardie","Maïs fourrage",0.72,0.93,1.0900000000000001,1.22,1.43,1.56,1.7]
["Herbicides","Picardie","Maïs grain",0.72,0.95,1.1399999999999999,1.31,1.47,1.65,1.84]
["Herbicides","Picardie","Orge",0.75,1,1.17,1.36,1.59,1.77,1.92]
["Herbicides","Picardie","Pois protéagineux",0.79,1.05,1.25,1.34,1.45,1.63,1.79]
["Hors herbicides (nouvelle méthode traitement de semences)","Picardie","Betterave sucrière",1.7,1.91,2.06,2.38,2.4500000000000002,2.77,2.9]
["Hors herbicides (nouvelle méthode traitement de semences)","Picardie","Blé tendre",2.38,2.86,3.18,3.6,3.93,4.1399999999999997,4.5599999999999996]
["Hors herbicides (nouvelle méthode traitement de semences)","Picardie","Colza",2.44,2.93,3.33,3.93,4.3099999999999996,4.83,5.36]
["Hors herbicides (nouvelle méthode traitement de semences)","Picardie","Féverole",0.5,0.72,0.9,1.5,2.04,2.4,2.98]
["Hors herbicides (nouvelle méthode traitement de semences)","Picardie","Lin fibre",1.3,1.82,2.2000000000000002,2.44,2.69,3.07,3.52]
["Hors herbicides (nouvelle méthode traitement de semences)","Picardie","Maïs fourrage",0.67,1,1,1,1,1,1]
["Hors herbicides (nouvelle méthode traitement de semences)","Picardie","Maïs grain",0.67,1,1,1,1,1,1]
["Hors herbicides (nouvelle méthode traitement de semences)","Picardie","Orge",1.79,2.37,2.64,2.97,3.3,3.51,3.72]
["Hors herbicides (nouvelle méthode traitement de semences)","Picardie","Pois protéagineux",1.97,2.5099999999999998,2.91,3.34,3.65,3.97,4.3099999999999996]
["Herbicides","Poitou-Charentes","Blé dur",0.64,0.97,1.1599999999999999,1.32,1.5,1.64,1.79]
["Herbicides","Poitou-Charentes","Blé tendre",0.88,0.97,1.32,1.54,1.65,1.86,2.09]
["Herbicides","Poitou-Charentes","Colza",0.96,1.33,1.51,1.86,2.1,2.37,2.71]
["Herbicides","Poitou-Charentes","Féverole",0,0.13,0.56999999999999995,0.84,0.98,1.1299999999999999,1.38]
["Herbicides","Poitou-Charentes","Lin oléagineux",0.2,0.48,0.91,1.28,1.56,1.93,2.15]
["Herbicides","Poitou-Charentes","Maïs fourrage",0.6,0.86,0.98,1.1000000000000001,1.26,1.37,1.55]
["Herbicides","Poitou-Charentes","Maïs grain",0.76,1,1.18,1.42,1.6,1.82,2.04]
["Herbicides","Poitou-Charentes","Orge",0.72,0.97,1.25,1.51,1.67,1.85,2.13]
["Herbicides","Poitou-Charentes","Pois protéagineux",0.3,0.66,0.84,0.89,0.96,1.1100000000000001,1.31]
["Herbicides","Poitou-Charentes","Soja",0,0.32,0.59,0.74,1.28,1.54,1.8]
["Herbicides","Poitou-Charentes","Tournesol",0.56999999999999995,0.92,1.1499999999999999,1.31,1.45,1.54,1.65]
["Herbicides","Poitou-Charentes","Triticale",0,0.63,0.88,1.05,1.3,1.54,1.69]
["Hors herbicides (nouvelle méthode traitement de semences)","Poitou-Charentes","Blé dur",1.76,2.25,2.4300000000000002,2.7,2.93,3.22,3.52]
["Hors herbicides (nouvelle méthode traitement de semences)","Poitou-Charentes","Blé tendre",1.4,1.74,2.2200000000000002,2.4900000000000002,2.79,3.09,3.48]
["Hors herbicides (nouvelle méthode traitement de semences)","Poitou-Charentes","Colza",2.63,3.31,3.83,4.42,4.8499999999999996,5.21,5.72]
["Hors herbicides (nouvelle méthode traitement de semences)","Poitou-Charentes","Féverole",0,0.14000000000000001,0.57999999999999996,1.26,1.5,2.1800000000000002,2.75]
["Hors herbicides (nouvelle méthode traitement de semences)","Poitou-Charentes","Lin oléagineux",0,0.45,0.88,1.3,1.68,1.76,2.2000000000000002]
["Hors herbicides (nouvelle méthode traitement de semences)","Poitou-Charentes","Maïs fourrage",0.33,1,1,1,1,1,1]
["Hors herbicides (nouvelle méthode traitement de semences)","Poitou-Charentes","Maïs grain",0.57999999999999996,1,1,1,1,1.1000000000000001,1.28]
["Hors herbicides (nouvelle méthode traitement de semences)","Poitou-Charentes","Orge",1.29,1.55,1.82,2.09,2.37,2.64,2.98]
["Hors herbicides (nouvelle méthode traitement de semences)","Poitou-Charentes","Pois protéagineux",1.1200000000000001,2.21,2.65,2.97,3.37,3.57,3.94]
["Hors herbicides (nouvelle méthode traitement de semences)","Poitou-Charentes","Soja",0,0,0,0,0,0,0]
["Hors herbicides (nouvelle méthode traitement de semences)","Poitou-Charentes","Tournesol",0.39,1,1,1,1,1,1]
["Hors herbicides (nouvelle méthode traitement de semences)","Poitou-Charentes","Triticale",0.13,1,1.1299999999999999,1.47,1.62,1.72,1.93]
["Herbicides","Provence-Alpes-Côte d'Azur","Blé dur",0,0.08,0.41,0.66,0.95,1,1.1599999999999999]
["Hors herbicides (nouvelle méthode traitement de semences)","Provence-Alpes-Côte d'Azur","Blé dur",0.67,0.67,1,1,1.18,1.49,1.9]
["Herbicides","Rhône-Alpes","Blé dur",0.08,0.59,0.79,0.92,1,1,1]
["Herbicides","Rhône-Alpes","Blé tendre",0,0.72,0.95,1,1.1599999999999999,1.35,1.6]
["Herbicides","Rhône-Alpes","Colza",0.5,0.79,0.84,0.96,1.02,1.17,1.46]
["Herbicides","Rhône-Alpes","Maïs fourrage",0.78,0.93,1.07,1.22,1.29,1.44,1.58]
["Herbicides","Rhône-Alpes","Maïs grain",0.8,1.1200000000000001,1.41,1.55,1.66,1.82,2.0299999999999998]
["Herbicides","Rhône-Alpes","Orge",0.03,0.73,0.88,1.02,1.4,1.62,1.79]
["Herbicides","Rhône-Alpes","Soja",0,0.48,0.88,1.3,1.55,1.82,2.15]
["Herbicides","Rhône-Alpes","Tournesol",0.28999999999999998,0.9,1.01,1.1000000000000001,1.24,1.45,1.69]
["Herbicides","Rhône-Alpes","Triticale",0,0,0,0.87,1,1.29,1.62]
["Hors herbicides (nouvelle méthode traitement de semences)","Rhône-Alpes","Blé dur",0.96,1.18,1.42,1.53,1.85,1.93,2.25]
["Hors herbicides (nouvelle méthode traitement de semences)","Rhône-Alpes","Blé tendre",0.37,1.04,1.25,1.7,2.08,2.34,2.64]
["Hors herbicides (nouvelle méthode traitement de semences)","Rhône-Alpes","Colza",1.48,2.19,2.67,2.92,3.39,3.79,4.2300000000000004]
["Hors herbicides (nouvelle méthode traitement de semences)","Rhône-Alpes","Maïs fourrage",1,1,1,1,1,1,1]
["Hors herbicides (nouvelle méthode traitement de semences)","Rhône-Alpes","Maïs grain",0.37,1,1,1,1,1.24,1.78]
["Hors herbicides (nouvelle méthode traitement de semences)","Rhône-Alpes","Orge",0.12,0.86,0.99,1.35,1.62,1.83,2.14]
["Hors herbicides (nouvelle méthode traitement de semences)","Rhône-Alpes","Soja",0,0,0,0,0,0,0]
["Hors herbicides (nouvelle méthode traitement de semences)","Rhône-Alpes","Tournesol",0.57999999999999996,0.67,1,1,1,1.33,1.66]
["Hors herbicides (nouvelle méthode traitement de semences)","Rhône-Alpes","Triticale",0,0,0.79,1,1,1,1.36]
["Herbicides","France métropolitaine","Betterave sucrière",1.64,2.09,2.35,2.59,2.81,3.07,3.38]
["Herbicides","France métropolitaine","Blé dur",0.31,0.82,1,1.17,1.42,1.62,1.81]
["Herbicides","France métropolitaine","Blé tendre",0.8,1,1.24,1.45,1.63,1.85,2.12]
["Herbicides","France métropolitaine","Colza",0.92,1.18,1.42,1.66,1.84,2.04,2.29]
["Herbicides","France métropolitaine","Féverole",0,0,0.46,0.81,1.03,1.2,1.48]
["Herbicides","France métropolitaine","Lin fibre",1.01,1.34,1.65,1.84,2.08,2.37,2.56]
["Herbicides","France métropolitaine","Lin oléagineux",0,0.64,1,1.35,1.63,1.86,2.13]
["Herbicides","France métropolitaine","Maïs fourrage",0.71,0.91,1.03,1.2,1.37,1.52,1.71]
["Herbicides","France métropolitaine","Maïs grain",0.76,0.98,1.19,1.34,1.5,1.69,1.9]
["Herbicides","France métropolitaine","Orge",0.65,0.88,1.0900000000000001,1.37,1.57,1.75,1.97]
["Herbicides","France métropolitaine","Pois protéagineux",0.42,0.74,0.9,1.06,1.25,1.41,1.63]
["Herbicides","France métropolitaine","Soja",0,0.32,0.59,1.24,1.59,1.77,1.94]
["Herbicides","France métropolitaine","Tournesol",0.39,0.85,1.07,1.25,1.4,1.52,1.64]
["Herbicides","France métropolitaine","Triticale",0,0.41,0.81,0.97,1.1200000000000001,1.39,1.63]
["Hors herbicides (nouvelle méthode traitement de semences)","France métropolitaine","Betterave sucrière",1.79,2,2.1800000000000002,2.4300000000000002,2.81,2.94,3.28]
["Hors herbicides (nouvelle méthode traitement de semences)","France métropolitaine","Blé dur",1.05,1.68,2.0699999999999998,2.4300000000000002,2.73,3,3.34]
["Hors herbicides (nouvelle méthode traitement de semences)","France métropolitaine","Blé tendre",1.52,2.0099999999999998,2.42,2.79,3.15,3.54,4]
["Hors herbicides (nouvelle méthode traitement de semences)","France métropolitaine","Colza",2.2599999999999998,2.92,3.46,3.88,4.3600000000000003,4.8,5.31]
["Hors herbicides (nouvelle méthode traitement de semences)","France métropolitaine","Féverole",0,0,0.38,1.1200000000000001,1.69,2.2200000000000002,2.79]
["Hors herbicides (nouvelle méthode traitement de semences)","France métropolitaine","Lin fibre",1.52,1.91,2.2599999999999998,2.54,2.93,3.3,3.55]
["Hors herbicides (nouvelle méthode traitement de semences)","France métropolitaine","Lin oléagineux",0,0.55000000000000004,1.29,1.64,1.97,2.2999999999999998,2.62]
["Hors herbicides (nouvelle méthode traitement de semences)","France métropolitaine","Maïs fourrage",0.67,1,1,1,1,1,1]
["Hors herbicides (nouvelle méthode traitement de semences)","France métropolitaine","Maïs grain",0.67,1,1,1,1,1,1.41]
["Hors herbicides (nouvelle méthode traitement de semences)","France métropolitaine","Orge",1.17,1.67,1.97,2.31,2.62,2.92,3.27]
["Hors herbicides (nouvelle méthode traitement de semences)","France métropolitaine","Pois protéagineux",0.91,1.78,2.2999999999999998,2.78,3.22,3.65,4.03]
["Hors herbicides (nouvelle méthode traitement de semences)","France métropolitaine","Soja",0,0,0,0,0,0,0]
["Hors herbicides (nouvelle méthode traitement de semences)","France métropolitaine","Tournesol",0.4,1,1,1,1,1.06,1.68]
["Hors herbicides (nouvelle méthode traitement de semences)","France métropolitaine","Triticale",0,0.8,1,1,1.47,1.67,1.92]
["Herbicides","Aquitaine","Carotte",1.88,2.5099999999999998,2.97,3.37,3.54,3.6,3.7]
["Herbicides","Aquitaine","Autres choux (hors chou à choucroute)",0,0,0.14000000000000001,0.28999999999999998,0.37,0.75,0.88]
["Herbicides","Aquitaine","Fraise",0,0,0.06,0.14000000000000001,0.18,0.25,0.35]
["Herbicides","Aquitaine","Melon",0,0,0,0,0,0.05,0.18]
["Herbicides","Aquitaine","Poireau",0,0,0,0.17,0.5,1.31,1.83]
["Herbicides","Aquitaine","Salade",0,0,0,0,0,0.2,0.63]
["Herbicides","Aquitaine","Tomate",0,0.51,0.51,0.51,0.55000000000000004,1.29,1.88]
["Herbicides","Basse-Normandie","Carotte",1.1200000000000001,1.57,2.0099999999999998,2.29,2.48,2.62,2.95]
["Herbicides","Basse-Normandie","Choux fleur, Brocoli à jets et Romanesco",0,0,0,0.25,0.75,0.8,0.97]
["Herbicides","Basse-Normandie","Autres choux (hors chou à choucroute)",0.22,0.69,0.84,0.88,0.95,1,1.19]
["Herbicides","Basse-Normandie","Poireau",0.35,0.64,0.85,1.07,1.24,1.39,1.64]
["Herbicides","Basse-Normandie","Pomme de terre",1.39,1.59,1.76,2,2.16,2.35,2.59]
["Herbicides","Basse-Normandie","Salade",0,0.18,0.46,0.49,0.5,0.72,0.77]
["Herbicides","Bretagne","Carotte",0.8,1.34,1.7,2.16,2.44,2.71,2.87]
["Herbicides","Bretagne","Choux fleur, Brocoli à jets et Romanesco",0,0,0,0,0.46,0.63,0.95]
["Herbicides","Bretagne","Autres choux (hors chou à choucroute)",0,0,0,0.14000000000000001,0.39,0.55000000000000004,0.8]
["Herbicides","Bretagne","Poireau",0,0,0,0.6,0.84,0.86,1.1299999999999999]
["Herbicides","Bretagne","Pomme de terre",1.08,1.57,1.91,2.15,2.4900000000000002,2.73,2.96]
["Herbicides","Bretagne","Salade",0,0,0.72,1,1,1,1]
["Herbicides","Bretagne","Tomate",0,0,0,0,0,0,0]
["Herbicides","Centre","Carotte",0.68,1.66,2,2.25,2.41,2.71,3.02]
["Herbicides","Centre","Poireau",0.18,0.51,0.57999999999999996,0.61,0.83,1.07,1.22]
["Herbicides","Centre","Pomme de terre",1.4,1.6,1.75,1.85,1.95,2.09,2.2599999999999998]
["Herbicides","Centre","Salade",0.43,0.43,0.43,0.43,0.43,0.64,0.7]
["Herbicides","Champagne-Ardenne","Carotte",0.76,1.46,1.87,2,2.06,2.19,2.4]
["Herbicides","Champagne-Ardenne","Pomme de terre",1.3,1.5,1.64,1.93,2.12,2.33,2.4900000000000002]
["Herbicides","Haute-Normandie","Pomme de terre",1.7,1.87,2.12,2.2999999999999998,2.41,2.72,2.89]
["Herbicides","Ile-de-France","Salade",0,0,0,0,0.2,0.42,0.55000000000000004]
["Herbicides","Ile-de-France","Pomme de terre",1.02,1.38,1.53,1.74,2.0099999999999998,2.14,2.27]
["Herbicides","Languedoc-Roussillon","Melon",0,0,0,0,0,0,0]
["Herbicides","Languedoc-Roussillon","Salade",0,0,0,0,0,0,0.49]
["Herbicides","Languedoc-Roussillon","Tomate",0,0,0,0,0,0,0.5]
["Herbicides","Midi-Pyrénées","Melon",0,0,0,0,0,0,0]
["Herbicides","Nord-Pas-de-Calais","Carotte",0.57999999999999996,1.28,1.7,1.96,2.2000000000000002,2.38,2.59]
["Herbicides","Nord-Pas-de-Calais","Choux fleur, Brocoli à jets et Romanesco",0,0,0.48,0.66,1,1.24,1.35]
["Herbicides","Nord-Pas-de-Calais","Autres choux (hors chou à choucroute)",0,0,0,0.69,0.95,1.24,1.42]
["Herbicides","Nord-Pas-de-Calais","Poireau",0,0.23,0.26,0.28000000000000003,0.51,0.61,0.74]
["Herbicides","Nord-Pas-de-Calais","Pomme de terre",1.56,1.86,2.0099999999999998,2.29,2.4700000000000002,2.63,2.79]
["Herbicides","Pays de la Loire","Carotte",0.68,1.29,1.49,1.88,2.23,2.68,2.87]
["Herbicides","Pays de la Loire","Autres choux (hors chou à choucroute)",0,0,0,0,0,0,0.25]
["Herbicides","Pays de la Loire","Melon",0,0,0.28000000000000003,0.28999999999999998,0.32,0.36,0.87]
["Herbicides","Pays de la Loire","Poireau",0,0,0.35,0.46,0.85,0.91,0.91]
["Herbicides","Pays de la Loire","Salade",0,0,0.13,0.27,0.46,0.54,0.72]
["Herbicides","Pays de la Loire","Tomate",0,0,0,0,0,0,0]
["Herbicides","Picardie","Carotte",0.93,1.43,1.64,1.78,1.88,1.96,2.17]
["Herbicides","Picardie","Pomme de terre",1.34,1.55,1.72,1.89,2.04,2.27,2.4500000000000002]
["Herbicides","Poitou-Charentes","Melon",0,0,0.25,0.53,0.72,0.87,0.87]
["Herbicides","Provence-Alpes-Côte d'Azur","Choux fleur, Brocoli à jets et Romanesco",0,0.5,0.5,0.78,1.03,1.08,1.25]
["Herbicides","Provence-Alpes-Côte d'Azur","Autres choux (hors chou à choucroute)",0,0,0,0.38,0.38,0.38,0.5]
["Herbicides","Provence-Alpes-Côte d'Azur","Fraise",0,0,0,0,0,0,0]
["Herbicides","Provence-Alpes-Côte d'Azur","Melon",0,0,0,0,0,0,0]
["Herbicides","Provence-Alpes-Côte d'Azur","Salade",0,0,0,0,0,0,0]
["Herbicides","Provence-Alpes-Côte d'Azur","Tomate",0,0,0.5,0.87,0.93,1.18,1.5]
["Herbicides","Rhône-Alpes","Autres choux (hors chou à choucroute)",0,0,0,0,0.7,0.79,0.9]
["Herbicides","Rhône-Alpes","Fraise",0,0,0,0,0.12,0.27,0.53]
["Herbicides","Rhône-Alpes","Poireau",0,0,0.22,0.63,0.73,0.76,0.89]
["Herbicides","Rhône-Alpes","Salade",0,0,0,0.27,0.62,0.68,0.79]
["Herbicides","Rhône-Alpes","Tomate",0,0,0,0.25,0.6,1.1100000000000001,1.5]
["Herbicides","France métropolitaine","Carotte",1.02,1.7,2.08,2.38,2.62,3.01,3.4]
["Herbicides","France métropolitaine","Choux fleur, Brocoli à jets et Romanesco",0,0,0,0,0.5,0.75,0.97]
["Herbicides","France métropolitaine","Autres choux (hors chou à choucroute)",0,0,0,0.35,0.39,0.7,1.05]
["Herbicides","France métropolitaine","Fraise",0,0,0,0,0.08,0.16,0.32]
["Herbicides","France métropolitaine","Melon",0,0,0,0,0,0,0.18]
["Herbicides","France métropolitaine","Poireau",0,0.15,0.41,0.61,0.82,0.96,1.1399999999999999]
["Herbicides","France métropolitaine","Pomme de terre",1.39,1.66,1.85,2.0299999999999998,2.25,2.44,2.64]
["Herbicides","France métropolitaine","Salade",0,0,0,0.18,0.27,0.54,0.7]
["Herbicides","France métropolitaine","Tomate",0,0,0,0,0.93,1.01,1.5]
["Hors herbicides (nouvelle méthode traitement de semences)","Aquitaine","Carotte",1.47,1.89,2.67,3.66,4.45,4.97,5.19]
["Hors herbicides (nouvelle méthode traitement de semences)","Aquitaine","Autres choux (hors chou à choucroute)",0.9,0.9,1.47,2.4700000000000002,2.79,3.83,5.46]
["Hors herbicides (nouvelle méthode traitement de semences)","Aquitaine","Fraise",1.52,1.95,2.41,2.56,3.6,4.76,5.32]
["Hors herbicides (nouvelle méthode traitement de semences)","Aquitaine","Melon",1.88,2.91,3.39,3.92,5.27,6.69,7.29]
["Hors herbicides (nouvelle méthode traitement de semences)","Aquitaine","Poireau",0.95,1,1.5,2.83,2.83,4.93,7.83]
["Hors herbicides (nouvelle méthode traitement de semences)","Aquitaine","Salade",0.4,0.5,0.9,1.86,1.91,3,3.09]
["Hors herbicides (nouvelle méthode traitement de semences)","Aquitaine","Tomate",3.5,6.59,8.19,9.61,13.3,19.34,20.11]
["Hors herbicides (nouvelle méthode traitement de semences)","Basse-Normandie","Carotte",3.72,5.81,7.36,8.4700000000000006,9.77,10.28,10.79]
["Hors herbicides (nouvelle méthode traitement de semences)","Basse-Normandie","Choux fleur, Brocoli à jets et Romanesco",1,1,1.92,2.21,2.58,3.31,3.63]
["Hors herbicides (nouvelle méthode traitement de semences)","Basse-Normandie","Autres choux (hors chou à choucroute)",1.74,2.83,3.82,4.3,4.87,5.01,5.82]
["Hors herbicides (nouvelle méthode traitement de semences)","Basse-Normandie","Poireau",3.69,6.11,7.39,8.15,9.2100000000000009,10.19,11.07]
["Hors herbicides (nouvelle méthode traitement de semences)","Basse-Normandie","Pomme de terre",7.73,9.4499999999999993,10.41,11.46,12.37,13.24,14.33]
["Hors herbicides (nouvelle méthode traitement de semences)","Basse-Normandie","Salade",1.49,1.5,1.9,2.34,3.11,4.47,5.72]
["Hors herbicides (nouvelle méthode traitement de semences)","Bretagne","Carotte",1.49,2.89,3.9,4.88,5.55,5.9,6.75]
["Hors herbicides (nouvelle méthode traitement de semences)","Bretagne","Choux fleur, Brocoli à jets et Romanesco",1,1,1.42,1.95,2,2.2599999999999998,2.67]
["Hors herbicides (nouvelle méthode traitement de semences)","Bretagne","Autres choux (hors chou à choucroute)",0.5,1,1.6,2,2,2.44,3.4]
["Hors herbicides (nouvelle méthode traitement de semences)","Bretagne","Poireau",0,0,1,2.67,3.8,4.59,6.82]
["Hors herbicides (nouvelle méthode traitement de semences)","Bretagne","Pomme de terre",5.36,7.61,9.4600000000000009,11.17,12.37,14.55,16.13]
["Hors herbicides (nouvelle méthode traitement de semences)","Bretagne","Salade",1,1.25,1.94,3.18,3.6,4.5,5.3]
["Hors herbicides (nouvelle méthode traitement de semences)","Bretagne","Tomate",0,0.13,0.6,0.78,1.71,2.59,2.59]
["Hors herbicides (nouvelle méthode traitement de semences)","Centre","Carotte",1.35,1.69,2.38,2.93,3.4,3.75,4.4000000000000004]
["Hors herbicides (nouvelle méthode traitement de semences)","Centre","Poireau",3,4.78,6.18,6.84,7.9,8.89,12.06]
["Hors herbicides (nouvelle méthode traitement de semences)","Centre","Pomme de terre",6.94,8.15,9.0299999999999994,9.7899999999999991,10.38,11.12,12.19]
["Hors herbicides (nouvelle méthode traitement de semences)","Centre","Salade",3.25,3.25,3.46,3.59,3.75,4.05,4.75]
["Hors herbicides (nouvelle méthode traitement de semences)","Champagne-Ardenne","Carotte",1.21,1.95,3.15,4.25,5,6.45,7.65]
["Hors herbicides (nouvelle méthode traitement de semences)","Champagne-Ardenne","Pomme de terre",11.73,14.32,15.07,15.96,16.96,18.489999999999998,19.88]
["Hors herbicides (nouvelle méthode traitement de semences)","Haute-Normandie","Pomme de terre",8.7899999999999991,10.44,11.71,12.79,13.81,14.73,15.79]
["Hors herbicides (nouvelle méthode traitement de semences)","Ile-de-France","Salade",0.5,1.01,1.67,2.34,2.34,2.66,3.1]
["Hors herbicides (nouvelle méthode traitement de semences)","Ile-de-France","Pomme de terre",7.96,9.3000000000000007,10.47,11.11,12.56,13.38,14.67]
["Hors herbicides (nouvelle méthode traitement de semences)","Languedoc-Roussillon","Melon",2.97,3.65,4.63,6.05,6.34,6.46,7.64]
["Hors herbicides (nouvelle méthode traitement de semences)","Languedoc-Roussillon","Salade",0.4,1.5,3.07,3.82,5.26,5.76,6.93]
["Hors herbicides (nouvelle méthode traitement de semences)","Languedoc-Roussillon","Tomate",1.25,4.91,8.36,9.44,10.06,10.06,12.32]
["Hors herbicides (nouvelle méthode traitement de semences)","Midi-Pyrénées","Melon",3.95,4.68,5.55,6.47,7.49,7.6,8.64]
["Hors herbicides (nouvelle méthode traitement de semences)","Nord-Pas-de-Calais","Carotte",0,1.29,1.56,2.36,3.33,4.03,4.78]
["Hors herbicides (nouvelle méthode traitement de semences)","Nord-Pas-de-Calais","Choux fleur, Brocoli à jets et Romanesco",1.56,2.2400000000000002,2.73,3.13,3.79,4.2699999999999996,5.13]
["Hors herbicides (nouvelle méthode traitement de semences)","Nord-Pas-de-Calais","Autres choux (hors chou à choucroute)",3.51,4.79,6.03,7.02,8.74,9.77,11.56]
["Hors herbicides (nouvelle méthode traitement de semences)","Nord-Pas-de-Calais","Poireau",0.88,2.2999999999999998,2.56,3.57,5.4,7,7.81]
["Hors herbicides (nouvelle méthode traitement de semences)","Nord-Pas-de-Calais","Pomme de terre",10.08,11.72,12.94,13.79,14.58,15.69,16.98]
["Hors herbicides (nouvelle méthode traitement de semences)","Pays de la Loire","Carotte",0.85,1.69,2.25,2.75,3.4,3.96,5.16]
["Hors herbicides (nouvelle méthode traitement de semences)","Pays de la Loire","Autres choux (hors chou à choucroute)",0.83,0.83,2.97,2.97,3.45,3.6,3.87]
["Hors herbicides (nouvelle méthode traitement de semences)","Pays de la Loire","Melon",2.5499999999999998,3.36,3.98,4.71,4.9000000000000004,5.88,6.39]
["Hors herbicides (nouvelle méthode traitement de semences)","Pays de la Loire","Poireau",0,1.7,2.27,2.91,4.7699999999999996,5.5,6.81]
["Hors herbicides (nouvelle méthode traitement de semences)","Pays de la Loire","Salade",1,1,1.18,1.43,1.65,1.87,2]
["Hors herbicides (nouvelle méthode traitement de semences)","Pays de la Loire","Tomate",0.33,0.86,1,1.84,2.34,3.5,4.17]
["Hors herbicides (nouvelle méthode traitement de semences)","Picardie","Carotte",0.6,1.46,1.75,2.38,2.85,3.34,3.92]
["Hors herbicides (nouvelle méthode traitement de semences)","Picardie","Pomme de terre",10.34,11.29,12.85,14.14,15.1,16.440000000000001,17.670000000000002]
["Hors herbicides (nouvelle méthode traitement de semences)","Poitou-Charentes","Melon",2.11,3.37,4.3,4.5199999999999996,5.09,5.54,6.03]
["Hors herbicides (nouvelle méthode traitement de semences)","Provence-Alpes-Côte d'Azur","Choux fleur, Brocoli à jets et Romanesco",3.28,3.53,3.95,4.03,4.03,4.34,4.46]
["Hors herbicides (nouvelle méthode traitement de semences)","Provence-Alpes-Côte d'Azur","Autres choux (hors chou à choucroute)",0.5,1.95,2,2,2.6,3.2,3.82]
["Hors herbicides (nouvelle méthode traitement de semences)","Provence-Alpes-Côte d'Azur","Fraise",0,0,1.3,2,3.08,5,5.94]
["Hors herbicides (nouvelle méthode traitement de semences)","Provence-Alpes-Côte d'Azur","Melon",2,2.94,3.5,4,4.4400000000000004,4.7,5.67]
["Hors herbicides (nouvelle méthode traitement de semences)","Provence-Alpes-Côte d'Azur","Salade",0.8,2.54,4.13,4.47,5.14,6.18,7.11]
["Hors herbicides (nouvelle méthode traitement de semences)","Provence-Alpes-Côte d'Azur","Tomate",1.92,4.16,7.17,7.76,9.6300000000000008,11.42,12.91]
["Hors herbicides (nouvelle méthode traitement de semences)","Rhône-Alpes","Autres choux (hors chou à choucroute)",2.78,3.16,4.37,5.34,6.01,7.56,7.6]
["Hors herbicides (nouvelle méthode traitement de semences)","Rhône-Alpes","Fraise",0.5,1.48,2.79,4.03,5.46,6.35,8.56]
["Hors herbicides (nouvelle méthode traitement de semences)","Rhône-Alpes","Poireau",2.17,3.3,4.5,7.95,9.3699999999999992,11.56,12.4]
["Hors herbicides (nouvelle méthode traitement de semences)","Rhône-Alpes","Salade",1.97,2.85,3.22,3.48,4.1100000000000003,7.87,9.5]
["Hors herbicides (nouvelle méthode traitement de semences)","Rhône-Alpes","Tomate",0.5,1.42,3.15,4.3099999999999996,8.2200000000000006,9.59,12.96]
["Hors herbicides (nouvelle méthode traitement de semences)","France métropolitaine","Carotte",1.33,2.06,2.82,3.78,4.5599999999999996,5.13,5.89]
["Hors herbicides (nouvelle méthode traitement de semences)","France métropolitaine","Choux fleur, Brocoli à jets et Romanesco",1,1,1.42,2,2,2.46,2.84]
["Hors herbicides (nouvelle méthode traitement de semences)","France métropolitaine","Autres choux (hors chou à choucroute)",0.83,1.5,2.42,3,3.87,4.3600000000000003,5.66]
["Hors herbicides (nouvelle méthode traitement de semences)","France métropolitaine","Fraise",0.7,1.93,2.2000000000000002,2.66,4.01,5.14,5.86]
["Hors herbicides (nouvelle méthode traitement de semences)","France métropolitaine","Melon",2.5499999999999998,3.69,4.29,4.78,5.59,6.15,7.1]
["Hors herbicides (nouvelle méthode traitement de semences)","France métropolitaine","Poireau",0.75,2.2999999999999998,3.92,5.4,6.84,8.2200000000000006,9.93]
["Hors herbicides (nouvelle méthode traitement de semences)","France métropolitaine","Pomme de terre",8.8800000000000008,10.87,12.25,13.47,14.52,15.51,16.899999999999999]
["Hors herbicides (nouvelle méthode traitement de semences)","France métropolitaine","Salade",1,1,1.33,1.71,2,2.5499999999999998,3.84]
["Hors herbicides (nouvelle méthode traitement de semences)","France métropolitaine","Tomate",1.03,3.13,5.14,7.65,9.06,11.23,13.34]

{"sheet":"Tab_MAEC","index":5,"n_rows":189,"n_cols":8,"rows_kept":189,"cut":false,"hidden":true,"merged":[]}
["MAEC","Année d'engagement","Percentile HERBICIDES  Surfaces engagées","Percentile HERBICIDES  Surfaces éligibles non engagées","Percentile HORSHERBICIDES  Surfaces engagées","Percentile HORSHERBICIDES  Surfaces éligibles non engagées","Pourcentage de la pression de référence en azote minéral à ne pas dépasser","Calcul polyculture-élévage"]
["PHY1","Année 2","P50","P70",null,null,null,"Non"]
["PHY1","Année 3 OU moyenne années 2 et 3","P30","P70",null,null,null,"Non"]
["PHY1","Année 4 OU moyenne années 2,3,4","P30","P70",null,null,null,"Non"]
["PHY1","Année 5 OU moyenne années 2,3,4,5","P30","P70",null,null,null,"Non"]
["PHY2","Année 2","P50","P70",null,null,null,"Non"]
["PHY2","Année 3 OU moyenne années 2 et 3","P20","P70",null,null,null,"Non"]
["PHY2","Année 4 OU moyenne années 2,3,4","P20","P70",null,null,null,"Non"]
["PHY2","Année 5 OU moyenne années 2,3,4,5","P20","P70",null,null,null,"Non"]
["PHY3","Année 2","P30","P70",null,null,null,"Non"]
["PHY3","Année 3 OU moyenne années 2 et 3","P20","P70",null,null,null,"Non"]
["PHY3","Année 4 OU moyenne années 2,3,4","Zéro herbicide","P70",null,null,null,"Non"]
["PHY3","Année 5 OU moyenne années 2,3,4,5","Zéro herbicide","P70",null,null,null,"Non"]
["PHY4","Année 2","P50","P70","P50","P70",null,"Non"]
["PHY4","Année 3 OU moyenne années 2 et 3","P30","P70","P30","P70",null,"Non"]
["PHY4","Année 4 OU moyenne années 2,3,4","P30","P70","P30","P70",null,"Non"]
["PHY4","Année 5 OU moyenne années 2,3,4,5","P30","P70","P30","P70",null,"Non"]
["PHY5","Année 2","P50","P70","P50","P70",null,"Non"]
["PHY5","Année 3 OU moyenne années 2 et 3","P20","P70","P10","P70",null,"Non"]
["PHY5","Année 4 OU moyenne années 2,3,4","P20","P70","P10","P70",null,"Non"]
["PHY5","Année 5 OU moyenne années 2,3,4,5","P20","P70","P10","P70",null,"Non"]
["PHY6","Année 2","P30","P70","P50","P70",null,"Non"]
["PHY6","Année 3 OU moyenne années 2 et 3","P20","P70","P20","P70",null,"Non"]
["PHY6","Année 4 OU moyenne années 2,3,4","Zéro herbicide","P70","P20","P70",null,"Non"]
["PHY6","Année 5 OU moyenne années 2,3,4,5","Zéro herbicide","P70","P20","P70",null,"Non"]
["PHY7","Année 2","P50","P70",null,null,null,"Non"]
["PHY7","Année 3 OU moyenne années 2 et 3","P30","P70",null,null,null,"Non"]
["PHY7","Année 4 OU moyenne années 2,3,4","P30","P70",null,null,null,"Non"]
["PHY7","Année 5 OU moyenne années 2,3,4,5","P30","P70",null,null,null,"Non"]
["PHY8","Année 2","P50","P70","P50","P70",null,"Non"]
["PHY8","Année 3 OU moyenne années 2 et 3","P30","P70","P30","P70",null,"Non"]
["PHY8","Année 4 OU moyenne années 2,3,4","P30","P70","P30","P70",null,"Non"]
["PHY8","Année 5 OU moyenne années 2,3,4,5","P30","P70","P30","P70",null,"Non"]
["PHY9","Année 2","P50","P70","P50","P70",null,"Non"]
["PHY9","Année 3 OU moyenne années 2 et 3","P20","P70","P10","P70",null,"Non"]
["PHY9","Année 4 OU moyenne années 2,3,4","P20","P70","P10","P70",null,"Non"]
["PHY9","Année 5 OU moyenne années 2,3,4,5","P20","P70","P10","P70",null,"Non"]
["FER1","Année 2",null,null,null,null,90,"Non"]
["FER1","Année 3 OU moyenne années 2 et 3",null,null,null,null,90,"Non"]
["FER1","Année 4 OU moyenne années 2,3,4",null,null,null,null,80,"Non"]
["FER1","Année 5 OU moyenne années 2,3,4,5",null,null,null,null,80,"Non"]
["FER2","Année 2",null,null,null,null,80,"Non"]
["FER2","Année 3 OU moyenne années 2 et 3",null,null,null,null,80,"Non"]
["FER2","Année 4 OU moyenne années 2,3,4",null,null,null,null,70,"Non"]
["FER2","Année 5 OU moyenne années 2,3,4,5",null,null,null,null,70,"Non"]
["FER3","Année 2",null,null,null,null,80,"Oui"]
["FER3","Année 3 OU moyenne années 2 et 3",null,null,null,null,80,"Oui"]
["FER3","Année 4 OU moyenne années 2,3,4",null,null,null,null,70,"Oui"]
["FER3","Année 5 OU moyenne années 2,3,4,5",null,null,null,null,70,"Oui"]
["FER4","Année 2","P50","P70",null,null,80,"Oui"]
["FER4","Année 3 OU moyenne années 2 et 3","P20","P70",null,null,80,"Oui"]
["FER4","Année 4 OU moyenne années 2,3,4","P20","P70",null,null,70,"Oui"]
["FER4","Année 5 OU moyenne années 2,3,4,5","P20","P70",null,null,70,"Oui"]
["FER5","Année 2","P30","P70",null,null,80,"Oui"]
["FER5","Année 3 OU moyenne années 2 et 3","P20","P70",null,null,80,"Oui"]
["FER5","Année 4 OU moyenne années 2,3,4","Zéro herbicide","P70",null,null,70,"Oui"]
["FER5","Année 5 OU moyenne années 2,3,4,5","Zéro herbicide","P70",null,null,70,"Oui"]
["FER6","Année 2","P50","P70","P50","P70",90,"Oui"]
["FER6","Année 3 OU moyenne années 2 et 3","P20","P70","P10","P70",90,"Oui"]
["FER6","Année 4 OU moyenne années 2,3,4","P20","P70","P10","P70",80,"Oui"]
["FER6","Année 5 OU moyenne années 2,3,4,5","P20","P70","P10","P70",80,"Oui"]
["COV1","Année 2","P50","P70",null,null,null,"Non"]
["COV1","Année 3 OU moyenne années 2 et 3","P30","P70",null,null,null,"Non"]
["COV1","Année 4 OU moyenne années 2,3,4","P30","P70",null,null,null,"Non"]
["COV1","Année 5 OU moyenne années 2,3,4,5","P30","P70",null,null,null,"Non"]
["COV2","Année 2","P50","P70",null,null,null,"Non"]
["COV2","Année 3 OU moyenne années 2 et 3","P20","P70",null,null,null,"Non"]
["COV2","Année 4 OU moyenne années 2,3,4","P20","P70",null,null,null,"Non"]
["COV2","Année 5 OU moyenne années 2,3,4,5","P20","P70",null,null,null,"Non"]
["COV3","Année 2","P30","P70",null,null,null,"Non"]
["COV3","Année 3 OU moyenne années 2 et 3","P20","P70",null,null,null,"Non"]
["COV3","Année 4 OU moyenne années 2,3,4","Zéro herbicide","P70",null,null,null,"Non"]
["COV3","Année 5 OU moyenne années 2,3,4,5","Zéro herbicide","P70",null,null,null,"Non"]
["COV4","Année 2","P50","P70","P50","P70",null,"Non"]
["COV4","Année 3 OU moyenne années 2 et 3","P30","P70","P30","P70",null,"Non"]
["COV4","Année 4 OU moyenne années 2,3,4","P30","P70","P30","P70",null,"Non"]
["COV4","Année 5 OU moyenne années 2,3,4,5","P30","P70","P30","P70",null,"Non"]
["COV5","Année 2","P50","P70","P50","P70",null,"Non"]
["COV5","Année 3 OU moyenne années 2 et 3","P20","P70","P10","P70",null,"Non"]
["COV5","Année 4 OU moyenne années 2,3,4","P20","P70","P10","P70",null,"Non"]
["COV5","Année 5 OU moyenne années 2,3,4,5","P20","P70","P10","P70",null,"Non"]
["COV6","Année 2","P30","P70","P50","P70",null,"Non"]
["COV6","Année 3 OU moyenne années 2 et 3","P20","P70","P20","P70",null,"Non"]
["COV6","Année 4 OU moyenne années 2,3,4","Zéro herbicide","P70","P20","P70",null,"Non"]
["COV6","Année 5 OU moyenne années 2,3,4,5","Zéro herbicide","P70","P20","P70",null,"Non"]
["LEP1","Année 2","P50","P70",null,null,null,"Non"]
["LEP1","Année 3 OU moyenne années 2 et 3","P30","P70",null,null,null,"Non"]
["LEP1","Année 4 OU moyenne années 2,3,4","P30","P70",null,null,null,"Non"]
["LEP1","Année 5 OU moyenne années 2,3,4,5","P30","P70",null,null,null,"Non"]
["LEP2","Année 2","P50","P70",null,null,null,"Non"]
["LEP2","Année 3 OU moyenne années 2 et 3","P20","P70",null,null,null,"Non"]
["LEP2","Année 4 OU moyenne années 2,3,4","P20","P70",null,null,null,"Non"]
["LEP2","Année 5 OU moyenne années 2,3,4,5","P20","P70",null,null,null,"Non"]
["LEP3","Année 2","P30","P70",null,null,null,"Non"]
["LEP3","Année 3 OU moyenne années 2 et 3","P20","P70",null,null,null,"Non"]
["LEP3","Année 4 OU moyenne années 2,3,4","Zéro herbicide","P70",null,null,null,"Non"]
["LEP3","Année 5 OU moyenne années 2,3,4,5","Zéro herbicide","P70",null,null,null,"Non"]
["LEP4","Année 2","P50","P70","P50","P70",null,"Non"]
["LEP4","Année 3 OU moyenne années 2 et 3","P30","P70","P30","P70",null,"Non"]
["LEP4","Année 4 OU moyenne années 2,3,4","P30","P70","P30","P70",null,"Non"]
["LEP4","Année 5 OU moyenne années 2,3,4,5","P30","P70","P30","P70",null,"Non"]
["LEP5","Année 2","P50","P70","P50","P70",null,"Non"]
["LEP5","Année 3 OU moyenne années 2 et 3","P20","P70","P10","P70",null,"Non"]
["LEP5","Année 4 OU moyenne années 2,3,4","P20","P70","P10","P70",null,"Non"]
["LEP5","Année 5 OU moyenne années 2,3,4,5","P20","P70","P10","P70",null,"Non"]
["LEP6","Année 2","P30","P70","P50","P70",null,"Non"]
["LEP6","Année 3 OU moyenne années 2 et 3","P20","P70","P20","P70",null,"Non"]
["LEP6","Année 4 OU moyenne années 2,3,4","Zéro herbicide","P70","P20","P70",null,"Non"]
["LEP6","Année 5 OU moyenne années 2,3,4,5","Zéro herbicide","P70","P20","P70",null,"Non"]
["LEP7","Année 2","P50","P70",null,null,null,"Non"]
["LEP7","Année 3 OU moyenne années 2 et 3","P30","P70",null,null,null,"Non"]
["LEP7","Année 4 OU moyenne années 2,3,4","P30","P70",null,null,null,"Non"]
["LEP7","Année 5 OU moyenne années 2,3,4,5","P30","P70",null,null,null,"Non"]
["LEP8","Année 2","P50","P70","P50","P70",null,"Non"]
["LEP8","Année 3 OU moyenne années 2 et 3","P30","P70","P30","P70",null,"Non"]
["LEP8","Année 4 OU moyenne années 2,3,4","P30","P70","P30","P70",null,"Non"]
["LEP8","Année 5 OU moyenne années 2,3,4,5","P30","P70","P30","P70",null,"Non"]
["LEP9","Année 2","P50","P70","P50","P70",null,"Non"]
["LEP9","Année 3 OU moyenne années 2 et 3","P20","P70","P10","P70",null,"Non"]
["LEP9","Année 4 OU moyenne années 2,3,4","P20","P70","P10","P70",null,"Non"]
["LEP9","Année 5 OU moyenne années 2,3,4,5","P20","P70","P10","P70",null,"Non"]
["LEF1","Année 2",null,null,null,null,90,"Non"]
["LEF1","Année 3 OU moyenne années 2 et 3",null,null,null,null,90,"Non"]
["LEF1","Année 4 OU moyenne années 2,3,4",null,null,null,null,80,"Non"]
["LEF1","Année 5 OU moyenne années 2,3,4,5",null,null,null,null,80,"Non"]
["LEF2","Année 2",null,null,null,null,80,"Non"]
["LEF2","Année 3 OU moyenne années 2 et 3",null,null,null,null,80,"Non"]
["LEF2","Année 4 OU moyenne années 2,3,4",null,null,null,null,70,"Non"]
["LEF2","Année 5 OU moyenne années 2,3,4,5",null,null,null,null,70,"Non"]
["LEF3","Année 2",null,null,null,null,80,"Non"]
["LEF3","Année 3 OU moyenne années 2 et 3",null,null,null,null,80,"Non"]
["LEF3","Année 4 OU moyenne années 2,3,4",null,null,null,null,70,"Non"]
["LEF3","Année 5 OU moyenne années 2,3,4,5",null,null,null,null,70,"Non"]
["LEF4","Année 2","P50","P70",null,null,80,"Non"]
["LEF4","Année 3 OU moyenne années 2 et 3","P20","P70",null,null,80,"Non"]
["LEF4","Année 4 OU moyenne années 2,3,4","P20","P70",null,null,70,"Non"]
["LEF4","Année 5 OU moyenne années 2,3,4,5","P20","P70",null,null,70,"Non"]
["LEF5","Année 2","P30","P70",null,null,80,"Non"]
["LEF5","Année 3 OU moyenne années 2 et 3","P20","P70",null,null,80,"Non"]
["LEF5","Année 4 OU moyenne années 2,3,4","Zéro herbicide","P70",null,null,70,"Non"]
["LEF5","Année 5 OU moyenne années 2,3,4,5","Zéro herbicide","P70",null,null,70,"Non"]
["LEF6","Année 2","P50","P70","P50","P70",90,"Non"]
["LEF6","Année 3 OU moyenne années 2 et 3","P20","P70","P10","P70",90,"Non"]
["LEF6","Année 4 OU moyenne années 2,3,4","P20","P70","P10","P70",80,"Non"]
["LEF6","Année 5 OU moyenne années 2,3,4,5","P20","P70","P10","P70",80,"Non"]
["LEC1","Année 2","P50","P70",null,null,null,"Non"]
["LEC1","Année 3 OU moyenne années 2 et 3","P30","P70",null,null,null,"Non"]
["LEC1","Année 4 OU moyenne années 2,3,4","P30","P70",null,null,null,"Non"]
["LEC1","Année 5 OU moyenne années 2,3,4,5","P30","P70",null,null,null,"Non"]
["LEC2","Année 2","P50","P70",null,null,null,"Non"]
["LEC2","Année 3 OU moyenne années 2 et 3","P20","P70",null,null,null,"Non"]
["LEC2","Année 4 OU moyenne années 2,3,4","P20","P70",null,null,null,"Non"]
["LEC2","Année 5 OU moyenne années 2,3,4,5","P20","P70",null,null,null,"Non"]
["LEC3","Année 2","P30","P70",null,null,null,"Non"]
["LEC3","Année 3 OU moyenne années 2 et 3","P20","P70",null,null,null,"Non"]
["LEC3","Année 4 OU moyenne années 2,3,4","Zéro herbicide","P70",null,null,null,"Non"]
["LEC3","Année 5 OU moyenne années 2,3,4,5","Zéro herbicide","P70",null,null,null,"Non"]
["LEC4","Année 2","P50","P70","P50","P70",null,"Non"]
["LEC4","Année 3 OU moyenne années 2 et 3","P30","P70","P30","P70",null,"Non"]
["LEC4","Année 4 OU moyenne années 2,3,4","P30","P70","P30","P70",null,"Non"]
["LEC4","Année 5 OU moyenne années 2,3,4,5","P30","P70","P30","P70",null,"Non"]
["LEC5","Année 2","P50","P70","P50","P70",null,"Non"]
["LEC5","Année 3 OU moyenne années 2 et 3","P20","P70","P10","P70",null,"Non"]
["LEC5","Année 4 OU moyenne années 2,3,4","P20","P70","P10","P70",null,"Non"]
["LEC5","Année 5 OU moyenne années 2,3,4,5","P20","P70","P10","P70",null,"Non"]
["LEC6","Année 2","P30","P70","P50","P70",null,"Non"]
["LEC6","Année 3 OU moyenne années 2 et 3","P20","P70","P20","P70",null,"Non"]
["LEC6","Année 4 OU moyenne années 2,3,4","Zéro herbicide","P70","P20","P70",null,"Non"]
["LEC6","Année 5 OU moyenne années 2,3,4,5","Zéro herbicide","P70","P20","P70",null,"Non"]
["HBV1","Année 2","P60","P70","P50","P70",null,"Non"]
["HBV1","Année 3 OU moyenne années 2 et 3","P50","P70","P40","P70",null,"Non"]
["HBV1","Année 4 OU moyenne années 2,3,4","P40","P70","P30","P70",null,"Non"]
["HBV1","Année 5 OU moyenne années 2,3,4,5","P30","P70","P20","P70",null,"Non"]
["HBV2","Année 2","P60","P70","P50","P70",null,"Non"]
["HBV2","Année 3 OU moyenne années 2 et 3","P50","P70","P40","P70",null,"Non"]
["HBV2","Année 4 OU moyenne années 2,3,4","P40","P70","P30","P70",null,"Non"]
["HBV2","Année 5 OU moyenne années 2,3,4,5","P30","P70","P20","P70",null,"Non"]
["HBV3","Année 2","P60","P70","P50","P70",null,"Non"]
["HBV3","Année 3 OU moyenne années 2 et 3","P50","P70","P40","P70",null,"Non"]
["HBV3","Année 4 OU moyenne années 2,3,4","P40","P70","P30","P70",null,"Non"]
["HBV3","Année 5 OU moyenne années 2,3,4,5","P30","P70","P20","P70",null,"Non"]
["SDC1","Année 2","P70","P70","P70","P70",null,"Oui"]
["SDC1","Année 3 OU moyenne années 2 et 3","P70","P70","P70","P70",null,"Oui"]
["SDC1","Année 4 OU moyenne années 2,3,4","P70","P70","P70","P70",null,"Oui"]
["SDC1","Année 5 OU moyenne années 2,3,4,5","P70","P70","P70","P70",null,"Oui"]
["SDC2","Année 2","P70","P70","P70","P70",null,"Oui"]
["SDC2","Année 3 OU moyenne années 2 et 3","P70","P70","P70","P70",null,"Oui"]
["SDC2","Année 4 OU moyenne années 2,3,4","P70","P70","P70","P70",null,"Oui"]
["SDC2","Année 5 OU moyenne années 2,3,4,5","P70","P70","P70","P70",null,"Oui"]